BIOGUIDE_ID,OFFICE,QUARTER,CATEGORY,DATE,PAYEE,START DATE,END DATE,PURPOSE,AMOUNT,YEAR,TRANSCODE,TRANSCODELONG,RECORDID,RECIP (orig.)
,COMMUNICATIONS,2010Q1,OTHER SERVICES,"",03­10       P2 MFP0003226                    WASHINGTON GROUP SALES,03/02/10,03/02/10,NON-TECHNOLOGY SERVICE CONTRCT,455.00,FISCAL YEAR 2010,"","","",03­10       P2 MFP0003226                    WASHINGTON GROUP SALES
,COMMUNICATIONS,2010Q1,SUPPLIES AND MATERIALS,"",02­05       P2    MFP0003219       ALLSTEEL,11/28/09,11/28/09,HABITATION EXPENSES,47.26,FISCAL YEAR 2010,"","","",02­05       P2    MFP0003219       ALLSTEEL
,COMMUNICATIONS,2010Q1,SUPPLIES AND MATERIALS,"",03­05       P2    OSM42304         CDW GOVERNMENT INC,12/21/09,12/21/09,OFFICE SUPPLIES OUTSIDE,250.00,FISCAL YEAR 2010,"","","",03­05       P2    OSM42304         CDW GOVERNMENT INC
,COMMUNICATIONS,2010Q1,SUPPLIES AND MATERIALS,"",03­05       P2    OSM42304              DO,12/21/09,12/21/09,OFFICE SUPPLIES OUTSIDE,436.00,FISCAL YEAR 2010,"","","",03­05       P2    OSM42304              DO
,COMMUNICATIONS,2010Q1,SUPPLIES AND MATERIALS,"",03­05       P2    OSM42304              DO,12/21/09,12/21/09,OFFICE SUPPLIES OUTSIDE,37.90,FISCAL YEAR 2010,"","","",03­05       P2    OSM42304              DO
,COMMUNICATIONS,2010Q1,EQUIPMENT,"",01­28       S8    MA000929610,01/01/10,01/31/10,EQUIPMENT MAINTENANCE,16.00,FISCAL YEAR 2010,"","","",01­28       S8    MA000929610
,COMMUNICATIONS,2010Q1,EQUIPMENT,"",02­25       S8    MA000935651,02/01/10,02/28/10,EQUIPMENT MAINTENANCE,16.00,FISCAL YEAR 2010,"","","",02­25       S8    MA000935651
,COMMUNICATIONS,2010Q1,EQUIPMENT,"",03­16       P2    MFPB227ALS                 ALLSTEEL,12/17/09,12/17/09,FURNITURE ­ $25000,359.04,FISCAL YEAR 2010,"","","",03­16       P2    MFPB227ALS                 ALLSTEEL
,COMMUNICATIONS,2010Q1,EQUIPMENT,"",03­16       P2    MFPB227ALS                          DO,12/17/09,12/17/09,FURNITURE ­ $25000,77.01,FISCAL YEAR 2010,"","","",03­16       P2    MFPB227ALS                          DO
,COMMUNICATIONS,2010Q1,EQUIPMENT,"",03­26       P2    MFP202AAD2K                KIMBALL INT'L MARKETING,02/16/10,02/22/10,FURNITURE ­ $25000,"4,161.40",FISCAL YEAR 2010,"","","",03­26       P2    MFP202AAD2K                KIMBALL INT'L MARKETING
,COMMUNICATIONS,2010Q1,EQUIPMENT,"",03­26       P2    MFP202AAD2K                         DO,02/16/10,02/22/10,FURNITURE ­ $25000,"24,478.84",FISCAL YEAR 2010,"","","",03­26       P2    MFP202AAD2K                         DO
,COMMUNICATIONS,2010Q1,EQUIPMENT,"",03­26       P2    MFP2442AD2K                         DO,02/10/10,02/10/10,FURNITURE ­ $25000,674.63,FISCAL YEAR 2010,"","","",03­26       P2    MFP2442AD2K                         DO
,COMMUNICATIONS,2010Q1,EQUIPMENT,"",03­26       P2    MFP2442AD2K                         DO,02/10/10,02/10/10,FURNITURE ­ $25000,"3,968.40",FISCAL YEAR 2010,"","","",03­26       P2    MFP2442AD2K                         DO
,COMMUNICATIONS,2010Q1,EQUIPMENT,"",03­30       S8    MA000941555,03/01/10,03/31/10,EQUIPMENT MAINTENANCE,16.00,FISCAL YEAR 2010,"","","",03­30       S8    MA000941555
,COMMUNICATIONS,2010Q1,EQUIPMENT,"",01­12 P2 MFP103413CK        KIMBALL INT'L MARKETING,12/02/09,12/11/09,FURNITURE ­ $25000,"1,631.75",FISCAL YEAR 2009,"","","",01­12 P2 MFP103413CK        KIMBALL INT'L MARKETING
,COMMUNICATIONS,2010Q1,EQUIPMENT,"",01­12 P2 MFP103413CK             DO,12/02/09,12/11/09,FURNITURE ­ $25000,"1,402.92",FISCAL YEAR 2009,"","","",01­12 P2 MFP103413CK             DO
,COMMUNICATIONS,2010Q1,EQUIPMENT,"",01­12 P2 MFP103413CK             DO,12/02/09,12/11/09,FURNITURE ­ $25000,"2,445.59",FISCAL YEAR 2009,"","","",01­12 P2 MFP103413CK             DO
,COMMUNICATIONS,2010Q1,EQUIPMENT,"",01­12 P2 MFP103413CK             DO,12/02/09,12/11/09,FURNITURE ­ $25000,"5,631.92",FISCAL YEAR 2009,"","","",01­12 P2 MFP103413CK             DO
,COMMUNICATIONS,2010Q1,EQUIPMENT,"",01­12 P2 MFP103413CK             DO,12/02/09,12/11/09,FURNITURE ­ $25000,"4,271.16",FISCAL YEAR 2009,"","","",01­12 P2 MFP103413CK             DO
,COMMUNICATIONS,2010Q1,EQUIPMENT,"",01­12 P2 MFP103413CK             DO,12/02/09,12/11/09,FURNITURE ­ $25000,42.55,FISCAL YEAR 2009,"","","",01­12 P2 MFP103413CK             DO
,COMMUNICATIONS,2010Q1,EQUIPMENT,"",01­12 P2 MFP103413CK             DO,12/02/09,12/11/09,FURNITURE ­ $25000,"22,707.12",FISCAL YEAR 2009,"","","",01­12 P2 MFP103413CK             DO
,COMMUNICATIONS,2010Q1,EQUIPMENT,"",01­12 P2 MFP103413CK             DO,12/02/09,12/11/09,FURNITURE ­ $25000,619.25,FISCAL YEAR 2009,"","","",01­12 P2 MFP103413CK             DO
,COMMUNICATIONS,2010Q1,EQUIPMENT,"",01­12 P2 MFP23113AK              DO,11/25/09,12/18/09,FURNITURE ­ $25000,"29,016.80",FISCAL YEAR 2009,"","","",01­12 P2 MFP23113AK              DO
,COMMUNICATIONS,2010Q1,EQUIPMENT,"",01­12 P2 MFP23113AK              DO,11/25/09,12/18/09,FURNITURE ­ $25000,"4,447.72",FISCAL YEAR 2009,"","","",01­12 P2 MFP23113AK              DO
,COMMUNICATIONS,2010Q1,EQUIPMENT,"",01­12 P2 MFP23113AK              DO,11/25/09,12/18/09,FURNITURE ­ $25000,"1,287.90",FISCAL YEAR 2009,"","","",01­12 P2 MFP23113AK              DO
,COMMUNICATIONS,2010Q1,EQUIPMENT,"",01­12 P2 MFP23113AK              DO,11/25/09,12/18/09,FURNITURE ­ $25000,"6,257.25",FISCAL YEAR 2009,"","","",01­12 P2 MFP23113AK              DO
,COMMUNICATIONS,2010Q1,EQUIPMENT,"",01­12 P2 MFP23113AK              DO,11/25/09,12/18/09,FURNITURE ­ $25000,871.16,FISCAL YEAR 2009,"","","",01­12 P2 MFP23113AK              DO
,COMMUNICATIONS,2010Q1,EQUIPMENT,"",01­12 P2 MFP23113AK              DO,11/25/09,12/18/09,FURNITURE ­ $25000,615.60,FISCAL YEAR 2009,"","","",01­12 P2 MFP23113AK              DO
,COMMUNICATIONS,2010Q1,EQUIPMENT,"",01­12 P2 MFP23113AK              DO,11/25/09,12/18/09,FURNITURE ­ $25000,349.11,FISCAL YEAR 2009,"","","",01­12 P2 MFP23113AK              DO
,COMMUNICATIONS,2010Q1,EQUIPMENT,"",01­12 P2 MFP23113AK              DO,11/25/09,12/18/09,FURNITURE ­ $25000,"2,794.96",FISCAL YEAR 2009,"","","",01­12 P2 MFP23113AK              DO
,COMMUNICATIONS,2010Q1,EQUIPMENT,"",01­12 P2 MFP23113AK              DO,11/25/09,12/18/09,FURNITURE ­ $25000,"8,646.33",FISCAL YEAR 2009,"","","",01­12 P2 MFP23113AK              DO
,COMMUNICATIONS,2010Q1,EQUIPMENT,"",01­12 P2 MFP23113AK              DO,11/25/09,12/18/09,FURNITURE ­ $25000,"4,271.15",FISCAL YEAR 2009,"","","",01­12 P2 MFP23113AK              DO
,COMMUNICATIONS,2010Q1,EQUIPMENT,"",01­12 P2 MFP23113AK              DO,11/25/09,12/18/09,FURNITURE ­ $25000,948.97,FISCAL YEAR 2009,"","","",01­12 P2 MFP23113AK              DO
,COMMUNICATIONS,2010Q1,EQUIPMENT,"",01­22 P2 MFP1625ADA2        ALLSTEEL,11/14/09,01/13/10,FURNITURE ­ $25000,"12,526.04",FISCAL YEAR 2009,"","","",01­22 P2 MFP1625ADA2        ALLSTEEL
,COMMUNICATIONS,2010Q1,EQUIPMENT,"",01­22 P2 MFP1625ADA2             DO,11/14/09,01/13/10,FURNITURE ­ $25000,"2,388.63",FISCAL YEAR 2009,"","","",01­22 P2 MFP1625ADA2             DO
,COMMUNICATIONS,2010Q1,EQUIPMENT,"",01­22 P2 MFP1625ADA2             DO,11/14/09,01/13/10,FURNITURE ­ $25000,"1,115.74",FISCAL YEAR 2009,"","","",01­22 P2 MFP1625ADA2             DO
,COMMUNICATIONS,2010Q1,EQUIPMENT,"",02­05 P2 MFP356358AL             DO,11/30/09,12/19/09,FURNITURE ­ $25000,"40,725.35",FISCAL YEAR 2009,"","","",02­05 P2 MFP356358AL             DO
,COMMUNICATIONS,2010Q1,EQUIPMENT,"",02­05 P2 MFP356358AL             DO,11/30/09,12/19/09,FURNITURE ­ $25000,"7,250.41",FISCAL YEAR 2009,"","","",02­05 P2 MFP356358AL             DO
,COMMUNICATIONS,2010Q1,EQUIPMENT,"",02­05 P2 MFP356358AL             DO,11/30/09,12/19/09,FURNITURE ­ $25000,705.57,FISCAL YEAR 2009,"","","",02­05 P2 MFP356358AL             DO
,COMMUNICATIONS,2010Q1,EQUIPMENT,"",03­16 P2 MFP356358GL        THE GUNLOCKE COMPANY,11/24/09,11/24/09,FURNITURE ­ $25000,"2,119.54",FISCAL YEAR 2009,"","","",03­16 P2 MFP356358GL        THE GUNLOCKE COMPANY
,COMMUNICATIONS,2010Q1,EQUIPMENT,"",03­16 P2 MFP356358GL             DO,11/24/09,11/24/09,FURNITURE ­ $25000,339.12,FISCAL YEAR 2009,"","","",03­16 P2 MFP356358GL             DO
,OFFICE OF THE SPEAKER,2010Q1,PERSONNEL COMPENSATION,"","BAKO,STACEE N",01/01/10,03/31/10,DEPUTY DIRECTOR,"12,500.01",FISCAL YEAR 2010,"","","","BAKO,STACEE N"
,OFFICE OF THE SPEAKER,2010Q1,PERSONNEL COMPENSATION,"","DALY, BRENDAN",01/01/10,03/31/10,COMMUNICATIONS DIRECTOR,"43,125.00",FISCAL YEAR 2010,"","","","DALY, BRENDAN"
,OFFICE OF THE SPEAKER,2010Q1,PERSONNEL COMPENSATION,"","ONEK,JOSEPH",01/01/10,03/31/10,SENIOR COUNSEL TO THE SPEAKER,"43,125.00",FISCAL YEAR 2010,"","","","ONEK,JOSEPH"
,OFFICE OF THE SPEAKER,2010Q1,PERSONNEL COMPENSATION,"","PARKER, WYNDEE R",01/01/10,03/31/10,SENIOR POLICY ADVISOR,"43,125.00",FISCAL YEAR 2010,"","","","PARKER, WYNDEE R"
,OFFICE OF THE SPEAKER,2010Q1,PERSONNEL COMPENSATION,"","PRIMUS, WENDELL E",01/01/10,03/31/10,SENIOR POLICY ADVISOR,"43,125.00",FISCAL YEAR 2010,"","","","PRIMUS, WENDELL E"
,OFFICE OF THE SPEAKER,2010Q1,PERSONNEL COMPENSATION,"","QUALLS,ELLEN S",01/01/10,03/31/10,SR ADV FOR STRATEGIC PLANNING,"41,102.49",FISCAL YEAR 2010,"","","","QUALLS,ELLEN S"
,OFFICE OF THE SPEAKER,2010Q1,PERSONNEL COMPENSATION,"","BARRY,MARY K",01/01/10,03/31/10,SCHEDULING ASSISTANT,"12,802.50",FISCAL YEAR 2010,"","","","BARRY,MARY K"
,OFFICE OF THE SPEAKER,2010Q1,PERSONNEL COMPENSATION,"","BARRY,MARY K",12/01/09,12/30/09,STAFF ASSISTANT (OVERTIME),524.49,FISCAL YEAR 2010,"","","",DO
,OFFICE OF THE SPEAKER,2010Q1,PERSONNEL COMPENSATION,"","BERENS,KELLY E",01/01/10,03/31/10,DIRECTOR OF ADVANCE,"17,923.50",FISCAL YEAR 2010,"","","","BERENS,KELLY E"
,OFFICE OF THE SPEAKER,2010Q1,PERSONNEL COMPENSATION,"","CASHMAN,MARY D",01/01/10,03/31/10,ASSIST TO THE CHIEF OF STAFF,"16,393.01",FISCAL YEAR 2010,"","","","CASHMAN,MARY D"
,OFFICE OF THE SPEAKER,2010Q1,PERSONNEL COMPENSATION,"","CHERRY,STEPHANIE",01/01/10,03/31/10,PRESS ADVISOR,"16,462.25",FISCAL YEAR 2010,"","","","CHERRY,STEPHANIE"
,OFFICE OF THE SPEAKER,2010Q1,PERSONNEL COMPENSATION,"","CHIU,CRYSTAL S",01/01/10,03/31/10,PRESS ASSISTANT,"12,972.99",FISCAL YEAR 2010,"","","","CHIU,CRYSTAL S"
,OFFICE OF THE SPEAKER,2010Q1,PERSONNEL COMPENSATION,"","DEWHIRST, DIANE",01/01/10,03/31/10,SENIOR ADVISOR,"28,500.00",FISCAL YEAR 2010,"","","","DEWHIRST, DIANE"
,OFFICE OF THE SPEAKER,2010Q1,PERSONNEL COMPENSATION,"","ELSHAMI,NADEEM",01/01/10,03/31/10,DEPUTY COMMUNICATIONS DIRECTOR,"40,968.00",FISCAL YEAR 2010,"","","","ELSHAMI,NADEEM"
,OFFICE OF THE SPEAKER,2010Q1,PERSONNEL COMPENSATION,"","FALLON,BRIDGET C",01/01/10,03/31/10,DIRECTOR OF PROTOCOL,"29,466.75",FISCAL YEAR 2010,"","","","FALLON,BRIDGET C"
,OFFICE OF THE SPEAKER,2010Q1,PERSONNEL COMPENSATION,"","FULWOOD,KATHERINE A",01/01/10,03/31/10,STAFF ASSISTANT - CORRES,"7,169.49",FISCAL YEAR 2010,"","","","FULWOOD,KATHERINE A"
,OFFICE OF THE SPEAKER,2010Q1,PERSONNEL COMPENSATION,"","FULWOOD,KATHERINE A",12/01/09,02/28/10,STAFF ASSISTANT - CORRES. (OVERTIME),636.47,FISCAL YEAR 2010,"","","",DO
,OFFICE OF THE SPEAKER,2010Q1,PERSONNEL COMPENSATION,"","GEORGE,EVANGELINE M",01/01/10,03/31/10,PRESS ASSISTANT,"9,217.74",FISCAL YEAR 2010,"","","","GEORGE,EVANGELINE M"
,OFFICE OF THE SPEAKER,2010Q1,PERSONNEL COMPENSATION,"","HAMMILL, ANDREW T",01/01/10,03/31/10,PRESS SECRETARY,"24,324.75",FISCAL YEAR 2010,"","","","HAMMILL, ANDREW T"
,OFFICE OF THE SPEAKER,2010Q1,PERSONNEL COMPENSATION,"","HARRILCHAK, MARISA L",01/01/10,03/31/10,FLOOR ASSISTANT,"18,620.25",FISCAL YEAR 2010,"","","","HARRILCHAK, MARISA L"
,OFFICE OF THE SPEAKER,2010Q1,PERSONNEL COMPENSATION,"","HARTZ, JERRY",11/01/09,03/31/10,DIRECTOR OF FLOOR OPERATIONS,"40,240.67",FISCAL YEAR 2010,"","","","HARTZ, JERRY"
,OFFICE OF THE SPEAKER,2010Q1,PERSONNEL COMPENSATION,"","HAYNES JR, WILFRED J",01/01/10,03/31/10,IT DIRECTOR,"24,530.49",FISCAL YEAR 2010,"","","","HAYNES JR, WILFRED J"
,OFFICE OF THE SPEAKER,2010Q1,PERSONNEL COMPENSATION,"","JONES, SYDNEY",01/01/10,03/31/10,DEPUTY DIRECTOR - MEMBER SVCS,"23,044.50",FISCAL YEAR 2010,"","","","JONES, SYDNEY"
,OFFICE OF THE SPEAKER,2010Q1,PERSONNEL COMPENSATION,"","KERR, STACY R",01/01/10,03/31/10,SPECIAL ASSISTANT,"34,646.49",FISCAL YEAR 2010,"","","","KERR, STACY R"
,OFFICE OF THE SPEAKER,2010Q1,PERSONNEL COMPENSATION,"","KNUDSON, KATE",01/01/10,03/31/10,PERSONAL ASSISTANT,"24,333.91",FISCAL YEAR 2010,"","","","KNUDSON, KATE"
,OFFICE OF THE SPEAKER,2010Q1,PERSONNEL COMPENSATION,"","LANE, EDGAR C",01/01/10,03/31/10,PRESS ADVISOR,"17,292.24",FISCAL YEAR 2010,"","","","LANE, EDGAR C"
,OFFICE OF THE SPEAKER,2010Q1,PERSONNEL COMPENSATION,"","LANE,GEOFFREY",01/01/10,03/31/10,STAFF ASSISTANT,"7,980.99",FISCAL YEAR 2010,"","","","LANE,GEOFFREY"
,OFFICE OF THE SPEAKER,2010Q1,PERSONNEL COMPENSATION,"","LANE,GEOFFREY",12/01/09,02/28/10,STAFF ASSISTANT (OVERTIME),"1,337.54",FISCAL YEAR 2010,"","","",DO
,OFFICE OF THE SPEAKER,2010Q1,PERSONNEL COMPENSATION,"","LASSIG,MEGAN",12/01/09,03/31/10,PRESS ASSISTANT,"13,135.83",FISCAL YEAR 2010,"","","","LASSIG,MEGAN"
,OFFICE OF THE SPEAKER,2010Q1,PERSONNEL COMPENSATION,"","LIZARRAGA, JAIME E",01/01/10,03/31/10,DIR.MEM.SERV/SR. ADV,"39,905.49",FISCAL YEAR 2010,"","","","LIZARRAGA, JAIME E"
,OFFICE OF THE SPEAKER,2010Q1,PERSONNEL COMPENSATION,"","LONG,MICHAEL G",01/01/10,03/31/10,SPECIAL ASSISTANT,"14,082.75",FISCAL YEAR 2010,"","","","LONG,MICHAEL G"
,OFFICE OF THE SPEAKER,2010Q1,PERSONNEL COMPENSATION,"","MANATOS, ANASTASIOS",01/01/10,03/31/10,DEP.DIR-MEM.SRV/OUTREACH,"23,943.24",FISCAL YEAR 2010,"","","","MANATOS, ANASTASIOS"
,OFFICE OF THE SPEAKER,2010Q1,PERSONNEL COMPENSATION,"","MCCULLOUGH, MARY T",01/01/10,03/31/10,ADVISOR TO THE SPEAKER,"10,794.00",FISCAL YEAR 2010,"","","","MCCULLOUGH, MARY T"
,OFFICE OF THE SPEAKER,2010Q1,PERSONNEL COMPENSATION,"","MEDLIN,MELINDA L",01/01/10,03/31/10,DIRECTOR OF SCHEDULING,"35,847.00",FISCAL YEAR 2010,"","","","MEDLIN,MELINDA L"
,OFFICE OF THE SPEAKER,2010Q1,PERSONNEL COMPENSATION,"","MERZ, JULIE E",01/01/10,03/31/10,SPECIAL ASSISTANT,"2,560.50",FISCAL YEAR 2010,"","","","MERZ, JULIE E"
,OFFICE OF THE SPEAKER,2010Q1,PERSONNEL COMPENSATION,"","MOORE, REBECCA G",01/01/10,03/31/10,DEPUTY SCHEDULER,"18,125.58",FISCAL YEAR 2010,"","","","MOORE, REBECCA G"
,OFFICE OF THE SPEAKER,2010Q1,PERSONNEL COMPENSATION,"","NEWTON, KARINA L",01/01/10,03/31/10,DIRECTOR OF NEW MEDIA,"25,011.17",FISCAL YEAR 2010,"","","","NEWTON, KARINA L"
,OFFICE OF THE SPEAKER,2010Q1,PERSONNEL COMPENSATION,"","O'NEILL, CATLIN W",01/01/10,03/31/10,DEPUTY FLOOR ASSISTANT,"27,933.75",FISCAL YEAR 2010,"","","","O'NEILL, CATLIN W"
,OFFICE OF THE SPEAKER,2010Q1,PERSONNEL COMPENSATION,"","POWELL,JONATHAN M",01/01/10,03/31/10,DEPUTY SPEECHWRITER,"15,363.00",FISCAL YEAR 2010,"","","","POWELL,JONATHAN M"
,OFFICE OF THE SPEAKER,2010Q1,PERSONNEL COMPENSATION,"","QUINTO,RICARDO A",01/01/10,03/31/10,TELEPHONE STAFF ASSISTANT,"7,681.50",FISCAL YEAR 2010,"","","","QUINTO,RICARDO A"
,OFFICE OF THE SPEAKER,2010Q1,PERSONNEL COMPENSATION,"","QUINTO,RICARDO A",12/01/09,02/28/10,TELEPHONE STAFF ASSISTANT (OVERTIME),"1,853.19",FISCAL YEAR 2010,"","","",DO
,OFFICE OF THE SPEAKER,2010Q1,PERSONNEL COMPENSATION,"","RAYMOND,SAMUEL H",01/01/10,03/31/10,STAFF ASSISTANT,"7,681.50",FISCAL YEAR 2010,"","","","RAYMOND,SAMUEL H"
,OFFICE OF THE SPEAKER,2010Q1,PERSONNEL COMPENSATION,"","RAYMOND,SAMUEL H",12/01/09,02/28/10,STAFF ASSISTANT (OVERTIME),"3,168.49",FISCAL YEAR 2010,"","","",DO
,OFFICE OF THE SPEAKER,2010Q1,PERSONNEL COMPENSATION,"","ROSE,CHERYL P",12/01/09,03/31/10,DIR OF INTERGOV'T AFFAIRS,"54,209.62",FISCAL YEAR 2010,"","","","ROSE,CHERYL P"
,OFFICE OF THE SPEAKER,2010Q1,PERSONNEL COMPENSATION,"","SANCHEZ, CARLOS S",01/01/10,03/31/10,PRESS ADVISOR,"16,041.24",FISCAL YEAR 2010,"","","","SANCHEZ, CARLOS S"
,OFFICE OF THE SPEAKER,2010Q1,PERSONNEL COMPENSATION,"","SCHMIDT, AARON",01/01/10,03/31/10,LEGISLATIVE DIRECTOR,"20,484.00",FISCAL YEAR 2010,"","","","SCHMIDT, AARON"
,OFFICE OF THE SPEAKER,2010Q1,PERSONNEL COMPENSATION,"","SHORT, PAULA M",01/01/10,03/31/10,OFFICE MANAGER,"16,731.51",FISCAL YEAR 2010,"","","","SHORT, PAULA M"
,OFFICE OF THE SPEAKER,2010Q1,PERSONNEL COMPENSATION,"","SHYU,ELISA",01/01/10,03/31/10,ADVANCE ASSISTANT,"12,355.59",FISCAL YEAR 2010,"","","","SHYU,ELISA"
,OFFICE OF THE SPEAKER,2010Q1,PERSONNEL COMPENSATION,"","SILVERMAN,DAVID",01/01/10,03/31/10,STAFF ASSISTANT,"9,018.51",FISCAL YEAR 2010,"","","","SILVERMAN,DAVID"
,OFFICE OF THE SPEAKER,2010Q1,PERSONNEL COMPENSATION,"","SILVERMAN,DAVID",12/01/09,02/28/10,STAFF ASSISTANT (OVERTIME),453.72,FISCAL YEAR 2010,"","","",DO
,OFFICE OF THE SPEAKER,2010Q1,PERSONNEL COMPENSATION,"","SMITH, SAMANTHA D",01/01/10,03/31/10,SPECIAL ASSISTANT,"10,301.01",FISCAL YEAR 2010,"","","","SMITH, SAMANTHA D"
,OFFICE OF THE SPEAKER,2010Q1,PERSONNEL COMPENSATION,"","STALLMAN, ERIK R",01/01/10,03/31/10,COUNSEL AND POLICY ADVISOR,"28,933.74",FISCAL YEAR 2010,"","","","STALLMAN, ERIK R"
,OFFICE OF THE SPEAKER,2010Q1,PERSONNEL COMPENSATION,"","STIVERS, JONATHAN",01/01/10,03/31/10,SENIOR ADVISOR,"31,114.00",FISCAL YEAR 2010,"","","","STIVERS, JONATHAN"
,OFFICE OF THE SPEAKER,2010Q1,PERSONNEL COMPENSATION,"","SURGEON,BINA G",01/01/10,03/31/10,DEPUTY DIRECTOR OF PROTOCOL,"14,082.75",FISCAL YEAR 2010,"","","","SURGEON,BINA G"
,OFFICE OF THE SPEAKER,2010Q1,PERSONNEL COMPENSATION,"","THORNELL,DOUGLASS",01/01/10,03/31/10,SHARED EMPLOYEE,"13,442.76",FISCAL YEAR 2010,"","","","THORNELL,DOUGLASS"
,OFFICE OF THE SPEAKER,2010Q1,PERSONNEL COMPENSATION,"","THORNELL,DOUGLASS",01/01/10,01/02/10,STAFF ASSISTANT - CORRES,"2,560.50",FISCAL YEAR 2010,"","","",DO
,OFFICE OF THE SPEAKER,2010Q1,PERSONNEL COMPENSATION,"","VEITCH, ALEXANDRA N",01/01/10,03/31/10,DIRECTOR OF SPEECHWRITING,"28,165.50",FISCAL YEAR 2010,"","","","VEITCH, ALEXANDRA N"
,OFFICE OF THE SPEAKER,2010Q1,PERSONNEL COMPENSATION,"","WIDMANN,MICHELLE C",01/01/10,03/31/10,STAFF ASSISTANT,"7,681.50",FISCAL YEAR 2010,"","","","WIDMANN,MICHELLE C"
,OFFICE OF THE SPEAKER,2010Q1,PERSONNEL COMPENSATION,"","WOOTERS III,CHARLES R",01/01/10,03/31/10,DIRECTOR,"33,286.50",FISCAL YEAR 2010,"","","","WOOTERS III,CHARLES R"
,OFFICE OF THE SPEAKER,2010Q1,TRAVEL,"",01­07       P1 10SH0100192      ELISA SHYU,11/21/09,12/06/09,"TAXI, PARKING, TOLLS",203.00,FISCAL YEAR 2010,"","","",01­07       P1 10SH0100192      ELISA SHYU
,OFFICE OF THE SPEAKER,2010Q1,TRAVEL,"",01­07       P1 10SH0100193      KELLY E BERENS,11/24/09,12/07/09,"TAXI, PARKING, TOLLS",83.00,FISCAL YEAR 2010,"","","",01­07       P1 10SH0100193      KELLY E BERENS
,OFFICE OF THE SPEAKER,2010Q1,TRAVEL,"",01­12       P1 10SH0100217      CITIBANK GOV CARD SERVICE,11/08/09,11/16/09,COMMERCIAL TRANSPORTATION,972.20,FISCAL YEAR 2010,"","","",01­12       P1 10SH0100217      CITIBANK GOV CARD SERVICE
,OFFICE OF THE SPEAKER,2010Q1,TRAVEL,"",01­12       P1 10SH0100218           DO,11/09/09,11/09/09,COMMERCIAL TRANSPORTATION,74.60,FISCAL YEAR 2010,"","","",01­12       P1 10SH0100218           DO
,OFFICE OF THE SPEAKER,2010Q1,TRAVEL,"",01­12       P1 10SH0100219           DO,11/09/09,11/09/09,COMMERCIAL TRANSPORTATION,292.60,FISCAL YEAR 2010,"","","",01­12       P1 10SH0100219           DO
,OFFICE OF THE SPEAKER,2010Q1,TRAVEL,"",01­12       P1 10SH0100220           DO,11/13/09,11/16/09,LODGING,"1,276.85",FISCAL YEAR 2010,"","","",01­12       P1 10SH0100220           DO
,OFFICE OF THE SPEAKER,2010Q1,TRAVEL,"",01­12       P1 10SH0100221           DO,11/13/09,11/13/09,COMMERCIAL TRANSPORTATION,218.20,FISCAL YEAR 2010,"","","",01­12       P1 10SH0100221           DO
,OFFICE OF THE SPEAKER,2010Q1,TRAVEL,"",01­12       P1 10SH0100222           DO,11/15/09,11/15/09,COMMERCIAL TRANSPORTATION,92.60,FISCAL YEAR 2010,"","","",01­12       P1 10SH0100222           DO
,OFFICE OF THE SPEAKER,2010Q1,TRAVEL,"",01­12       P1 10SH0100223           DO,11/13/09,11/15/09,LODGING,486.31,FISCAL YEAR 2010,"","","",01­12       P1 10SH0100223           DO
,OFFICE OF THE SPEAKER,2010Q1,TRAVEL,"",01­27       P1 10SH0100226      CITIBANK GOV CARD SERVICE,01/08/10,01/11/10,COMMERCIAL TRANSPORTATION,767.40,FISCAL YEAR 2010,"","","",01­27       P1 10SH0100226      CITIBANK GOV CARD SERVICE
,OFFICE OF THE SPEAKER,2010Q1,TRAVEL,"",01­27       P1 10SH0100227           DO,01/11/10,01/12/10,LODGING,138.60,FISCAL YEAR 2010,"","","",01­27       P1 10SH0100227           DO
,OFFICE OF THE SPEAKER,2010Q1,TRAVEL,"",01­27       P1 10SH0100228           DO,01/11/10,01/12/10,CAR RENTAL,188.89,FISCAL YEAR 2010,"","","",01­27       P1 10SH0100228           DO
,OFFICE OF THE SPEAKER,2010Q1,TRAVEL,"",01­27       P1 10SH0100229           DO,01/08/10,01/12/10,MEALS,40.94,FISCAL YEAR 2010,"","","",01­27       P1 10SH0100229           DO
,OFFICE OF THE SPEAKER,2010Q1,TRAVEL,"",01­27       P1 10SH0100230           DO,01/07/10,01/10/10,MEALS,46.03,FISCAL YEAR 2010,"","","",01­27       P1 10SH0100230           DO
,OFFICE OF THE SPEAKER,2010Q1,TRAVEL,"",01­27       P1 10SH0100235           DO,12/03/09,12/03/09,COMMERCIAL TRANSPORTATION,95.60,FISCAL YEAR 2010,"","","",01­27       P1 10SH0100235           DO
,OFFICE OF THE SPEAKER,2010Q1,TRAVEL,"",01­27       P1 10SH0100236           DO,12/03/09,12/03/09,LODGING,697.97,FISCAL YEAR 2010,"","","",01­27       P1 10SH0100236           DO
,OFFICE OF THE SPEAKER,2010Q1,TRAVEL,"",01­27       P1 10SH0100237           DO,12/07/09,12/07/09,COMMERCIAL TRANSPORTATION,492.60,FISCAL YEAR 2010,"","","",01­27       P1 10SH0100237           DO
,OFFICE OF THE SPEAKER,2010Q1,TRAVEL,"",01­27       P1 10SH0100224      ELISA SHYU,12/15/09,01/12/10,"TAXI, PARKING, TOLLS",86.00,FISCAL YEAR 2010,"","","",01­27       P1 10SH0100224      ELISA SHYU
,OFFICE OF THE SPEAKER,2010Q1,TRAVEL,"",01­27       P1 10SH0100225      KELLY E BERENS,01/06/10,01/06/10,"TAXI, PARKING, TOLLS",21.00,FISCAL YEAR 2010,"","","",01­27       P1 10SH0100225      KELLY E BERENS
,OFFICE OF THE SPEAKER,2010Q1,TRAVEL,"",01­28       P1 10SH0100261      KATE KNUDSON,12/21/09,12/21/09,"TAXI, PARKING, TOLLS",28.00,FISCAL YEAR 2010,"","","",01­28       P1 10SH0100261      KATE KNUDSON
,OFFICE OF THE SPEAKER,2010Q1,TRAVEL,"",01­28       P1 10SH0100262      KELLY E BERENS,12/09/09,12/14/09,"TAXI, PARKING, TOLLS",28.00,FISCAL YEAR 2010,"","","",01­28       P1 10SH0100262      KELLY E BERENS
,OFFICE OF THE SPEAKER,2010Q1,TRAVEL,"",01­29       P1 10SH0100264      CITIBANK GOV CARD SERVICE,11/13/09,11/14/09,MEALS,21.28,FISCAL YEAR 2010,"","","",01­29       P1 10SH0100264      CITIBANK GOV CARD SERVICE
,OFFICE OF THE SPEAKER,2010Q1,TRAVEL,"",02­02   P1   10SH0100265        DO,10/26/09,10/26/09,"TAXI, PARKING, TOLLS",26.00,FISCAL YEAR 2010,"","","",02­02   P1   10SH0100265        DO
,OFFICE OF THE SPEAKER,2010Q1,TRAVEL,"",02­02   P1   10SH0100266        DO,10/26/09,10/26/09,MEALS,25.00,FISCAL YEAR 2010,"","","",02­02   P1   10SH0100266        DO
,OFFICE OF THE SPEAKER,2010Q1,TRAVEL,"",02­02   P1   10SH0100267        DO,10/26/09,10/26/09,LODGING,144.64,FISCAL YEAR 2010,"","","",02­02   P1   10SH0100267        DO
,OFFICE OF THE SPEAKER,2010Q1,TRAVEL,"",02­17   P1   10SH0100270   JAIME E LIZARRAGA,01/10/10,01/11/10,"TAXI, PARKING, TOLLS",40.00,FISCAL YEAR 2010,"","","",02­17   P1   10SH0100270   JAIME E LIZARRAGA
,OFFICE OF THE SPEAKER,2010Q1,TRAVEL,"",02­17   P1   10SH0100268   JOHN A LAWRENCE,01/05/10,01/05/10,"TAXI, PARKING, TOLLS",15.00,FISCAL YEAR 2010,"","","",02­17   P1   10SH0100268   JOHN A LAWRENCE
,OFFICE OF THE SPEAKER,2010Q1,TRAVEL,"",02­17   P1   10SH0100269   JONATHAN STIVERS,12/15/09,01/14/10,"TAXI, PARKING, TOLLS",16.00,FISCAL YEAR 2010,"","","",02­17   P1   10SH0100269   JONATHAN STIVERS
,OFFICE OF THE SPEAKER,2010Q1,TRAVEL,"",02­17   P1   10SH0100282   MARY D CASHMAN,01/27/10,01/27/10,"TAXI, PARKING, TOLLS",15.00,FISCAL YEAR 2010,"","","",02­17   P1   10SH0100282   MARY D CASHMAN
,OFFICE OF THE SPEAKER,2010Q1,TRAVEL,"",02­17   P1   10SH0100272   RICARDO QUINTO,01/27/10,01/27/10,"TAXI, PARKING, TOLLS",15.00,FISCAL YEAR 2010,"","","",02­17   P1   10SH0100272   RICARDO QUINTO
,OFFICE OF THE SPEAKER,2010Q1,TRAVEL,"",03­03   OP   10SH0100002   ARCHITECT OF THE CAPITOL,10/01/09,12/31/09,GASOLINE,200.54,FISCAL YEAR 2010,"","","",03­03   OP   10SH0100002   ARCHITECT OF THE CAPITOL
,OFFICE OF THE SPEAKER,2010Q1,TRAVEL,"",03­03   P1   10SH0100290   KATE KNUDSON,02/16/10,02/16/10,"TAXI, PARKING, TOLLS",31.00,FISCAL YEAR 2010,"","","",03­03   P1   10SH0100290   KATE KNUDSON
,OFFICE OF THE SPEAKER,2010Q1,TRAVEL,"",03­03   P1   10SH0100292        DO,01/28/10,01/29/10,LODGING,350.61,FISCAL YEAR 2010,"","","",03­03   P1   10SH0100292        DO
,OFFICE OF THE SPEAKER,2010Q1,TRAVEL,"",03­03   P1   10SH0100298        DO,01/28/10,01/29/10,MEALS,48.97,FISCAL YEAR 2010,"","","",03­03   P1   10SH0100298        DO
,OFFICE OF THE SPEAKER,2010Q1,TRAVEL,"",03­03   P1   10SH0100299        DO,01/28/10,01/29/10,"TAXI, PARKING, TOLLS",55.96,FISCAL YEAR 2010,"","","",03­03   P1   10SH0100299        DO
,OFFICE OF THE SPEAKER,2010Q1,TRAVEL,"",03­13   P1   10SH0100308   CITIBANK GOV CARD SERVICE,02/19/10,02/19/10,MEALS,16.61,FISCAL YEAR 2010,"","","",03­13   P1   10SH0100308   CITIBANK GOV CARD SERVICE
,OFFICE OF THE SPEAKER,2010Q1,TRAVEL,"",03­13   P1   10SH0100309        DO,02/19/10,02/19/10,"TAXI, PARKING, TOLLS",70.00,FISCAL YEAR 2010,"","","",03­13   P1   10SH0100309        DO
,OFFICE OF THE SPEAKER,2010Q1,TRAVEL,"",03­13   P1   10SH0100310        DO,02/19/10,02/20/10,CAR RENTAL,199.92,FISCAL YEAR 2010,"","","",03­13   P1   10SH0100310        DO
,OFFICE OF THE SPEAKER,2010Q1,TRAVEL,"",03­13   P1   10SH0100311        DO,02/20/10,02/22/10,CAR RENTAL,260.89,FISCAL YEAR 2010,"","","",03­13   P1   10SH0100311        DO
,OFFICE OF THE SPEAKER,2010Q1,TRAVEL,"",03­13   P1   10SH0100312        DO,02/20/10,02/21/10,LODGING,465.66,FISCAL YEAR 2010,"","","",03­13   P1   10SH0100312        DO
,OFFICE OF THE SPEAKER,2010Q1,TRAVEL,"",03­13   P1   10SH0100313        DO,02/21/10,02/21/10,"TAXI, PARKING, TOLLS",45.92,FISCAL YEAR 2010,"","","",03­13   P1   10SH0100313        DO
,OFFICE OF THE SPEAKER,2010Q1,TRAVEL,"",03­13   P1   10SH0100314        DO,02/20/10,02/21/10,"TAXI, PARKING, TOLLS",56.30,FISCAL YEAR 2010,"","","",03­13   P1   10SH0100314        DO
,OFFICE OF THE SPEAKER,2010Q1,TRAVEL,"",03­13   P1   10SH0100315        DO,02/20/10,02/22/10,MEALS,260.70,FISCAL YEAR 2010,"","","",03­13   P1   10SH0100315        DO
,OFFICE OF THE SPEAKER,2010Q1,TRAVEL,"",03­13   P1   10SH0100316        DO,02/20/10,02/21/10,LODGING,465.66,FISCAL YEAR 2010,"","","",03­13   P1   10SH0100316        DO
,OFFICE OF THE SPEAKER,2010Q1,TRAVEL,"",03­13   P1   10SH0100317        DO,02/15/10,02/16/10,CAR RENTAL,123.86,FISCAL YEAR 2010,"","","",03­13   P1   10SH0100317        DO
,OFFICE OF THE SPEAKER,2010Q1,TRAVEL,"",03­13   P1   10SH0100318        DO,02/18/10,02/20/10,CAR RENTAL,119.68,FISCAL YEAR 2010,"","","",03­13   P1   10SH0100318        DO
,OFFICE OF THE SPEAKER,2010Q1,TRAVEL,"",03­13   P1   10SH0100319        DO,02/15/10,02/15/10,LODGING,76.30,FISCAL YEAR 2010,"","","",03­13   P1   10SH0100319        DO
,OFFICE OF THE SPEAKER,2010Q1,TRAVEL,"",03­13   P1   10SH0100320        DO,02/18/10,02/20/10,LODGING,802.00,FISCAL YEAR 2010,"","","",03­13   P1   10SH0100320        DO
,OFFICE OF THE SPEAKER,2010Q1,TRAVEL,"",03­13   P1   10SH0100321        DO,02/18/10,02/20/10,COMMERCIAL TRANSPORTATION,"1,395.80",FISCAL YEAR 2010,"","","",03­13   P1   10SH0100321        DO
,OFFICE OF THE SPEAKER,2010Q1,TRAVEL,"",03­15   P1   10SH0100325        DO,02/19/10,02/22/10,COMMERCIAL TRANSPORTATION,780.60,FISCAL YEAR 2010,"","","",03­15   P1   10SH0100325        DO
,OFFICE OF THE SPEAKER,2010Q1,TRAVEL,"",03­15   P1   10SH0100326        DO,02/19/10,02/19/10,LODGING,646.00,FISCAL YEAR 2010,"","","",03­15   P1   10SH0100326        DO
,OFFICE OF THE SPEAKER,2010Q1,TRAVEL,"",03­15   P1   10SH0100341        DO,02/15/10,02/20/10,MEALS,341.63,FISCAL YEAR 2010,"","","",03­15   P1   10SH0100341        DO
,OFFICE OF THE SPEAKER,2010Q1,TRAVEL,"",03­15   P1   10SH0100342        DO,02/20/10,02/20/10,MEALS,3.01,FISCAL YEAR 2010,"","","",03­15   P1   10SH0100342        DO
,OFFICE OF THE SPEAKER,2010Q1,TRAVEL,"",03­15   P1   10SH0100343        DO,02/16/10,02/20/10,GASOLINE,11.90,FISCAL YEAR 2010,"","","",03­15   P1   10SH0100343        DO
,OFFICE OF THE SPEAKER,2010Q1,TRAVEL,"",03­15   P1   10SH0100322   CRYSTAL CHIU,02/19/10,02/22/10,"TAXI, PARKING, TOLLS",74.00,FISCAL YEAR 2010,"","","",03­15   P1   10SH0100322   CRYSTAL CHIU
,OFFICE OF THE SPEAKER,2010Q1,TRAVEL,"",03­15   P1   10SH0100323   ELISA SHYU,02/22/10,02/22/10,"TAXI, PARKING, TOLLS",18.00,FISCAL YEAR 2010,"","","",03­15   P1   10SH0100323   ELISA SHYU
,OFFICE OF THE SPEAKER,2010Q1,TRAVEL,"",03­15   P1   10SH0100330        DO,01/12/10,02/03/10,"TAXI, PARKING, TOLLS",76.00,FISCAL YEAR 2010,"","","",03­15   P1   10SH0100330        DO
,OFFICE OF THE SPEAKER,2010Q1,TRAVEL,"",03­15   P1   10SH0100329   JONATHAN STIVERS,02/04/10,02/05/10,"TAXI, PARKING, TOLLS",16.00,FISCAL YEAR 2010,"","","",03­15   P1   10SH0100329   JONATHAN STIVERS
,OFFICE OF THE SPEAKER,2010Q1,TRAVEL,"",03­15   P1   10SH0100324   KELLY E BERENS,01/27/10,02/20/10,"TAXI, PARKING, TOLLS",84.00,FISCAL YEAR 2010,"","","",03­15   P1   10SH0100324   KELLY E BERENS
,OFFICE OF THE SPEAKER,2010Q1,TRAVEL,"",03­15   P1   10SH0100331        DO,02/24/10,02/25/10,"TAXI, PARKING, TOLLS",41.00,FISCAL YEAR 2010,"","","",03­15   P1   10SH0100331        DO
,OFFICE OF THE SPEAKER,2010Q1,TRAVEL,"",03­30   P1   10SH0100368   CITIBANK GOV CARD SERVICE,02/28/10,03/01/10,COMMERCIAL TRANSPORTATION,738.80,FISCAL YEAR 2010,"","","",03­30   P1   10SH0100368   CITIBANK GOV CARD SERVICE
,OFFICE OF THE SPEAKER,2010Q1,TRAVEL,"",03­30   P1   10SH0100369        DO,02/28/10,02/28/10,LODGING,227.12,FISCAL YEAR 2010,"","","",03­30   P1   10SH0100369        DO
,OFFICE OF THE SPEAKER,2010Q1,TRAVEL,"",03­30   P1   10SH0100370        DO,02/28/10,03/01/10,CAR RENTAL,411.81,FISCAL YEAR 2010,"","","",03­30   P1   10SH0100370        DO
,OFFICE OF THE SPEAKER,2010Q1,TRAVEL,"",03­30   P1   10SH0100371        DO,03/01/10,03/01/10,GASOLINE,14.90,FISCAL YEAR 2010,"","","",03­30   P1   10SH0100371        DO
,OFFICE OF THE SPEAKER,2010Q1,TRAVEL,"",03­30   P1   10SH0100372        DO,02/28/10,03/01/10,MEALS,111.48,FISCAL YEAR 2010,"","","",03­30   P1   10SH0100372        DO
,OFFICE OF THE SPEAKER,2010Q1,TRAVEL,"",03­30   P1   10SH0100344   CRYSTAL CHIU,03/05/10,03/06/10,"TAXI, PARKING, TOLLS",22.00,FISCAL YEAR 2010,"","","",03­30   P1   10SH0100344   CRYSTAL CHIU
,OFFICE OF THE SPEAKER,2010Q1,TRAVEL,"",03­30   P1   10SH0100345        DO,02/28/10,03/01/10,"TAXI, PARKING, TOLLS",38.00,FISCAL YEAR 2010,"","","",03­30   P1   10SH0100345        DO
,OFFICE OF THE SPEAKER,2010Q1,TRAVEL,"",03­30   P1   10SH0100346   ELISA SHYU,02/24/10,03/03/10,"TAXI, PARKING, TOLLS",51.00,FISCAL YEAR 2010,"","","",03­30   P1   10SH0100346   ELISA SHYU
,OFFICE OF THE SPEAKER,2010Q1,TRAVEL,"",03­30   P1   10SH0100353   JAIME E LIZARRAGA,02/18/10,02/20/10,MEALS,20.18,FISCAL YEAR 2010,"","","",03­30   P1   10SH0100353   JAIME E LIZARRAGA
,OFFICE OF THE SPEAKER,2010Q1,TRAVEL,"",03­30   P1   10SH0100354        DO,02/18/10,02/20/10,"TAXI, PARKING, TOLLS",88.00,FISCAL YEAR 2010,"","","",03­30   P1   10SH0100354        DO
,OFFICE OF THE SPEAKER,2010Q1,TRAVEL,"",03­30   P1   10SH0100355        DO,02/18/10,02/20/10,TRAVEL REIMBURSEMENT,50.00,FISCAL YEAR 2010,"","","",03­30   P1   10SH0100355        DO
,OFFICE OF THE SPEAKER,2010Q1,TRAVEL,"",03­30 P1 10SH0100357          KATE KNUDSON,02/28/10,03/01/10,MEALS,29.26,FISCAL YEAR 2010,"","","",03­30 P1 10SH0100357          KATE KNUDSON
,OFFICE OF THE SPEAKER,2010Q1,TRAVEL,"",03­30 P1 10SH0100359               DO,02/28/10,03/01/10,LODGING,181.47,FISCAL YEAR 2010,"","","",03­30 P1 10SH0100359               DO
,OFFICE OF THE SPEAKER,2010Q1,TRAVEL,"",03­30 P1 10SH0100360               DO,02/28/10,03/01/10,"TAXI, PARKING, TOLLS",24.00,FISCAL YEAR 2010,"","","",03­30 P1 10SH0100360               DO
,OFFICE OF THE SPEAKER,2010Q1,TRAVEL,"",03­30 P1 10SH0100362               DO,02/28/10,02/28/10,TRAVEL REIMBURSEMENT,15.89,FISCAL YEAR 2010,"","","",03­30 P1 10SH0100362               DO
,OFFICE OF THE SPEAKER,2010Q1,TRAVEL,"",03­30 P1 10SH0100356          KELLY E BERENS,02/28/10,03/03/10,"TAXI, PARKING, TOLLS",47.00,FISCAL YEAR 2010,"","","",03­30 P1 10SH0100356          KELLY E BERENS
,OFFICE OF THE SPEAKER,2010Q1,"RENT, COMMUNICATION, UTILITIES","",01­07       P1    10SH0100187     FEDERAL EXPRESS,11/10/09,11/17/09,POSTAGE/COURIER/BOX RENTAL,32.07,FISCAL YEAR 2010,"","","",01­07       P1    10SH0100187     FEDERAL EXPRESS
,OFFICE OF THE SPEAKER,2010Q1,"RENT, COMMUNICATION, UTILITIES","",01­07       P1    10SH0100203              DO,11/09/09,11/09/09,POSTAGE/COURIER/BOX RENTAL,5.54,FISCAL YEAR 2010,"","","",01­07       P1    10SH0100203              DO
,OFFICE OF THE SPEAKER,2010Q1,"RENT, COMMUNICATION, UTILITIES","",01­07       P1    10SH0100205              DO,10/21/09,10/27/09,POSTAGE/COURIER/BOX RENTAL,50.09,FISCAL YEAR 2010,"","","",01­07       P1    10SH0100205              DO
,OFFICE OF THE SPEAKER,2010Q1,"RENT, COMMUNICATION, UTILITIES","",01­07       P1    10SH0100206              DO,10/30/09,10/30/09,POSTAGE/COURIER/BOX RENTAL,17.18,FISCAL YEAR 2010,"","","",01­07       P1    10SH0100206              DO
,OFFICE OF THE SPEAKER,2010Q1,"RENT, COMMUNICATION, UTILITIES","",01­27       P1    10SH0100234     CITIBANK GOV CARD SERVICE,12/11/09,12/17/09,RECORDING (OUTSIDE),34.83,FISCAL YEAR 2010,"","","",01­27       P1    10SH0100234     CITIBANK GOV CARD SERVICE
,OFFICE OF THE SPEAKER,2010Q1,"RENT, COMMUNICATION, UTILITIES","",01­28       S4    10028001003,12/01/09,12/31/09,RECORDING (TRANSFER),840.00,FISCAL YEAR 2010,"","","",01­28       S4    10028001003
,OFFICE OF THE SPEAKER,2010Q1,"RENT, COMMUNICATION, UTILITIES","",01­28       P1    10SH0100239     FEDERAL EXPRESS,12/15/09,12/15/09,POSTAGE/COURIER/BOX RENTAL,64.14,FISCAL YEAR 2010,"","","",01­28       P1    10SH0100239     FEDERAL EXPRESS
,OFFICE OF THE SPEAKER,2010Q1,"RENT, COMMUNICATION, UTILITIES","",01­28       P1    10SH0100240              DO,12/22/09,12/22/09,POSTAGE/COURIER/BOX RENTAL,5.64,FISCAL YEAR 2010,"","","",01­28       P1    10SH0100240              DO
,OFFICE OF THE SPEAKER,2010Q1,"RENT, COMMUNICATION, UTILITIES","",01­28       P1    10SH0100245              DO,12/02/09,12/03/09,POSTAGE/COURIER/BOX RENTAL,11.48,FISCAL YEAR 2010,"","","",01­28       P1    10SH0100245              DO
,OFFICE OF THE SPEAKER,2010Q1,"RENT, COMMUNICATION, UTILITIES","",01­28       P1    10SH0100255              DO,11/18/09,11/23/09,POSTAGE/COURIER/BOX RENTAL,33.92,FISCAL YEAR 2010,"","","",01­28       P1    10SH0100255              DO
,OFFICE OF THE SPEAKER,2010Q1,"RENT, COMMUNICATION, UTILITIES","",01­28       P1    10SH0100250     PR NEWSWIRE,12/01/09,12/31/09,NEWS WIRE SERVICE,"1,000.00",FISCAL YEAR 2010,"","","",01­28       P1    10SH0100250     PR NEWSWIRE
,OFFICE OF THE SPEAKER,2010Q1,"RENT, COMMUNICATION, UTILITIES","","02­01       P1    10SH0100251     EFE NEWS SERVICE, INC",12/01/09,12/31/09,NEWS WIRE SERVICE,550.15,FISCAL YEAR 2010,"","","","02­01       P1    10SH0100251     EFE NEWS SERVICE, INC"
,OFFICE OF THE SPEAKER,2010Q1,"RENT, COMMUNICATION, UTILITIES","",02­17       P1    10SH0100280              DO,01/01/10,01/31/10,NEWS WIRE SERVICE,550.15,FISCAL YEAR 2010,"","","",02­17       P1    10SH0100280              DO
,OFFICE OF THE SPEAKER,2010Q1,"RENT, COMMUNICATION, UTILITIES","",02­17       P1    10SH0100278     FEDERAL EXPRESS,12/22/09,12/22/09,POSTAGE/COURIER/BOX RENTAL,56.70,FISCAL YEAR 2010,"","","",02­17       P1    10SH0100278     FEDERAL EXPRESS
,OFFICE OF THE SPEAKER,2010Q1,"RENT, COMMUNICATION, UTILITIES","",02­17       P1    10SH0100277     HAGUE QUALITY WATER,01/01/10,01/31/10,EQUIPMENT RENTAL,504.00,FISCAL YEAR 2010,"","","",02­17       P1    10SH0100277     HAGUE QUALITY WATER
,OFFICE OF THE SPEAKER,2010Q1,"RENT, COMMUNICATION, UTILITIES","",03­03       P1    10SH0100304     CITIBANK GOV CARD SERVICE,01/09/10,01/17/10,RECORDING (OUTSIDE),150.32,FISCAL YEAR 2010,"","","",03­03       P1    10SH0100304     CITIBANK GOV CARD SERVICE
,OFFICE OF THE SPEAKER,2010Q1,"RENT, COMMUNICATION, UTILITIES","",03­03       P1    10SH0100291     CRYSTAL CHIU,01/12/10,01/12/10,UTILITIES,9.95,FISCAL YEAR 2010,"","","",03­03       P1    10SH0100291     CRYSTAL CHIU
,OFFICE OF THE SPEAKER,2010Q1,"RENT, COMMUNICATION, UTILITIES","",03­03       P1    10SH0100287     FEDERAL EXPRESS,01/13/10,01/13/10,POSTAGE/COURIER/BOX RENTAL,15.15,FISCAL YEAR 2010,"","","",03­03       P1    10SH0100287     FEDERAL EXPRESS
,OFFICE OF THE SPEAKER,2010Q1,"RENT, COMMUNICATION, UTILITIES","",03­03       P1    10SH0100295     HAGUE QUALITY WATER,02/15/10,02/15/10,EQUIPMENT RENTAL,504.00,FISCAL YEAR 2010,"","","",03­03       P1    10SH0100295     HAGUE QUALITY WATER
,OFFICE OF THE SPEAKER,2010Q1,"RENT, COMMUNICATION, UTILITIES","",03­15       P1    10SH0100334     FEDERAL EXPRESS,01/22/10,01/25/10,POSTAGE/COURIER/BOX RENTAL,16.21,FISCAL YEAR 2010,"","","",03­15       P1    10SH0100334     FEDERAL EXPRESS
,OFFICE OF THE SPEAKER,2010Q1,"RENT, COMMUNICATION, UTILITIES","","03­30       P1    10SH0100351     EFE NEWS SERVICE, INC",02/01/10,02/28/10,NEWS WIRE SERVICE,550.15,FISCAL YEAR 2010,"","","","03­30       P1    10SH0100351     EFE NEWS SERVICE, INC"
,OFFICE OF THE SPEAKER,2010Q1,"RENT, COMMUNICATION, UTILITIES","",03­30       P1    10SH0100350     FEDERAL EXPRESS,01/28/10,01/28/10,POSTAGE/COURIER/BOX RENTAL,8.28,FISCAL YEAR 2010,"","","",03­30       P1    10SH0100350     FEDERAL EXPRESS
,OFFICE OF THE SPEAKER,2010Q1,PRINTING AND REPRODUCTION,"","01­07       P1    10SH0100185      DAVID L. ANDRUKITUS, INC",11/04/09,11/04/09,PRINTING AND REPRODUCTION,97.50,FISCAL YEAR 2010,"","","","01­07       P1    10SH0100185      DAVID L. ANDRUKITUS, INC"
,OFFICE OF THE SPEAKER,2010Q1,PRINTING AND REPRODUCTION,"",01­07       P1    10SH0100186               DO,11/19/09,11/19/09,PRINTING AND REPRODUCTION,197.50,FISCAL YEAR 2010,"","","",01­07       P1    10SH0100186               DO
,OFFICE OF THE SPEAKER,2010Q1,PRINTING AND REPRODUCTION,"",01­22       S3    10022000088,01/01/10,01/31/10,PHOTOGRAPHIC (TRANSFER),427.70,FISCAL YEAR 2010,"","","",01­22       S3    10022000088
,OFFICE OF THE SPEAKER,2010Q1,PRINTING AND REPRODUCTION,"","01­28       P1    10SH0100238      DAVID L. ANDRUKITUS, INC",12/31/09,12/31/09,PRINTING AND REPRODUCTION,627.50,FISCAL YEAR 2010,"","","","01­28       P1    10SH0100238      DAVID L. ANDRUKITUS, INC"
,OFFICE OF THE SPEAKER,2010Q1,PRINTING AND REPRODUCTION,"",02­17       P1    10SH0100279               DO,12/31/09,12/31/09,PRINTING AND REPRODUCTION,397.50,FISCAL YEAR 2010,"","","",02­17       P1    10SH0100279               DO
,OFFICE OF THE SPEAKER,2010Q1,PRINTING AND REPRODUCTION,"",02­23       S3    10054000155,02/01/10,02/28/10,PHOTOGRAPHIC (TRANSFER),863.65,FISCAL YEAR 2010,"","","",02­23       S3    10054000155
,OFFICE OF THE SPEAKER,2010Q1,PRINTING AND REPRODUCTION,"",03­25       S3    10084000173,03/01/10,03/31/10,PHOTOGRAPHIC (TRANSFER),"1,168.86",FISCAL YEAR 2010,"","","",03­25       S3    10084000173
,OFFICE OF THE SPEAKER,2010Q1,OTHER SERVICES,"",01­07       P1 10SH0100194                     BERNARD RAIMO,12/01/09,12/31/09,CONSULTANT CONTRACT SERVICE,"7,628.00",FISCAL YEAR 2010,"","","",01­07       P1 10SH0100194                     BERNARD RAIMO
,OFFICE OF THE SPEAKER,2010Q1,OTHER SERVICES,"",01­28   P1   10SH0100241                     DO,01/01/10,01/31/10,CONSULTANT CONTRACT SERVICE,"7,628.00",FISCAL YEAR 2010,"","","",01­28   P1   10SH0100241                     DO
,OFFICE OF THE SPEAKER,2010Q1,OTHER SERVICES,"",02­17   P1   10SH0100271                BURRELLE`S INFORMATION,01/01/10,01/31/10,CLIPPING SERVICE,649.07,FISCAL YEAR 2010,"","","",02­17   P1   10SH0100271                BURRELLE`S INFORMATION
,OFFICE OF THE SPEAKER,2010Q1,OTHER SERVICES,"",03­03   P1   10SH0100293                HERITAGE REPORTING CORP,02/01/10,02/01/10,STENOGRAPHIC REPORTING,618.84,FISCAL YEAR 2010,"","","",03­03   P1   10SH0100293                HERITAGE REPORTING CORP
,OFFICE OF THE SPEAKER,2010Q1,OTHER SERVICES,"",03­08   P1   10SH0100306                BERNARD RAIMO,02/01/10,02/28/10,CONSULTANT CONTRACT SERVICE,"7,628.00",FISCAL YEAR 2010,"","","",03­08   P1   10SH0100306                BERNARD RAIMO
,OFFICE OF THE SPEAKER,2010Q1,OTHER SERVICES,"",03­15   P1   10SH0100335                HERITAGE REPORTING CORP,02/04/10,02/04/10,STENOGRAPHIC REPORTING,249.00,FISCAL YEAR 2010,"","","",03­15   P1   10SH0100335                HERITAGE REPORTING CORP
,OFFICE OF THE SPEAKER,2010Q1,OTHER SERVICES,"",03­15   P1   10SH0100336                     DO,02/16/10,02/16/10,STENOGRAPHIC REPORTING,197.50,FISCAL YEAR 2010,"","","",03­15   P1   10SH0100336                     DO
,OFFICE OF THE SPEAKER,2010Q1,SUPPLIES AND MATERIALS,"",01­07   P1   10SH0100208      BURRELLE`S INFORMATION,11/01/09,11/30/09,PUBLICATION REF MATERIAL,800.02,FISCAL YEAR 2010,"","","",01­07   P1   10SH0100208      BURRELLE`S INFORMATION
,OFFICE OF THE SPEAKER,2010Q1,SUPPLIES AND MATERIALS,"",01­07   P1   10SH0100198      CAPITAL GIFTS AND AWARDS,11/23/09,11/23/09,OFFICE SUPPLIES OUTSIDE,"3,229.68",FISCAL YEAR 2010,"","","",01­07   P1   10SH0100198      CAPITAL GIFTS AND AWARDS
,OFFICE OF THE SPEAKER,2010Q1,SUPPLIES AND MATERIALS,"",01­07   P1   10SH0100195      CAPITOLHOST,11/20/09,11/20/09,FOOD & BEVERAGE,45.00,FISCAL YEAR 2010,"","","",01­07   P1   10SH0100195      CAPITOLHOST
,OFFICE OF THE SPEAKER,2010Q1,SUPPLIES AND MATERIALS,"",01­07   P1   10SH0100196           DO,11/18/09,11/18/09,FOOD & BEVERAGE,67.50,FISCAL YEAR 2010,"","","",01­07   P1   10SH0100196           DO
,OFFICE OF THE SPEAKER,2010Q1,SUPPLIES AND MATERIALS,"",01­07   P1   10SH0100197           DO,12/02/09,12/02/09,FOOD & BEVERAGE,67.50,FISCAL YEAR 2010,"","","",01­07   P1   10SH0100197           DO
,OFFICE OF THE SPEAKER,2010Q1,SUPPLIES AND MATERIALS,"",01­07   P1   10SH0100188      CRYSTAL SPRINGS,10/21/09,11/13/09,FOOD & BEVERAGE,"2,065.68",FISCAL YEAR 2010,"","","",01­07   P1   10SH0100188      CRYSTAL SPRINGS
,OFFICE OF THE SPEAKER,2010Q1,SUPPLIES AND MATERIALS,"","01­07   P1   10SH0100207      EFE NEWS SERVICE, INC",11/01/09,11/30/09,PUBLICATION REF MATERIAL,550.15,FISCAL YEAR 2010,"","","","01­07   P1   10SH0100207      EFE NEWS SERVICE, INC"
,OFFICE OF THE SPEAKER,2010Q1,SUPPLIES AND MATERIALS,"",01­07   P1   10SH0100190      MILLICENT BLUFORD,12/07/09,12/07/09,HABITATION EXPENSES,165.00,FISCAL YEAR 2010,"","","",01­07   P1   10SH0100190      MILLICENT BLUFORD
,OFFICE OF THE SPEAKER,2010Q1,SUPPLIES AND MATERIALS,"",01­07   P1   10SH0100191           DO,12/07/09,12/07/09,HABITATION EXPENSES,225.00,FISCAL YEAR 2010,"","","",01­07   P1   10SH0100191           DO
,OFFICE OF THE SPEAKER,2010Q1,SUPPLIES AND MATERIALS,"",01­07   P1   10SH0100199           DO,11/30/09,11/30/09,HABITATION EXPENSES,200.00,FISCAL YEAR 2010,"","","",01­07   P1   10SH0100199           DO
,OFFICE OF THE SPEAKER,2010Q1,SUPPLIES AND MATERIALS,"",01­07   P1   10SH0100200           DO,11/23/09,11/23/09,HABITATION EXPENSES,225.00,FISCAL YEAR 2010,"","","",01­07   P1   10SH0100200           DO
,OFFICE OF THE SPEAKER,2010Q1,SUPPLIES AND MATERIALS,"",01­07   P1   10SH0100201           DO,11/30/09,11/30/09,HABITATION EXPENSES,225.00,FISCAL YEAR 2010,"","","",01­07   P1   10SH0100201           DO
,OFFICE OF THE SPEAKER,2010Q1,SUPPLIES AND MATERIALS,"",01­07   P1   10SH0100202           DO,12/14/09,12/14/09,HABITATION EXPENSES,225.00,FISCAL YEAR 2010,"","","",01­07   P1   10SH0100202           DO
,OFFICE OF THE SPEAKER,2010Q1,SUPPLIES AND MATERIALS,"",01­07   P1   10SH0100204      PR NEWSWIRE,11/01/09,11/30/09,PUBLICATION REF MATERIAL,"1,000.00",FISCAL YEAR 2010,"","","",01­07   P1   10SH0100204      PR NEWSWIRE
,OFFICE OF THE SPEAKER,2010Q1,SUPPLIES AND MATERIALS,"","01­07   P1   10SH0100189      SOUTHWEST DISTRIBUTION, INC",01/01/10,03/31/10,PUBLICATION REF MATERIAL,"3,344.40",FISCAL YEAR 2010,"","","","01­07   P1   10SH0100189      SOUTHWEST DISTRIBUTION, INC"
,OFFICE OF THE SPEAKER,2010Q1,SUPPLIES AND MATERIALS,"",01­27   P1   10SH0100231      CITIBANK GOV CARD SERVICE,11/29/09,12/17/09,FOOD & BEVERAGE,739.18,FISCAL YEAR 2010,"","","",01­27   P1   10SH0100231      CITIBANK GOV CARD SERVICE
,OFFICE OF THE SPEAKER,2010Q1,SUPPLIES AND MATERIALS,"",01­28   P1   10SH0100252      BURRELLE`S INFORMATION,12/01/09,12/31/09,PUBLICATION REF MATERIAL,797.50,FISCAL YEAR 2010,"","","",01­28   P1   10SH0100252      BURRELLE`S INFORMATION
,OFFICE OF THE SPEAKER,2010Q1,SUPPLIES AND MATERIALS,"",01­28   P1   10SH0100249      CAPITAL GIFTS AND AWARDS,12/22/09,12/22/09,OFFICE SUPPLIES OUTSIDE,"1,888.71",FISCAL YEAR 2010,"","","",01­28   P1   10SH0100249      CAPITAL GIFTS AND AWARDS
,OFFICE OF THE SPEAKER,2010Q1,SUPPLIES AND MATERIALS,"",01­28   P1   10SH0100259      CRYSTAL SPRINGS,12/03/09,12/17/09,BOTTLED WATER,190.90,FISCAL YEAR 2010,"","","",01­28   P1   10SH0100259      CRYSTAL SPRINGS
,OFFICE OF THE SPEAKER,2010Q1,SUPPLIES AND MATERIALS,"",01­28   C1   NW201002604      DEER PARK,12/31/09,12/31/09,BOTTLED WATER,8.00,FISCAL YEAR 2010,"","","",01­28   C1   NW201002604      DEER PARK
,OFFICE OF THE SPEAKER,2010Q1,SUPPLIES AND MATERIALS,"",01­28   P1   10SH0100244      MILLICENT BLUFORD,01/11/10,01/11/10,HABITATION EXPENSES,225.00,FISCAL YEAR 2010,"","","",01­28   P1   10SH0100244      MILLICENT BLUFORD
,OFFICE OF THE SPEAKER,2010Q1,SUPPLIES AND MATERIALS,"",02­17   P1   10SH0100281      CAPITOLHOST,01/13/10,01/13/10,FOOD & BEVERAGE,67.50,FISCAL YEAR 2010,"","","",02­17   P1   10SH0100281      CAPITOLHOST
,OFFICE OF THE SPEAKER,2010Q1,SUPPLIES AND MATERIALS,"","02­17   P1   10SH0100276      E & E PUBLISHING, LLC",01/01/10,12/31/10,PUBLICATION REF MATERIAL,"5,110.00",FISCAL YEAR 2010,"","","","02­17   P1   10SH0100276      E & E PUBLISHING, LLC"
,OFFICE OF THE SPEAKER,2010Q1,SUPPLIES AND MATERIALS,"",02­17   P1   10SH0100274      MILLICENT BLUFORD,01/18/10,01/18/10,HABITATION EXPENSES,225.00,FISCAL YEAR 2010,"","","",02­17   P1   10SH0100274      MILLICENT BLUFORD
,OFFICE OF THE SPEAKER,2010Q1,SUPPLIES AND MATERIALS,"",02­17   P1   10SH0100275           DO,01/25/10,01/25/10,HABITATION EXPENSES,225.00,FISCAL YEAR 2010,"","","",02­17   P1   10SH0100275           DO
,OFFICE OF THE SPEAKER,2010Q1,SUPPLIES AND MATERIALS,"",02­23   C1   NW201005304      DEER PARK,01/31/10,01/31/10,BOTTLED WATER,8.00,FISCAL YEAR 2010,"","","",02­23   C1   NW201005304      DEER PARK
,OFFICE OF THE SPEAKER,2010Q1,SUPPLIES AND MATERIALS,"",03­03   P1   10SH0100301      CITIBANK GOV CARD SERVICE,01/05/10,01/27/10,FOOD & BEVERAGE,657.66,FISCAL YEAR 2010,"","","",03­03   P1   10SH0100301      CITIBANK GOV CARD SERVICE
,OFFICE OF THE SPEAKER,2010Q1,SUPPLIES AND MATERIALS,"",03­03   P1   10SH0100303           DO,01/06/10,01/06/10,PUBLICATION REF MATERIAL,25.90,FISCAL YEAR 2010,"","","",03­03   P1   10SH0100303           DO
,OFFICE OF THE SPEAKER,2010Q1,SUPPLIES AND MATERIALS,"",03­03   P1   10SH0100286      CRYSTAL SPRINGS,01/14/10,01/14/10,FOOD & BEVERAGE,966.36,FISCAL YEAR 2010,"","","",03­03   P1   10SH0100286      CRYSTAL SPRINGS
,OFFICE OF THE SPEAKER,2010Q1,SUPPLIES AND MATERIALS,"","03­03   P1   10SH0100300      LEADERSHIP DIRECTORIES, INC",03/02/10,03/01/11,PUBLICATION REF MATERIAL,893.00,FISCAL YEAR 2010,"","","","03­03   P1   10SH0100300      LEADERSHIP DIRECTORIES, INC"
,OFFICE OF THE SPEAKER,2010Q1,SUPPLIES AND MATERIALS,"",03­03   P1   10SH0100296      MILLICENT BLUFORD,02/01/10,02/01/10,HABITATION EXPENSES,225.00,FISCAL YEAR 2010,"","","",03­03   P1   10SH0100296      MILLICENT BLUFORD
,OFFICE OF THE SPEAKER,2010Q1,SUPPLIES AND MATERIALS,"",03­03   P1   10SH0100285      PR NEWSWIRE,01/01/10,01/31/10,PUBLICATION REF MATERIAL,"1,000.00",FISCAL YEAR 2010,"","","",03­03   P1   10SH0100285      PR NEWSWIRE
,OFFICE OF THE SPEAKER,2010Q1,SUPPLIES AND MATERIALS,"",03­09   P1   10SH0100307      NATIONAL NEWS,04/01/10,06/30/10,PUBLICATION REF MATERIAL,"2,471.08",FISCAL YEAR 2010,"","","",03­09   P1   10SH0100307      NATIONAL NEWS
,OFFICE OF THE SPEAKER,2010Q1,SUPPLIES AND MATERIALS,"",03­15   P1   10SH0100327      BURRELLE`S INFORMATION,02/02/10,02/28/10,PUBLICATION REF MATERIAL,643.03,FISCAL YEAR 2010,"","","",03­15   P1   10SH0100327      BURRELLE`S INFORMATION
,OFFICE OF THE SPEAKER,2010Q1,SUPPLIES AND MATERIALS,"",03­15   P1   10SH0100338      CITIBANK GOV CARD SERVICE,02/19/10,02/19/10,PUBLICATION REF MATERIAL,4.00,FISCAL YEAR 2010,"","","",03­15   P1   10SH0100338      CITIBANK GOV CARD SERVICE
,OFFICE OF THE SPEAKER,2010Q1,SUPPLIES AND MATERIALS,"",03­15   P1   10SH0100340           DO,02/20/10,02/20/10,PUBLICATION REF MATERIAL,0.50,FISCAL YEAR 2010,"","","",03­15   P1   10SH0100340           DO
,OFFICE OF THE SPEAKER,2010Q1,SUPPLIES AND MATERIALS,"",03­15   P1   10SH0100332      MILLICENT BLUFORD,02/22/10,02/22/10,HABITATION EXPENSES,225.00,FISCAL YEAR 2010,"","","",03­15   P1   10SH0100332      MILLICENT BLUFORD
,OFFICE OF THE SPEAKER,2010Q1,SUPPLIES AND MATERIALS,"",03­24   C1   NW201008103      DEER PARK,02/28/10,02/28/10,BOTTLED WATER,8.00,FISCAL YEAR 2010,"","","",03­24   C1   NW201008103      DEER PARK
,OFFICE OF THE SPEAKER,2010Q1,SUPPLIES AND MATERIALS,"",03­30   P1   10SH0100349      CRYSTAL SPRINGS,01/28/10,01/28/10,BOTTLED WATER,41.05,FISCAL YEAR 2010,"","","",03­30   P1   10SH0100349      CRYSTAL SPRINGS
,OFFICE OF THE SPEAKER,2010Q1,SUPPLIES AND MATERIALS,"",03­30   P1   10SH0100361      KATE KNUDSON,02/28/10,03/01/10,PUBLICATION REF MATERIAL,16.74,FISCAL YEAR 2010,"","","",03­30   P1   10SH0100361      KATE KNUDSON
,OFFICE OF THE SPEAKER,2010Q1,SUPPLIES AND MATERIALS,"",03­30   P1   10SH0100348      MILLICENT BLUFORD,03/01/10,03/01/10,HABITATION EXPENSES,225.00,FISCAL YEAR 2010,"","","",03­30   P1   10SH0100348      MILLICENT BLUFORD
,OFFICE OF THE SPEAKER,2010Q1,SUPPLIES AND MATERIALS,"","03­30 P1 10SH0100347          NATIONAL JOURNAL GROUP, INC",12/16/09,12/16/10,PUBLICATION REF MATERIAL,"2,097.00",FISCAL YEAR 2010,"","","","03­30 P1 10SH0100347          NATIONAL JOURNAL GROUP, INC"
,OFFICE OF THE SPEAKER,2010Q1,SUPPLIES AND MATERIALS,"",03­30 P1 10SH0100352          PR NEWSWIRE,02/01/10,12/31/10,PUBLICATION REF MATERIAL,"1,000.00",FISCAL YEAR 2010,"","","",03­30 P1 10SH0100352          PR NEWSWIRE
,OFFICE OF THE SPEAKER,2010Q1,SUPPLIES AND MATERIALS,"",01­28      P1 10SH0100256        CAPITOLHOST,10/21/09,10/21/09,FOOD & BEVERAGE,671.90,FISCAL YEAR 2010,"","","",01­28      P1 10SH0100256        CAPITOLHOST
,OFFICE OF THE SPEAKER,2010Q1,SUPPLIES AND MATERIALS,"",01­28      P1 10SH0100257             DO,12/09/09,12/09/09,FOOD & BEVERAGE,67.50,FISCAL YEAR 2010,"","","",01­28      P1 10SH0100257             DO
,OFFICE OF THE SPEAKER,2010Q1,SUPPLIES AND MATERIALS,"",01­28      P1 10SH0100258             DO,12/16/09,12/16/09,FOOD & BEVERAGE,67.50,FISCAL YEAR 2010,"","","",01­28      P1 10SH0100258             DO
,OFFICE OF THE SPEAKER,2010Q1,SUPPLIES AND MATERIALS,"",01­28      P1 10SH0100243        OCCASIONS CATERERS,12/14/09,12/14/09,FOOD & BEVERAGE,"5,870.00",FISCAL YEAR 2010,"","","",01­28      P1 10SH0100243        OCCASIONS CATERERS
,OFFICE OF THE SPEAKER,2010Q1,SUPPLIES AND MATERIALS,"",03­03      P1 10SH0100288        CAPITOLHOST,01/27/10,01/27/10,FOOD & BEVERAGE,67.50,FISCAL YEAR 2010,"","","",03­03      P1 10SH0100288        CAPITOLHOST
,OFFICE OF THE SPEAKER,2010Q1,SUPPLIES AND MATERIALS,"",03­03      P1 10SH0100289             DO,01/29/10,01/29/10,FOOD & BEVERAGE,45.00,FISCAL YEAR 2010,"","","",03­03      P1 10SH0100289             DO
,OFFICE OF THE SPEAKER,2010Q1,SUPPLIES AND MATERIALS,"",03­03      P1 10SH0100297             DO,01/20/10,01/20/10,FOOD & BEVERAGE,67.50,FISCAL YEAR 2010,"","","",03­03      P1 10SH0100297             DO
,OFFICE OF THE SPEAKER,2010Q1,SUPPLIES AND MATERIALS,"",03­03      P1 10SH0100294        OCCASIONS CATERERS,12/08/09,12/08/09,FOOD & BEVERAGE,"6,570.00",FISCAL YEAR 2010,"","","",03­03      P1 10SH0100294        OCCASIONS CATERERS
,OFFICE OF THE SPEAKER,2010Q1,SUPPLIES AND MATERIALS,"",03­15      P1 10SH0100333        CAPITOLHOST,02/03/10,02/03/10,FOOD & BEVERAGE,67.50,FISCAL YEAR 2010,"","","",03­15      P1 10SH0100333        CAPITOLHOST
,OFFICE OF THE SPEAKER,2010Q1,"RENT, COMMUNICATION, UTILITIES","",01­07 P1 10SH0100209          HAGUE QUALITY WATER,08/15/09,08/15/09,EQUIPMENT RENTAL,441.00,FISCAL YEAR 2009,"","","",01­07 P1 10SH0100209          HAGUE QUALITY WATER
,OFFICE OF THE SPEAKER,2010Q1,SUPPLIES AND MATERIALS,"",01­28      P1 10SH0100263      OCCASIONS CATERERS,09/09/09,09/09/09,FOOD & BEVERAGE,"3,460.00",FISCAL YEAR 2009,"","","",01­28      P1 10SH0100263      OCCASIONS CATERERS
,OFFICE OF THE MAJORITY LEADER,2010Q1,PERSONNEL COMPENSATION,"","BERNARDS, STACEY F",01/01/10,03/31/10,DEPUTY CHIEF OF STAFF,"38,750.01",FISCAL YEAR 2010,"","","","BERNARDS, STACEY F"
,OFFICE OF THE MAJORITY LEADER,2010Q1,PERSONNEL COMPENSATION,"","LIERMAN,TERRY L",01/01/10,03/31/10,CHIEF OF STAFF,"43,125.00",FISCAL YEAR 2010,"","","","LIERMAN,TERRY L"
,OFFICE OF THE MAJORITY LEADER,2010Q1,PERSONNEL COMPENSATION,"","LORENZEN,EDWARD S",01/01/10,03/31/10,SENIOR POLICY ADVISOR,"32,000.01",FISCAL YEAR 2010,"","","","LORENZEN,EDWARD S"
,OFFICE OF THE MAJORITY LEADER,2010Q1,PERSONNEL COMPENSATION,"","ABOUCHAR, KEITH S",01/01/10,03/31/10,SENIOR POLICY ADVISOR,"32,000.01",FISCAL YEAR 2010,"","","","ABOUCHAR, KEITH S"
,OFFICE OF THE MAJORITY LEADER,2010Q1,PERSONNEL COMPENSATION,"","BEACH,MAUREEN M",01/01/10,03/31/10,PRESS AND RESEARCH ASSISTANT,"12,159.99",FISCAL YEAR 2010,"","","","BEACH,MAUREEN M"
,OFFICE OF THE MAJORITY LEADER,2010Q1,PERSONNEL COMPENSATION,"","BOHANAN JR, JOHN L",01/01/10,03/31/10,CONSTITUENT LIAISON,"1,500.00",FISCAL YEAR 2010,"","","","BOHANAN JR, JOHN L"
,OFFICE OF THE MAJORITY LEADER,2010Q1,PERSONNEL COMPENSATION,"","BURNES, AUSTIN W",01/01/10,03/31/10,DEPUTY FLOOR DIRECTOR,"18,000.00",FISCAL YEAR 2010,"","","","BURNES, AUSTIN W"
,OFFICE OF THE MAJORITY LEADER,2010Q1,PERSONNEL COMPENSATION,"","COVEY-BRANDT, ALEXIS",01/01/10,03/31/10,FLOOR DIRECTOR,"32,000.01",FISCAL YEAR 2010,"","","","COVEY-BRANDT, ALEXIS"
,OFFICE OF THE MAJORITY LEADER,2010Q1,PERSONNEL COMPENSATION,"","DAVID, MARTA M",01/01/10,03/31/10,DIRECTOR OF EXTERNAL RELATIONS,"41,250.00",FISCAL YEAR 2010,"","","","DAVID, MARTA M"
,OFFICE OF THE MAJORITY LEADER,2010Q1,PERSONNEL COMPENSATION,"","EISENBERG,MICHAEL",01/01/10,03/31/10,FLOOR ASSISTANT,"13,125.00",FISCAL YEAR 2010,"","","","EISENBERG,MICHAEL"
,OFFICE OF THE MAJORITY LEADER,2010Q1,PERSONNEL COMPENSATION,"","FRY,COURTNEY",01/01/10,03/31/10,EXECUTIVE ASSISTANT/OFFICE MAN,"12,500.01",FISCAL YEAR 2010,"","","","FRY,COURTNEY"
,OFFICE OF THE MAJORITY LEADER,2010Q1,PERSONNEL COMPENSATION,"","GOFF,SHUWANZA R",01/01/10,03/31/10,STAFF ASSISTANT,"7,500.00",FISCAL YEAR 2010,"","","","GOFF,SHUWANZA R"
,OFFICE OF THE MAJORITY LEADER,2010Q1,PERSONNEL COMPENSATION,"","GOFF,SHUWANZA R",12/01/09,02/28/10,STAFF ASSISTANT (OVERTIME),"2,453.70",FISCAL YEAR 2010,"","","",DO
,OFFICE OF THE MAJORITY LEADER,2010Q1,PERSONNEL COMPENSATION,"","GOODMAN,ROBERT",01/01/10,03/31/10,SPEECHWRITER,"15,000.00",FISCAL YEAR 2010,"","","","GOODMAN,ROBERT"
,OFFICE OF THE MAJORITY LEADER,2010Q1,PERSONNEL COMPENSATION,"","GRANT,KATHRYN L",01/01/10,03/31/10,DEPUTY PRESS SECRETARY,"15,000.00",FISCAL YEAR 2010,"","","","GRANT,KATHRYN L"
,OFFICE OF THE MAJORITY LEADER,2010Q1,PERSONNEL COMPENSATION,"","GREER, BRIAN A",01/01/10,01/03/10,ASSISTANT COUNSEL,"3,716.66",FISCAL YEAR 2010,"","","","GREER, BRIAN A"
,OFFICE OF THE MAJORITY LEADER,2010Q1,PERSONNEL COMPENSATION,"","HUGHES,JOHN C",01/01/10,03/31/10,SENIOR POLICY ADVISOR,"30,999.99",FISCAL YEAR 2010,"","","","HUGHES,JOHN C"
,OFFICE OF THE MAJORITY LEADER,2010Q1,PERSONNEL COMPENSATION,"","JACOBY,DREW",01/01/10,03/31/10,SPECIAL ASSISTANT,"9,999.99",FISCAL YEAR 2010,"","","","JACOBY,DREW"
,OFFICE OF THE MAJORITY LEADER,2010Q1,PERSONNEL COMPENSATION,"","JACOBY,DREW",12/01/09,12/30/09,STAFF ASSISTANT (OVERTIME),969.04,FISCAL YEAR 2010,"","","",DO
,OFFICE OF THE MAJORITY LEADER,2010Q1,PERSONNEL COMPENSATION,"","KRUEGER,MARY R",01/01/10,03/31/10,STAFF ASSISTANT,"7,500.00",FISCAL YEAR 2010,"","","","KRUEGER,MARY R"
,OFFICE OF THE MAJORITY LEADER,2010Q1,PERSONNEL COMPENSATION,"","KRUEGER,MARY R",12/01/09,02/28/10,STAFF ASSISTANT (OVERTIME),"2,308.12",FISCAL YEAR 2010,"","","",DO
,OFFICE OF THE MAJORITY LEADER,2010Q1,PERSONNEL COMPENSATION,"","LEMOS, JESSICA A",01/01/10,03/31/10,LEGISLATIVE COORDINATOR,"16,250.01",FISCAL YEAR 2010,"","","","LEMOS, JESSICA A"
,OFFICE OF THE MAJORITY LEADER,2010Q1,PERSONNEL COMPENSATION,"","LI TRENTA, VIRGINIA SIMONE",01/01/10,03/31/10,SCHED AND DIR OF SPECIAL EVENT,"22,500.00",FISCAL YEAR 2010,"","","","LI TRENTA, VIRGINIA SIMONE"
,OFFICE OF THE MAJORITY LEADER,2010Q1,PERSONNEL COMPENSATION,"","MUNOZ, DENIS",01/01/10,03/31/10,SYSTEM ADMINISTRATOR,"12,500.01",FISCAL YEAR 2010,"","","","MUNOZ, DENIS"
,OFFICE OF THE MAJORITY LEADER,2010Q1,PERSONNEL COMPENSATION,"","MURRAY, ELIZABETH M",01/01/10,03/31/10,SENIOR POLICY ADVISOR,"30,999.99",FISCAL YEAR 2010,"","","","MURRAY, ELIZABETH M"
,OFFICE OF THE MAJORITY LEADER,2010Q1,PERSONNEL COMPENSATION,"","PALACIO,RICHARD A",01/01/10,03/31/10,DEPUTY DIRECTOR OF MEMBER SVCS,"19,200.00",FISCAL YEAR 2010,"","","","PALACIO,RICHARD A"
,OFFICE OF THE MAJORITY LEADER,2010Q1,PERSONNEL COMPENSATION,"","REPKO,MARY F",01/01/10,03/31/10,SENIOR POLICY ADVISOR,"32,000.01",FISCAL YEAR 2010,"","","","REPKO,MARY F"
,OFFICE OF THE MAJORITY LEADER,2010Q1,PERSONNEL COMPENSATION,"","ROMICK, BRIAN",01/01/10,03/31/10,MEMBER SERVICES DIRECTOR,"35,000.01",FISCAL YEAR 2010,"","","","ROMICK, BRIAN"
,OFFICE OF THE MAJORITY LEADER,2010Q1,PERSONNEL COMPENSATION,"","SHOTT,DANIEL",01/19/10,03/31/10,STAFF ASSISTANT,"4,999.99",FISCAL YEAR 2010,"","","","SHOTT,DANIEL"
,OFFICE OF THE MAJORITY LEADER,2010Q1,PERSONNEL COMPENSATION,"","SHOTT,DANIEL",01/19/10,02/28/10,STAFF ASSISTANT (OVERTIME),"1,072.71",FISCAL YEAR 2010,"","","",DO
,OFFICE OF THE MAJORITY LEADER,2010Q1,PERSONNEL COMPENSATION,"","SIXKILLER, MARIAH S",01/01/10,03/31/10,SENIOR POLICY ADVISOR,"10,500.00",FISCAL YEAR 2010,"","","","SIXKILLER, MARIAH S"
,OFFICE OF THE MAJORITY LEADER,2010Q1,PERSONNEL COMPENSATION,"","STOCKWELL,MICHELE M",01/01/10,03/31/10,POLICY DIRECTOR,"35,840.01",FISCAL YEAR 2010,"","","","STOCKWELL,MICHELE M"
,OFFICE OF THE MAJORITY LEADER,2010Q1,TRAVEL,"",01­06   P1 10ML0100114      STEPHEN H. DWYER,10/06/09,10/06/09,"TAXI, PARKING, TOLLS",6.00,FISCAL YEAR 2010,"","","",01­06   P1 10ML0100114      STEPHEN H. DWYER
,OFFICE OF THE MAJORITY LEADER,2010Q1,TRAVEL,"",03­03   P1 10ML0100153      ELIZABETH MURRAY,01/14/10,01/14/10,"TAXI, PARKING, TOLLS",10.00,FISCAL YEAR 2010,"","","",03­03   P1 10ML0100153      ELIZABETH MURRAY
,OFFICE OF THE MAJORITY LEADER,2010Q1,TRAVEL,"",03­03 P1 10ML0100154               DO,01/12/10,01/12/10,"TAXI, PARKING, TOLLS",10.00,FISCAL YEAR 2010,"","","",03­03 P1 10ML0100154               DO
,OFFICE OF THE MAJORITY LEADER,2010Q1,TRAVEL,"",03­03 P1 10ML0100155               DO,01/06/10,01/06/10,"TAXI, PARKING, TOLLS",10.00,FISCAL YEAR 2010,"","","",03­03 P1 10ML0100155               DO
,OFFICE OF THE MAJORITY LEADER,2010Q1,TRAVEL,"",03­19 P1 10ML0100170          MARY R KRUEGER,10/09/09,11/30/09,PRIVATE OWNED VEHICLE MILEAGE,11.40,FISCAL YEAR 2010,"","","",03­19 P1 10ML0100170          MARY R KRUEGER
,OFFICE OF THE MAJORITY LEADER,2010Q1,TRAVEL,"",03­30 P1 10ML0100197          COURTNEY FRY,03/19/10,03/19/10,"TAXI, PARKING, TOLLS",10.00,FISCAL YEAR 2010,"","","",03­30 P1 10ML0100197          COURTNEY FRY
,OFFICE OF THE MAJORITY LEADER,2010Q1,"RENT, COMMUNICATION, UTILITIES","",03­17      P1 10ML0100177     CITIBANK GOV CARD SERVICE,02/04/10,02/04/10,POSTAGE/COURIER/BOX RENTAL,2.80,FISCAL YEAR 2010,"","","",03­17      P1 10ML0100177     CITIBANK GOV CARD SERVICE
,OFFICE OF THE MAJORITY LEADER,2010Q1,"RENT, COMMUNICATION, UTILITIES","",03­30      S3 10089G00037,03/01/10,03/31/10,HIR GRAPHICS (TRANSFER),70.00,FISCAL YEAR 2010,"","","",03­30      S3 10089G00037
,OFFICE OF THE MAJORITY LEADER,2010Q1,PRINTING AND REPRODUCTION,"",01­22      S3    10022000053,01/01/10,01/31/10,PHOTOGRAPHIC (TRANSFER),6.50,FISCAL YEAR 2010,"","","",01­22      S3    10022000053
,OFFICE OF THE MAJORITY LEADER,2010Q1,PRINTING AND REPRODUCTION,"","02­05      P1    10ML0100133      DAVID L. ANDRUKITUS, INC",10/15/09,10/15/09,PRINTING AND REPRODUCTION,283.00,FISCAL YEAR 2010,"","","","02­05      P1    10ML0100133      DAVID L. ANDRUKITUS, INC"
,OFFICE OF THE MAJORITY LEADER,2010Q1,PRINTING AND REPRODUCTION,"",02­12      P1    10ML0100147               DO,12/18/09,12/18/09,PRINTING AND REPRODUCTION,37.50,FISCAL YEAR 2010,"","","",02­12      P1    10ML0100147               DO
,OFFICE OF THE MAJORITY LEADER,2010Q1,PRINTING AND REPRODUCTION,"",03­03      P1    10ML0100157               DO,01/18/10,01/18/10,PRINTING AND REPRODUCTION,37.50,FISCAL YEAR 2010,"","","",03­03      P1    10ML0100157               DO
,OFFICE OF THE MAJORITY LEADER,2010Q1,PRINTING AND REPRODUCTION,"",03­03      P1    10ML0100159               DO,02/04/10,02/04/10,PRINTING AND REPRODUCTION,47.50,FISCAL YEAR 2010,"","","",03­03      P1    10ML0100159               DO
,OFFICE OF THE MAJORITY LEADER,2010Q1,OTHER SERVICES,"",03­03      P1 10ML0100150                     CITIBANK GOV CARD SERVICE,01/19/10,01/19/10,LAUNDRY SERVICE,63.66,FISCAL YEAR 2010,"","","",03­03      P1 10ML0100150                     CITIBANK GOV CARD SERVICE
,OFFICE OF THE MAJORITY LEADER,2010Q1,SUPPLIES AND MATERIALS,"",01­28      P1    10ML0100125      CBC RESTAURANT CORP,12/01/09,12/01/09,FOOD & BEVERAGE,213.50,FISCAL YEAR 2010,"","","",01­28      P1    10ML0100125      CBC RESTAURANT CORP
,OFFICE OF THE MAJORITY LEADER,2010Q1,SUPPLIES AND MATERIALS,"",01­28      P1    10ML0100126           DO,12/02/09,12/02/09,FOOD & BEVERAGE,147.50,FISCAL YEAR 2010,"","","",01­28      P1    10ML0100126           DO
,OFFICE OF THE MAJORITY LEADER,2010Q1,SUPPLIES AND MATERIALS,"",01­28      P1    10ML0100127           DO,12/02/09,12/02/09,FOOD & BEVERAGE,296.00,FISCAL YEAR 2010,"","","",01­28      P1    10ML0100127           DO
,OFFICE OF THE MAJORITY LEADER,2010Q1,SUPPLIES AND MATERIALS,"",01­28      P1    10ML0100123      CITIBANK GOV CARD SERVICE,12/10/09,12/14/09,FOOD & BEVERAGE,454.05,FISCAL YEAR 2010,"","","",01­28      P1    10ML0100123      CITIBANK GOV CARD SERVICE
,OFFICE OF THE MAJORITY LEADER,2010Q1,SUPPLIES AND MATERIALS,"",01­28      P1    10ML0100124           DO,12/16/09,03/08/10,PUBLICATION REF MATERIAL,"1,505.00",FISCAL YEAR 2010,"","","",01­28      P1    10ML0100124           DO
,OFFICE OF THE MAJORITY LEADER,2010Q1,SUPPLIES AND MATERIALS,"",01­28      C1    NW201002602      DEER PARK,12/31/09,12/31/09,BOTTLED WATER,8.00,FISCAL YEAR 2010,"","","",01­28      C1    NW201002602      DEER PARK
,OFFICE OF THE MAJORITY LEADER,2010Q1,SUPPLIES AND MATERIALS,"",01­28      C1    NW201002602           DO,12/01/09,12/01/09,BOTTLED WATER,20.47,FISCAL YEAR 2010,"","","",01­28      C1    NW201002602           DO
,OFFICE OF THE MAJORITY LEADER,2010Q1,SUPPLIES AND MATERIALS,"",01­28      C1    NW201002602           DO,12/08/09,12/08/09,BOTTLED WATER,64.43,FISCAL YEAR 2010,"","","",01­28      C1    NW201002602           DO
,OFFICE OF THE MAJORITY LEADER,2010Q1,SUPPLIES AND MATERIALS,"",01­28      C1    NW201002602           DO,12/15/09,12/15/09,BOTTLED WATER,30.00,FISCAL YEAR 2010,"","","",01­28      C1    NW201002602           DO
,OFFICE OF THE MAJORITY LEADER,2010Q1,SUPPLIES AND MATERIALS,"",01­28      C1    NW201002602           DO,12/31/09,12/31/09,BOTTLED WATER,2.00,FISCAL YEAR 2010,"","","",01­28      C1    NW201002602           DO
,OFFICE OF THE MAJORITY LEADER,2010Q1,SUPPLIES AND MATERIALS,"",01­29      P1    10ML0100130      CAPITOLHOST,12/11/09,12/11/09,FOOD & BEVERAGE,42.41,FISCAL YEAR 2010,"","","",01­29      P1    10ML0100130      CAPITOLHOST
,OFFICE OF THE MAJORITY LEADER,2010Q1,SUPPLIES AND MATERIALS,"",01­29      P1    10ML0100131           DO,12/09/09,12/09/09,FOOD & BEVERAGE,90.00,FISCAL YEAR 2010,"","","",01­29      P1    10ML0100131           DO
,OFFICE OF THE MAJORITY LEADER,2010Q1,SUPPLIES AND MATERIALS,"",01­29      P1    10ML0100132           DO,12/16/09,12/16/09,FOOD & BEVERAGE,90.00,FISCAL YEAR 2010,"","","",01­29      P1    10ML0100132           DO
,OFFICE OF THE MAJORITY LEADER,2010Q1,SUPPLIES AND MATERIALS,"",02­12      P1    10ML0100144           DO,12/02/09,12/02/09,FOOD & BEVERAGE,90.00,FISCAL YEAR 2010,"","","",02­12      P1    10ML0100144           DO
,OFFICE OF THE MAJORITY LEADER,2010Q1,SUPPLIES AND MATERIALS,"",02­12      P1    10ML0100145           DO,12/03/09,12/03/09,FOOD & BEVERAGE,126.00,FISCAL YEAR 2010,"","","",02­12      P1    10ML0100145           DO
,OFFICE OF THE MAJORITY LEADER,2010Q1,SUPPLIES AND MATERIALS,"",02­12      P1    10ML0100146           DO,12/04/09,12/04/09,FOOD & BEVERAGE,42.42,FISCAL YEAR 2010,"","","",02­12      P1    10ML0100146           DO
,OFFICE OF THE MAJORITY LEADER,2010Q1,SUPPLIES AND MATERIALS,"",02­12      P1    10ML0100134      CBC RESTAURANT CORP,12/03/09,12/03/09,FOOD & BEVERAGE,123.30,FISCAL YEAR 2010,"","","",02­12      P1    10ML0100134      CBC RESTAURANT CORP
,OFFICE OF THE MAJORITY LEADER,2010Q1,SUPPLIES AND MATERIALS,"",02­12      P1    10ML0100135           DO,12/07/09,12/07/09,FOOD & BEVERAGE,164.00,FISCAL YEAR 2010,"","","",02­12      P1    10ML0100135           DO
,OFFICE OF THE MAJORITY LEADER,2010Q1,SUPPLIES AND MATERIALS,"",02­12      P1    10ML0100136           DO,12/07/09,12/07/09,FOOD & BEVERAGE,213.50,FISCAL YEAR 2010,"","","",02­12      P1    10ML0100136           DO
,OFFICE OF THE MAJORITY LEADER,2010Q1,SUPPLIES AND MATERIALS,"",02­12      P1    10ML0100137           DO,12/08/09,12/08/09,FOOD & BEVERAGE,285.50,FISCAL YEAR 2010,"","","",02­12      P1    10ML0100137           DO
,OFFICE OF THE MAJORITY LEADER,2010Q1,SUPPLIES AND MATERIALS,"",02­12      P1    10ML0100138           DO,12/10/09,12/10/09,FOOD & BEVERAGE,123.30,FISCAL YEAR 2010,"","","",02­12      P1    10ML0100138           DO
,OFFICE OF THE MAJORITY LEADER,2010Q1,SUPPLIES AND MATERIALS,"",02­12      P1    10ML0100139           DO,12/15/09,12/15/09,FOOD & BEVERAGE,517.50,FISCAL YEAR 2010,"","","",02­12      P1    10ML0100139           DO
,OFFICE OF THE MAJORITY LEADER,2010Q1,SUPPLIES AND MATERIALS,"",02­12      P1    10ML0100140           DO,12/14/09,12/14/09,FOOD & BEVERAGE,253.50,FISCAL YEAR 2010,"","","",02­12      P1    10ML0100140           DO
,OFFICE OF THE MAJORITY LEADER,2010Q1,SUPPLIES AND MATERIALS,"",02­12   P1   10ML0100141         DO,12/15/09,12/15/09,FOOD & BEVERAGE,437.10,FISCAL YEAR 2010,"","","",02­12   P1   10ML0100141         DO
,OFFICE OF THE MAJORITY LEADER,2010Q1,SUPPLIES AND MATERIALS,"",02­12   P1   10ML0100143   OCCASIONS CATERERS,10/22/09,10/22/09,FOOD & BEVERAGE,"2,930.00",FISCAL YEAR 2010,"","","",02­12   P1   10ML0100143   OCCASIONS CATERERS
,OFFICE OF THE MAJORITY LEADER,2010Q1,SUPPLIES AND MATERIALS,"",02­12   P1   10ML0100142   V. SIMONE LITRENTA,01/15/10,01/15/10,FOOD & BEVERAGE,877.83,FISCAL YEAR 2010,"","","",02­12   P1   10ML0100142   V. SIMONE LITRENTA
,OFFICE OF THE MAJORITY LEADER,2010Q1,SUPPLIES AND MATERIALS,"",02­23   C1   NW201005303   DEER PARK,01/31/10,01/31/10,BOTTLED WATER,8.00,FISCAL YEAR 2010,"","","",02­23   C1   NW201005303   DEER PARK
,OFFICE OF THE MAJORITY LEADER,2010Q1,SUPPLIES AND MATERIALS,"",02­23   C1   NW201005303         DO,01/04/10,01/04/10,BOTTLED WATER,51.95,FISCAL YEAR 2010,"","","",02­23   C1   NW201005303         DO
,OFFICE OF THE MAJORITY LEADER,2010Q1,SUPPLIES AND MATERIALS,"",02­23   C1   NW201005303         DO,01/15/10,01/15/10,BOTTLED WATER,70.47,FISCAL YEAR 2010,"","","",02­23   C1   NW201005303         DO
,OFFICE OF THE MAJORITY LEADER,2010Q1,SUPPLIES AND MATERIALS,"",02­23   C1   NW201005303         DO,01/26/10,01/26/10,BOTTLED WATER,40.00,FISCAL YEAR 2010,"","","",02­23   C1   NW201005303         DO
,OFFICE OF THE MAJORITY LEADER,2010Q1,SUPPLIES AND MATERIALS,"",02­23   C1   NW201005303         DO,01/31/10,01/31/10,BOTTLED WATER,2.20,FISCAL YEAR 2010,"","","",02­23   C1   NW201005303         DO
,OFFICE OF THE MAJORITY LEADER,2010Q1,SUPPLIES AND MATERIALS,"",03­03   P1   10ML0100151   CAPITOLHOST,01/13/10,01/13/10,FOOD & BEVERAGE,90.00,FISCAL YEAR 2010,"","","",03­03   P1   10ML0100151   CAPITOLHOST
,OFFICE OF THE MAJORITY LEADER,2010Q1,SUPPLIES AND MATERIALS,"",03­03   P1   10ML0100162         DO,01/27/10,01/27/10,FOOD & BEVERAGE,89.99,FISCAL YEAR 2010,"","","",03­03   P1   10ML0100162         DO
,OFFICE OF THE MAJORITY LEADER,2010Q1,SUPPLIES AND MATERIALS,"",03­03   P1   10ML0100163         DO,01/22/10,01/22/10,FOOD & BEVERAGE,42.41,FISCAL YEAR 2010,"","","",03­03   P1   10ML0100163         DO
,OFFICE OF THE MAJORITY LEADER,2010Q1,SUPPLIES AND MATERIALS,"",03­03   P1   10ML0100164         DO,01/20/10,01/20/10,FOOD & BEVERAGE,90.00,FISCAL YEAR 2010,"","","",03­03   P1   10ML0100164         DO
,OFFICE OF THE MAJORITY LEADER,2010Q1,SUPPLIES AND MATERIALS,"",03­03   P1   10ML0100149   CITIBANK GOV CARD SERVICE,01/12/10,01/26/10,FOOD & BEVERAGE,253.00,FISCAL YEAR 2010,"","","",03­03   P1   10ML0100149   CITIBANK GOV CARD SERVICE
,OFFICE OF THE MAJORITY LEADER,2010Q1,SUPPLIES AND MATERIALS,"",03­03   P1   10ML0100160   CORNER BAKERY,01/22/10,01/22/10,FOOD & BEVERAGE,172.80,FISCAL YEAR 2010,"","","",03­03   P1   10ML0100160   CORNER BAKERY
,OFFICE OF THE MAJORITY LEADER,2010Q1,SUPPLIES AND MATERIALS,"",03­03   P1   10ML0100161         DO,01/27/10,01/27/10,FOOD & BEVERAGE,213.50,FISCAL YEAR 2010,"","","",03­03   P1   10ML0100161         DO
,OFFICE OF THE MAJORITY LEADER,2010Q1,SUPPLIES AND MATERIALS,"",03­03   P1   10ML0100165         DO,01/08/10,01/08/10,FOOD & BEVERAGE,175.00,FISCAL YEAR 2010,"","","",03­03   P1   10ML0100165         DO
,OFFICE OF THE MAJORITY LEADER,2010Q1,SUPPLIES AND MATERIALS,"",03­03   P1   10ML0100166         DO,01/13/10,01/13/10,FOOD & BEVERAGE,213.50,FISCAL YEAR 2010,"","","",03­03   P1   10ML0100166         DO
,OFFICE OF THE MAJORITY LEADER,2010Q1,SUPPLIES AND MATERIALS,"",03­03   P1   10ML0100167         DO,01/20/10,01/20/10,FOOD & BEVERAGE,213.50,FISCAL YEAR 2010,"","","",03­03   P1   10ML0100167         DO
,OFFICE OF THE MAJORITY LEADER,2010Q1,SUPPLIES AND MATERIALS,"",03­03   P1   10ML0100168         DO,01/20/10,01/20/10,FOOD & BEVERAGE,147.50,FISCAL YEAR 2010,"","","",03­03   P1   10ML0100168         DO
,OFFICE OF THE MAJORITY LEADER,2010Q1,SUPPLIES AND MATERIALS,"",03­03   P1   10ML0100169         DO,01/21/10,01/21/10,FOOD & BEVERAGE,235.50,FISCAL YEAR 2010,"","","",03­03   P1   10ML0100169         DO
,OFFICE OF THE MAJORITY LEADER,2010Q1,SUPPLIES AND MATERIALS,"",03­03   P1   10ML0100152   OCCASIONS CATERERS,12/09/09,12/09/09,FOOD & BEVERAGE,"2,905.00",FISCAL YEAR 2010,"","","",03­03   P1   10ML0100152   OCCASIONS CATERERS
,OFFICE OF THE MAJORITY LEADER,2010Q1,SUPPLIES AND MATERIALS,"",03­17   P1   10ML0100176   CITIBANK GOV CARD SERVICE,01/27/10,02/25/10,FOOD & BEVERAGE,"1,514.86",FISCAL YEAR 2010,"","","",03­17   P1   10ML0100176   CITIBANK GOV CARD SERVICE
,OFFICE OF THE MAJORITY LEADER,2010Q1,SUPPLIES AND MATERIALS,"",03­18   P1   10ML0100178   CORNER BAKERY,02/25/10,02/25/10,FOOD & BEVERAGE,76.00,FISCAL YEAR 2010,"","","",03­18   P1   10ML0100178   CORNER BAKERY
,OFFICE OF THE MAJORITY LEADER,2010Q1,SUPPLIES AND MATERIALS,"",03­18   P1   10ML0100179         DO,02/03/10,02/03/10,FOOD & BEVERAGE,147.50,FISCAL YEAR 2010,"","","",03­18   P1   10ML0100179         DO
,OFFICE OF THE MAJORITY LEADER,2010Q1,SUPPLIES AND MATERIALS,"",03­18   P1   10ML0100180         DO,02/03/10,02/03/10,FOOD & BEVERAGE,285.00,FISCAL YEAR 2010,"","","",03­18   P1   10ML0100180         DO
,OFFICE OF THE MAJORITY LEADER,2010Q1,SUPPLIES AND MATERIALS,"",03­18   P1   10ML0100181         DO,02/04/10,02/04/10,FOOD & BEVERAGE,131.00,FISCAL YEAR 2010,"","","",03­18   P1   10ML0100181         DO
,OFFICE OF THE MAJORITY LEADER,2010Q1,SUPPLIES AND MATERIALS,"",03­18   P1   10ML0100182         DO,02/05/10,02/05/10,FOOD & BEVERAGE,134.22,FISCAL YEAR 2010,"","","",03­18   P1   10ML0100182         DO
,OFFICE OF THE MAJORITY LEADER,2010Q1,SUPPLIES AND MATERIALS,"",03­18   P1   10ML0100183         DO,02/24/10,02/24/10,FOOD & BEVERAGE,213.50,FISCAL YEAR 2010,"","","",03­18   P1   10ML0100183         DO
,OFFICE OF THE MAJORITY LEADER,2010Q1,SUPPLIES AND MATERIALS,"",03­19   P1   10ML0100171   CAPITOLHOST,02/05/10,02/05/10,FOOD & BEVERAGE,42.41,FISCAL YEAR 2010,"","","",03­19   P1   10ML0100171   CAPITOLHOST
,OFFICE OF THE MAJORITY LEADER,2010Q1,SUPPLIES AND MATERIALS,"",03­19   P1   10ML0100172         DO,02/03/10,02/03/10,FOOD & BEVERAGE,89.99,FISCAL YEAR 2010,"","","",03­19   P1   10ML0100172         DO
,OFFICE OF THE MAJORITY LEADER,2010Q1,SUPPLIES AND MATERIALS,"",03­19   P1   10ML0100173         DO,02/03/10,02/03/10,FOOD & BEVERAGE,95.76,FISCAL YEAR 2010,"","","",03­19   P1   10ML0100173         DO
,OFFICE OF THE MAJORITY LEADER,2010Q1,SUPPLIES AND MATERIALS,"",03­19   P1   10ML0100174   MARY R KRUEGER,03/05/10,03/05/10,FOOD & BEVERAGE,11.30,FISCAL YEAR 2010,"","","",03­19   P1   10ML0100174   MARY R KRUEGER
,OFFICE OF THE MAJORITY LEADER,2010Q1,SUPPLIES AND MATERIALS,"",03­21   P1   10ML0100189   DENIS MUNOZ,01/26/10,01/26/10,OFFICE SUPPLIES OUTSIDE,18.00,FISCAL YEAR 2010,"","","",03­21   P1   10ML0100189   DENIS MUNOZ
,OFFICE OF THE MAJORITY LEADER,2010Q1,SUPPLIES AND MATERIALS,"",03­24   C1   NW201008102   DEER PARK,02/28/10,02/28/10,BOTTLED WATER,8.00,FISCAL YEAR 2010,"","","",03­24   C1   NW201008102   DEER PARK
,OFFICE OF THE MAJORITY LEADER,2010Q1,SUPPLIES AND MATERIALS,"",03­24   C1   NW201008102         DO,02/02/10,02/02/10,BOTTLED WATER,35.00,FISCAL YEAR 2010,"","","",03­24   C1   NW201008102         DO
,OFFICE OF THE MAJORITY LEADER,2010Q1,SUPPLIES AND MATERIALS,"",03­24   C1   NW201008102         DO,02/22/10,02/22/10,BOTTLED WATER,74.97,FISCAL YEAR 2010,"","","",03­24   C1   NW201008102         DO
,OFFICE OF THE MAJORITY LEADER,2010Q1,SUPPLIES AND MATERIALS,"",03­24   C1   NW201008102         DO,02/28/10,02/28/10,BOTTLED WATER,2.20,FISCAL YEAR 2010,"","","",03­24   C1   NW201008102         DO
,OFFICE OF THE MAJORITY LEADER,2010Q1,SUPPLIES AND MATERIALS,"",03­30   P1   10ML0100192   CAPITOLHOST,07/14/09,07/14/09,FOOD & BEVERAGE,"1,363.20",FISCAL YEAR 2010,"","","",03­30   P1   10ML0100192   CAPITOLHOST
,OFFICE OF THE MAJORITY LEADER,2010Q1,SUPPLIES AND MATERIALS,"",03­30   P1   10ML0100193         DO,07/15/09,07/15/09,FOOD & BEVERAGE,112.50,FISCAL YEAR 2010,"","","",03­30   P1   10ML0100193         DO
,OFFICE OF THE MAJORITY LEADER,2010Q1,SUPPLIES AND MATERIALS,"",03­30   P1   10ML0100194         DO,07/15/09,07/15/09,FOOD & BEVERAGE,95.75,FISCAL YEAR 2010,"","","",03­30   P1   10ML0100194         DO
,OFFICE OF THE MAJORITY LEADER,2010Q1,SUPPLIES AND MATERIALS,"",03­30   P1   10ML0100195         DO,07/17/09,07/17/09,FOOD & BEVERAGE,42.41,FISCAL YEAR 2010,"","","",03­30   P1   10ML0100195         DO
,OFFICE OF THE MAJORITY LEADER,2010Q1,SUPPLIES AND MATERIALS,"",03­30   P1   10ML0100196         DO,07/17/09,07/17/09,FOOD & BEVERAGE,556.80,FISCAL YEAR 2010,"","","",03­30   P1   10ML0100196         DO
,OFFICE OF THE MAJORITY LEADER,2010Q1,SUPPLIES AND MATERIALS,"",03­30   P1   10ML0100199         DO,02/24/10,02/24/10,FOOD & BEVERAGE,90.00,FISCAL YEAR 2010,"","","",03­30   P1   10ML0100199         DO
,OFFICE OF THE MAJORITY LEADER,2010Q1,SUPPLIES AND MATERIALS,"",03­30   P1   10ML0100200         DO,03/03/10,03/03/10,FOOD & BEVERAGE,90.00,FISCAL YEAR 2010,"","","",03­30   P1   10ML0100200         DO
,OFFICE OF THE MAJORITY LEADER,2010Q1,SUPPLIES AND MATERIALS,"",03­30   P1   10ML0100201         DO,07/14/09,07/14/09,FOOD & BEVERAGE,112.50,FISCAL YEAR 2010,"","","",03­30   P1   10ML0100201         DO
,OFFICE OF THE MAJORITY LEADER,2010Q1,SUPPLIES AND MATERIALS,"",03­30   P1   10ML0100198   MARY R KRUEGER,03/20/10,03/20/10,FOOD & BEVERAGE,64.06,FISCAL YEAR 2010,"","","",03­30   P1   10ML0100198   MARY R KRUEGER
,OFFICE OF THE MAJORITY LEADER,2010Q1,PERSONNEL BENEFITS,"",01­20 P9 ML011000001          HON. STENY HOYER,01/01/10,01/31/10,OFFICIAL EXPENSES FOR LEADER,833.33,FISCAL YEAR 2010,"","","",01­20 P9 ML011000001          HON. STENY HOYER
,OFFICE OF THE MAJORITY LEADER,2010Q1,PERSONNEL BENEFITS,"",02­22 P9 ML011000002               DO,02/01/10,02/28/10,OFFICIAL EXPENSES FOR LEADER,833.33,FISCAL YEAR 2010,"","","",02­22 P9 ML011000002               DO
,OFFICE OF THE MAJORITY LEADER,2010Q1,PERSONNEL BENEFITS,"",03­19 P9 ML011000003               DO,03/01/10,03/31/10,OFFICIAL EXPENSES FOR LEADER,833.33,FISCAL YEAR 2010,"","","",03­19 P9 ML011000003               DO
,OFFICE OF THE MINORITY LEADER,2010Q1,PERSONNEL COMPENSATION,"","BUCK, BRENDAN K",03/15/10,03/15/10,COMM DIR FOR SPEC LEG INIT,"4,000.00",FISCAL YEAR 2010,"","","","BUCK, BRENDAN K"
,OFFICE OF THE MINORITY LEADER,2010Q1,PERSONNEL COMPENSATION,"","CASSIDY, ED",01/01/10,03/31/10,SR ADVISOR/FLOOR ASSIST (STAT),"42,000.00",FISCAL YEAR 2010,"","","","CASSIDY, ED"
,OFFICE OF THE MINORITY LEADER,2010Q1,PERSONNEL COMPENSATION,"","GREEN, JO-MARIE S",01/01/10,03/31/10,GEN. COUNSEL/DIR. OF FLOOR OPS,"42,999.99",FISCAL YEAR 2010,"","","","GREEN, JO-MARIE S"
,OFFICE OF THE MINORITY LEADER,2010Q1,PERSONNEL COMPENSATION,"","JACKSON,BARRY S",01/19/10,03/31/10,CHIEF OF STAFF,"34,500.00",FISCAL YEAR 2010,"","","","JACKSON,BARRY S"
,OFFICE OF THE MINORITY LEADER,2010Q1,PERSONNEL COMPENSATION,"","NOWAKOWSKI, PAULA",01/01/10,01/10/10,CHIEF OF STAFF,495.94,FISCAL YEAR 2010,"","","","NOWAKOWSKI, PAULA"
,OFFICE OF THE MINORITY LEADER,2010Q1,PERSONNEL COMPENSATION,"","PIERSON, JAY",01/01/10,03/31/10,FLOOR ASSISTANT (STAT),"42,099.99",FISCAL YEAR 2010,"","","","PIERSON, JAY"
,OFFICE OF THE MINORITY LEADER,2010Q1,PERSONNEL COMPENSATION,"","SCHNITTGER, DAVID M",01/01/10,03/31/10,DEPUTY CHIEF OF STAFF,"43,125.00",FISCAL YEAR 2010,"","","","SCHNITTGER, DAVID M"
,OFFICE OF THE MINORITY LEADER,2010Q1,PERSONNEL COMPENSATION,"","SMITH, KEVIN",01/01/10,03/31/10,COMMUNICATIONS DIR (STATUTORY),"38,249.99",FISCAL YEAR 2010,"","","","SMITH, KEVIN"
,OFFICE OF THE MINORITY LEADER,2010Q1,PERSONNEL COMPENSATION,"","SOMMERS, MICHAEL J",01/01/10,03/31/10,POLICY DIRECTOR,"42,999.99",FISCAL YEAR 2010,"","","","SOMMERS, MICHAEL J"
,OFFICE OF THE MINORITY LEADER,2010Q1,PERSONNEL COMPENSATION,"","ANDRES, ELIZABETH G",01/01/10,03/31/10,DEPUTY PRESS SECRETARY,"17,499.99",FISCAL YEAR 2010,"","","","ANDRES, ELIZABETH G"
,OFFICE OF THE MINORITY LEADER,2010Q1,PERSONNEL COMPENSATION,"","BENJAMIN, WILLIAM C",01/01/10,03/31/10,DIR OF INFORMATION TECHNOLOGY,"23,250.00",FISCAL YEAR 2010,"","","","BENJAMIN, WILLIAM C"
,OFFICE OF THE MINORITY LEADER,2010Q1,PERSONNEL COMPENSATION,"","CHAPLIN, KRISTEN F",01/01/10,03/31/10,DIR OF SCHEDLNG & SPEC EVENTS,"22,708.33",FISCAL YEAR 2010,"","","","CHAPLIN, KRISTEN F"
,OFFICE OF THE MINORITY LEADER,2010Q1,PERSONNEL COMPENSATION,"","CRANFORD III, JAY N",01/01/10,03/31/10,POLICY ADVISOR,"36,462.51",FISCAL YEAR 2010,"","","","CRANFORD III, JAY N"
,OFFICE OF THE MINORITY LEADER,2010Q1,PERSONNEL COMPENSATION,"","GREENE,WILLIAM P",01/01/10,03/31/10,OUTREACH DIRECTOR,"33,283.32",FISCAL YEAR 2010,"","","","GREENE,WILLIAM P"
,OFFICE OF THE MINORITY LEADER,2010Q1,PERSONNEL COMPENSATION,"","HALEY, KATHERINE C",01/01/10,03/31/10,POLICY ADVISOR,"22,124.99",FISCAL YEAR 2010,"","","","HALEY, KATHERINE C"
,OFFICE OF THE MINORITY LEADER,2010Q1,PERSONNEL COMPENSATION,"","HERRLE, CYNTHIA A",01/01/10,03/31/10,POLICY ADVISOR,"33,837.51",FISCAL YEAR 2010,"","","","HERRLE, CYNTHIA A"
,OFFICE OF THE MINORITY LEADER,2010Q1,PERSONNEL COMPENSATION,"","KINZEL,WILL C",01/01/10,03/31/10,POLICY ADVISOR/COUNSEL,"27,500.01",FISCAL YEAR 2010,"","","","KINZEL,WILL C"
,OFFICE OF THE MINORITY LEADER,2010Q1,PERSONNEL COMPENSATION,"","LAMPERT,JUSTIN",01/01/10,03/31/10,STAFF ASSISTANT,"9,450.00",FISCAL YEAR 2010,"","","","LAMPERT,JUSTIN"
,OFFICE OF THE MINORITY LEADER,2010Q1,PERSONNEL COMPENSATION,"","LAMPERT,JUSTIN",12/01/09,02/28/10,STAFF ASSISTANT (OVERTIME),"1,281.19",FISCAL YEAR 2010,"","","",DO
,OFFICE OF THE MINORITY LEADER,2010Q1,PERSONNEL COMPENSATION,"","LOZUPONE, AMY S",01/01/10,03/31/10,DEP. CHIEF OF STAFF FOR ADMIN,"34,666.66",FISCAL YEAR 2010,"","","","LOZUPONE, AMY S"
,OFFICE OF THE MINORITY LEADER,2010Q1,PERSONNEL COMPENSATION,"","PAULSON, JUDY K",01/01/10,03/31/10,FINANCIAL ADMINISTRATOR,"7,916.66",FISCAL YEAR 2010,"","","","PAULSON, JUDY K"
,OFFICE OF THE MINORITY LEADER,2010Q1,PERSONNEL COMPENSATION,"","PORTER, EMILY S",01/01/10,03/31/10,POLICY ADVISOR,"24,000.00",FISCAL YEAR 2010,"","","","PORTER, EMILY S"
,OFFICE OF THE MINORITY LEADER,2010Q1,PERSONNEL COMPENSATION,"","RICCI,MICHAEL",01/01/10,03/31/10,DEPUTY COMMUNICATIONS DIRECTOR,"30,000.00",FISCAL YEAR 2010,"","","","RICCI,MICHAEL"
,OFFICE OF THE MINORITY LEADER,2010Q1,PERSONNEL COMPENSATION,"","SAUNDERS,GRANT H",01/01/10,03/31/10,STAFF ASSISTANT,"8,100.00",FISCAL YEAR 2010,"","","","SAUNDERS,GRANT H"
,OFFICE OF THE MINORITY LEADER,2010Q1,PERSONNEL COMPENSATION,"","SAUNDERS,GRANT H",12/01/09,02/28/10,STAFF ASSISTANT (OVERTIME),934.61,FISCAL YEAR 2010,"","","",DO
,OFFICE OF THE MINORITY LEADER,2010Q1,PERSONNEL COMPENSATION,"","STEWART, DAVID B",01/01/10,03/31/10,POLICY ADVISOR,"31,500.00",FISCAL YEAR 2010,"","","","STEWART, DAVID B"
,OFFICE OF THE MINORITY LEADER,2010Q1,PERSONNEL COMPENSATION,"","STEWART, JENNIFER M",01/01/10,03/31/10,POLICY ADVISOR,"24,000.00",FISCAL YEAR 2010,"","","","STEWART, JENNIFER M"
,OFFICE OF THE MINORITY LEADER,2010Q1,PERSONNEL COMPENSATION,"","STRUNK, JEFFREY A",01/01/10,03/31/10,FLOOR ASSISTANT,"12,291.66",FISCAL YEAR 2010,"","","","STRUNK, JEFFREY A"
,OFFICE OF THE MINORITY LEADER,2010Q1,PERSONNEL COMPENSATION,"","THORSEN, ANNE B",01/01/10,03/31/10,DEPUTY DIR LEG OPERATIONS,"26,775.00",FISCAL YEAR 2010,"","","","THORSEN, ANNE B"
,OFFICE OF THE MINORITY LEADER,2010Q1,PERSONNEL COMPENSATION,"","WOLF,ADAM J",01/01/10,03/31/10,FLOOR ASSISTANT,"11,675.00",FISCAL YEAR 2010,"","","","WOLF,ADAM J"
,OFFICE OF THE MINORITY LEADER,2010Q1,TRAVEL,"",01­28   P1 10NL0100087      WILLIAM PAUL GREENE,10/07/09,12/16/09,"TAXI, PARKING, TOLLS",146.50,FISCAL YEAR 2010,"","","",01­28   P1 10NL0100087      WILLIAM PAUL GREENE
,OFFICE OF THE MINORITY LEADER,2010Q1,TRAVEL,"",02­22   P1 10NL0100094      AMY S. LOZUPONE,01/28/10,01/28/10,"TAXI, PARKING, TOLLS",52.00,FISCAL YEAR 2010,"","","",02­22   P1 10NL0100094      AMY S. LOZUPONE
,OFFICE OF THE MINORITY LEADER,2010Q1,TRAVEL,"",02­22   P1 10NL0100095           DO,01/28/10,01/30/10,PRIVATE OWNED VEHICLE MILEAGE,59.50,FISCAL YEAR 2010,"","","",02­22   P1 10NL0100095           DO
,OFFICE OF THE MINORITY LEADER,2010Q1,"RENT, COMMUNICATION, UTILITIES","",01­08   CB    FXF100107A      FEDERAL EXPRESS CORP,12/22/09,12/22/09,POSTAGE/COURIER/BOX RENTAL,21.46,FISCAL YEAR 2010,"","","",01­08   CB    FXF100107A      FEDERAL EXPRESS CORP
,OFFICE OF THE MINORITY LEADER,2010Q1,"RENT, COMMUNICATION, UTILITIES","",01­15   CB    FXF100114A               DO,01/04/10,01/04/10,POSTAGE/COURIER/BOX RENTAL,30.95,FISCAL YEAR 2010,"","","",01­15   CB    FXF100114A               DO
,OFFICE OF THE MINORITY LEADER,2010Q1,"RENT, COMMUNICATION, UTILITIES","",01­25   CB    FXF100122B               DO,01/07/10,01/07/10,POSTAGE/COURIER/BOX RENTAL,18.67,FISCAL YEAR 2010,"","","",01­25   CB    FXF100122B               DO
,OFFICE OF THE MINORITY LEADER,2010Q1,"RENT, COMMUNICATION, UTILITIES","",02­05   CB    FXF100204A               DO,01/25/10,01/25/10,POSTAGE/COURIER/BOX RENTAL,61.95,FISCAL YEAR 2010,"","","",02­05   CB    FXF100204A               DO
,OFFICE OF THE MINORITY LEADER,2010Q1,"RENT, COMMUNICATION, UTILITIES","",02­16   CB    FXF100211A               DO,01/29/10,01/29/10,POSTAGE/COURIER/BOX RENTAL,73.25,FISCAL YEAR 2010,"","","",02­16   CB    FXF100211A               DO
,OFFICE OF THE MINORITY LEADER,2010Q1,"RENT, COMMUNICATION, UTILITIES","",03­05   CB    FXF100304A               DO,02/22/10,02/22/10,POSTAGE/COURIER/BOX RENTAL,6.68,FISCAL YEAR 2010,"","","",03­05   CB    FXF100304A               DO
,OFFICE OF THE MINORITY LEADER,2010Q1,"RENT, COMMUNICATION, UTILITIES","",03­12   CB    FXF100311A               DO,02/26/10,02/26/10,POSTAGE/COURIER/BOX RENTAL,19.05,FISCAL YEAR 2010,"","","",03­12   CB    FXF100311A               DO
,OFFICE OF THE MINORITY LEADER,2010Q1,"RENT, COMMUNICATION, UTILITIES","",03­18   CB    FXf100317a               DO,03/09/10,03/09/10,POSTAGE/COURIER/BOX RENTAL,41.20,FISCAL YEAR 2010,"","","",03­18   CB    FXf100317a               DO
,OFFICE OF THE MINORITY LEADER,2010Q1,"RENT, COMMUNICATION, UTILITIES","",03­25   S4    10084001000,02/01/10,02/28/10,RECORDING (TRANSFER),35.00,FISCAL YEAR 2010,"","","",03­25   S4    10084001000
,OFFICE OF THE MINORITY LEADER,2010Q1,"RENT, COMMUNICATION, UTILITIES","",03­26   CB    FXF100325B      FEDERAL EXPRESS CORP,03/10/10,03/10/10,POSTAGE/COURIER/BOX RENTAL,15.45,FISCAL YEAR 2010,"","","",03­26   CB    FXF100325B      FEDERAL EXPRESS CORP
,OFFICE OF THE MINORITY LEADER,2010Q1,PRINTING AND REPRODUCTION,"",02­23   S3 10054000114,02/01/10,02/28/10,PHOTOGRAPHIC (TRANSFER),138.85,FISCAL YEAR 2010,"","","",02­23   S3 10054000114
,OFFICE OF THE MINORITY LEADER,2010Q1,SUPPLIES AND MATERIALS,"",01­06   P1    10NL0100074      COCA-COLA ENTERPRISES,12/08/09,12/08/09,FOOD & BEVERAGE,217.50,FISCAL YEAR 2010,"","","",01­06   P1    10NL0100074      COCA-COLA ENTERPRISES
,OFFICE OF THE MINORITY LEADER,2010Q1,SUPPLIES AND MATERIALS,"",01­08   P1    10NL0100076           DO,12/15/09,12/15/09,FOOD & BEVERAGE,252.80,FISCAL YEAR 2010,"","","",01­08   P1    10NL0100076           DO
,OFFICE OF THE MINORITY LEADER,2010Q1,SUPPLIES AND MATERIALS,"",01­27   P1    10NL0100077      CAPITOLHOST,12/07/09,12/07/09,FOOD & BEVERAGE,62.99,FISCAL YEAR 2010,"","","",01­27   P1    10NL0100077      CAPITOLHOST
,OFFICE OF THE MINORITY LEADER,2010Q1,SUPPLIES AND MATERIALS,"",01­27   P1    10NL0100078      CITIBANK GOV CARD SERVICE,11/29/09,12/18/09,FOOD & BEVERAGE,"5,059.30",FISCAL YEAR 2010,"","","",01­27   P1    10NL0100078      CITIBANK GOV CARD SERVICE
,OFFICE OF THE MINORITY LEADER,2010Q1,SUPPLIES AND MATERIALS,"",01­27   P1    10NL0100079           DO,12/22/09,12/22/09,PUBLICATION REF MATERIAL,29.88,FISCAL YEAR 2010,"","","",01­27   P1    10NL0100079           DO
,OFFICE OF THE MINORITY LEADER,2010Q1,SUPPLIES AND MATERIALS,"",01­28 P1 10NL0100083          JOE RAGAN'S COFFEE LTD,11/23/09,11/23/09,BOTTLED WATER,61.80,FISCAL YEAR 2010,"","","",01­28 P1 10NL0100083          JOE RAGAN'S COFFEE LTD
,OFFICE OF THE MINORITY LEADER,2010Q1,SUPPLIES AND MATERIALS,"",01­28 P1 10NL0100084               DO,12/15/09,12/15/09,BOTTLED WATER,43.80,FISCAL YEAR 2010,"","","",01­28 P1 10NL0100084               DO
,OFFICE OF THE MINORITY LEADER,2010Q1,SUPPLIES AND MATERIALS,"",01­28 P1 10NL0100085               DO,12/15/09,12/15/09,BOTTLED WATER,284.54,FISCAL YEAR 2010,"","","",01­28 P1 10NL0100085               DO
,OFFICE OF THE MINORITY LEADER,2010Q1,SUPPLIES AND MATERIALS,"",01­28 P1 10NL0100086               DO,12/16/09,12/16/09,BOTTLED WATER,12.00,FISCAL YEAR 2010,"","","",01­28 P1 10NL0100086               DO
,OFFICE OF THE MINORITY LEADER,2010Q1,SUPPLIES AND MATERIALS,"",01­28 P1 10NL0100088               DO,11/23/09,11/23/09,FOOD & BEVERAGE,424.90,FISCAL YEAR 2010,"","","",01­28 P1 10NL0100088               DO
,OFFICE OF THE MINORITY LEADER,2010Q1,SUPPLIES AND MATERIALS,"",01­28 P1 10NL0100089               DO,12/03/09,12/03/09,FOOD & BEVERAGE,516.82,FISCAL YEAR 2010,"","","",01­28 P1 10NL0100089               DO
,OFFICE OF THE MINORITY LEADER,2010Q1,SUPPLIES AND MATERIALS,"",01­29 P1 10NL0100091          CAPITOLHOST,12/14/09,12/14/09,FOOD & BEVERAGE,62.99,FISCAL YEAR 2010,"","","",01­29 P1 10NL0100091          CAPITOLHOST
,OFFICE OF THE MINORITY LEADER,2010Q1,SUPPLIES AND MATERIALS,"",02­01 P1 10NL0100092          COCA-COLA ENTERPRISES,01/19/10,01/19/10,FOOD & BEVERAGE,266.90,FISCAL YEAR 2010,"","","",02­01 P1 10NL0100092          COCA-COLA ENTERPRISES
,OFFICE OF THE MINORITY LEADER,2010Q1,SUPPLIES AND MATERIALS,"",02­25 P1 10NL0100106          CITIBANK GOV CARD SERVICE,01/06/10,01/26/10,FOOD & BEVERAGE,"2,971.10",FISCAL YEAR 2010,"","","",02­25 P1 10NL0100106          CITIBANK GOV CARD SERVICE
,OFFICE OF THE MINORITY LEADER,2010Q1,SUPPLIES AND MATERIALS,"",02­25 P1 10NL0100104          COCA-COLA ENTERPRISES,02/02/10,02/02/10,FOOD & BEVERAGE,343.47,FISCAL YEAR 2010,"","","",02­25 P1 10NL0100104          COCA-COLA ENTERPRISES
,OFFICE OF THE MINORITY LEADER,2010Q1,SUPPLIES AND MATERIALS,"",02­25 P1 10NL0100096          JOE RAGAN'S COFFEE LTD,01/25/10,01/25/10,BOTTLED WATER,144.75,FISCAL YEAR 2010,"","","",02­25 P1 10NL0100096          JOE RAGAN'S COFFEE LTD
,OFFICE OF THE MINORITY LEADER,2010Q1,SUPPLIES AND MATERIALS,"",02­25 P1 10NL0100097               DO,01/27/10,01/27/10,BOTTLED WATER,12.00,FISCAL YEAR 2010,"","","",02­25 P1 10NL0100097               DO
,OFFICE OF THE MINORITY LEADER,2010Q1,SUPPLIES AND MATERIALS,"",02­25 P1 10NL0100098               DO,01/15/10,01/15/10,BOTTLED WATER,17.85,FISCAL YEAR 2010,"","","",02­25 P1 10NL0100098               DO
,OFFICE OF THE MINORITY LEADER,2010Q1,SUPPLIES AND MATERIALS,"",02­25 P1 10NL0100099               DO,01/07/10,01/07/10,FOOD & BEVERAGE,470.21,FISCAL YEAR 2010,"","","",02­25 P1 10NL0100099               DO
,OFFICE OF THE MINORITY LEADER,2010Q1,SUPPLIES AND MATERIALS,"",02­25 P1 10NL0100100               DO,01/15/10,01/15/10,FOOD & BEVERAGE,455.11,FISCAL YEAR 2010,"","","",02­25 P1 10NL0100100               DO
,OFFICE OF THE MINORITY LEADER,2010Q1,SUPPLIES AND MATERIALS,"",02­25 P1 10NL0100101               DO,01/25/10,01/25/10,FOOD & BEVERAGE,5.53,FISCAL YEAR 2010,"","","",02­25 P1 10NL0100101               DO
,OFFICE OF THE MINORITY LEADER,2010Q1,SUPPLIES AND MATERIALS,"",02­25 P1 10NL0100103          MICHAEL STEEL,02/01/10,02/01/10,FOOD & BEVERAGE,33.52,FISCAL YEAR 2010,"","","",02­25 P1 10NL0100103          MICHAEL STEEL
,OFFICE OF THE MINORITY LEADER,2010Q1,SUPPLIES AND MATERIALS,"",02­26 P1 10NL0100105          CAPITOLHOST,01/19/10,01/19/10,FOOD & BEVERAGE,62.99,FISCAL YEAR 2010,"","","",02­26 P1 10NL0100105          CAPITOLHOST
,OFFICE OF THE MINORITY LEADER,2010Q1,SUPPLIES AND MATERIALS,"",03­02 P1 10NL0100108               DO,01/25/10,01/25/10,FOOD & BEVERAGE,62.99,FISCAL YEAR 2010,"","","",03­02 P1 10NL0100108               DO
,OFFICE OF THE MINORITY LEADER,2010Q1,SUPPLIES AND MATERIALS,"",03­08 P1 10NL0100109          COCA-COLA ENTERPRISES,02/23/10,02/23/10,FOOD & BEVERAGE,214.61,FISCAL YEAR 2010,"","","",03­08 P1 10NL0100109          COCA-COLA ENTERPRISES
,OFFICE OF THE MINORITY LEADER,2010Q1,SUPPLIES AND MATERIALS,"",03­15 P1 10NL0100110          CAPITOLHOST,02/01/10,02/01/10,FOOD & BEVERAGE,62.99,FISCAL YEAR 2010,"","","",03­15 P1 10NL0100110          CAPITOLHOST
,OFFICE OF THE MINORITY LEADER,2010Q1,SUPPLIES AND MATERIALS,"",03­19 P1 10NL0100118          COCA-COLA ENTERPRISES,03/02/10,03/02/10,FOOD & BEVERAGE,185.27,FISCAL YEAR 2010,"","","",03­19 P1 10NL0100118          COCA-COLA ENTERPRISES
,OFFICE OF THE MINORITY LEADER,2010Q1,SUPPLIES AND MATERIALS,"",03­19 P1 10NL0100111          JOE RAGAN'S COFFEE LTD,01/29/10,01/29/10,BOTTLED WATER,179.90,FISCAL YEAR 2010,"","","",03­19 P1 10NL0100111          JOE RAGAN'S COFFEE LTD
,OFFICE OF THE MINORITY LEADER,2010Q1,SUPPLIES AND MATERIALS,"",03­19 P1 10NL0100112               DO,01/29/10,01/29/10,BOTTLED WATER,43.80,FISCAL YEAR 2010,"","","",03­19 P1 10NL0100112               DO
,OFFICE OF THE MINORITY LEADER,2010Q1,SUPPLIES AND MATERIALS,"",03­19 P1 10NL0100113               DO,02/09/10,02/09/10,BOTTLED WATER,37.85,FISCAL YEAR 2010,"","","",03­19 P1 10NL0100113               DO
,OFFICE OF THE MINORITY LEADER,2010Q1,SUPPLIES AND MATERIALS,"",03­19 P1 10NL0100114               DO,02/18/10,02/18/10,BOTTLED WATER,12.00,FISCAL YEAR 2010,"","","",03­19 P1 10NL0100114               DO
,OFFICE OF THE MINORITY LEADER,2010Q1,SUPPLIES AND MATERIALS,"",03­19 P1 10NL0100115               DO,02/25/10,02/25/10,BOTTLED WATER,12.00,FISCAL YEAR 2010,"","","",03­19 P1 10NL0100115               DO
,OFFICE OF THE MINORITY LEADER,2010Q1,SUPPLIES AND MATERIALS,"",03­19 P1 10NL0100116               DO,01/29/10,01/29/10,FOOD & BEVERAGE,47.85,FISCAL YEAR 2010,"","","",03­19 P1 10NL0100116               DO
,OFFICE OF THE MINORITY LEADER,2010Q1,SUPPLIES AND MATERIALS,"",03­19 P1 10NL0100117               DO,02/09/10,02/09/10,FOOD & BEVERAGE,552.67,FISCAL YEAR 2010,"","","",03­19 P1 10NL0100117               DO
,OFFICE OF THE MINORITY LEADER,2010Q1,SUPPLIES AND MATERIALS,"",03­26 P1 10NL0100122          CAPITOLHOST,02/22/10,02/22/10,FOOD & BEVERAGE,62.99,FISCAL YEAR 2010,"","","",03­26 P1 10NL0100122          CAPITOLHOST
,OFFICE OF THE MINORITY LEADER,2010Q1,SUPPLIES AND MATERIALS,"",03­26 P1 10NL0100119          CITIBANK GOV CARD SERVICE,01/08/10,01/26/10,FOOD & BEVERAGE,"1,000.00",FISCAL YEAR 2010,"","","",03­26 P1 10NL0100119          CITIBANK GOV CARD SERVICE
,OFFICE OF THE MINORITY LEADER,2010Q1,SUPPLIES AND MATERIALS,"",03­26 P1 10NL0100120               DO,01/27/10,02/24/10,FOOD & BEVERAGE,"3,552.60",FISCAL YEAR 2010,"","","",03­26 P1 10NL0100120               DO
,OFFICE OF THE MINORITY LEADER,2010Q1,SUPPLIES AND MATERIALS,"",03­26 P1 10NL0100121          COCA-COLA ENTERPRISES,03/09/10,03/09/10,FOOD & BEVERAGE,350.58,FISCAL YEAR 2010,"","","",03­26 P1 10NL0100121          COCA-COLA ENTERPRISES
,OFFICE OF THE MINORITY LEADER,2010Q1,PERSONNEL BENEFITS,"",01­20       P9 NL011000001        HON. JOHN A BOEHNER,01/01/10,01/31/10,OFFICIAL EXPENSES FOR LEADER,833.33,FISCAL YEAR 2010,"","","",01­20       P9 NL011000001        HON. JOHN A BOEHNER
,OFFICE OF THE MINORITY LEADER,2010Q1,PERSONNEL BENEFITS,"",02­22       P9 NL011000002             DO,02/01/10,02/28/10,OFFICIAL EXPENSES FOR LEADER,833.33,FISCAL YEAR 2010,"","","",02­22       P9 NL011000002             DO
,OFFICE OF THE MINORITY LEADER,2010Q1,PERSONNEL BENEFITS,"",03­19       P9 NL011000003             DO,03/01/10,03/31/10,OFFICIAL EXPENSES FOR LEADER,833.33,FISCAL YEAR 2010,"","","",03­19       P9 NL011000003             DO
,OFFICE OF THE MINORITY LEADER,2010Q1,TRAVEL,"",01­28 P1 10NL0100082          WILLIAM PAUL GREENE,11/05/08,09/30/09,"TAXI, PARKING, TOLLS",420.75,FISCAL YEAR 2009,"","","",01­28 P1 10NL0100082          WILLIAM PAUL GREENE
,OFFICE OF THE MINORITY LEADER,2010Q1,TRAVEL,"",01­28 P1 10NL0100081          WILLIAM PAUL GREENE,09/10/08,09/24/08,"TAXI, PARKING, TOLLS",49.75,FISCAL YEAR 2008,"","","",01­28 P1 10NL0100081          WILLIAM PAUL GREENE
,OFFICE OF THE MAJORITY WHIP,2010Q1,PERSONNEL COMPENSATION,"","WATKINS, YELBERTON R",12/01/09,03/31/10,CHIEF OF STAFF,"41,724.66",FISCAL YEAR 2010,"","","","WATKINS, YELBERTON R"
,OFFICE OF THE MAJORITY WHIP,2010Q1,PERSONNEL COMPENSATION,"","ARGUELLES, ADAM",12/01/09,03/31/10,ASSISTANT FLOOR DIRECTOR,"19,499.99",FISCAL YEAR 2010,"","","","ARGUELLES, ADAM"
,OFFICE OF THE MAJORITY WHIP,2010Q1,PERSONNEL COMPENSATION,"","BIRCH, SARAH L",12/01/09,03/31/10,DIR SPECIAL PROJ./MEMBER SERV,"22,000.01",FISCAL YEAR 2010,"","","","BIRCH, SARAH L"
,OFFICE OF THE MAJORITY WHIP,2010Q1,PERSONNEL COMPENSATION,"","CANTRELL,MARGARET",12/01/09,03/31/10,POLICY ADVISOR,"24,500.00",FISCAL YEAR 2010,"","","","CANTRELL,MARGARET"
,OFFICE OF THE MAJORITY WHIP,2010Q1,PERSONNEL COMPENSATION,"","CHAPLIN, JENNIE",01/01/10,03/31/10,DIRECTOR OF SCHEDULING,"5,499.99",FISCAL YEAR 2010,"","","","CHAPLIN, JENNIE"
,OFFICE OF THE MAJORITY WHIP,2010Q1,PERSONNEL COMPENSATION,"","COLLINS, MICHAEL E",01/01/10,03/31/10,CHIEF DEPUTY WHIP,"10,625.01",FISCAL YEAR 2010,"","","","COLLINS, MICHAEL E"
,OFFICE OF THE MAJORITY WHIP,2010Q1,PERSONNEL COMPENSATION,"","DANIELS,RYAN",12/01/09,03/31/10,PRESS ASSISTANT,"12,500.00",FISCAL YEAR 2010,"","","","DANIELS,RYAN"
,OFFICE OF THE MAJORITY WHIP,2010Q1,PERSONNEL COMPENSATION,"","DAY,TAMIKA K",12/01/09,03/31/10,SYSTEMS ADMINISTRATOR,"14,500.01",FISCAL YEAR 2010,"","","","DAY,TAMIKA K"
,OFFICE OF THE MAJORITY WHIP,2010Q1,PERSONNEL COMPENSATION,"","GRECO, KRISTINE M",12/01/09,03/31/10,COMMUNICATIONS DIRECTOR,"34,499.99",FISCAL YEAR 2010,"","","","GRECO, KRISTINE M"
,OFFICE OF THE MAJORITY WHIP,2010Q1,PERSONNEL COMPENSATION,"","GRIMALDI, DAVID F",12/01/09,03/31/10,SENIOR COUNSEL,"30,701.25",FISCAL YEAR 2010,"","","","GRIMALDI, DAVID F"
,OFFICE OF THE MAJORITY WHIP,2010Q1,PERSONNEL COMPENSATION,"","GRINNEY,MATTHEW J",12/01/09,03/31/10,STAFF ASSISTANT,"9,250.01",FISCAL YEAR 2010,"","","","GRINNEY,MATTHEW J"
,OFFICE OF THE MAJORITY WHIP,2010Q1,PERSONNEL COMPENSATION,"","HACKER,MICHAEL E",12/01/09,03/31/10,DEP FLOOR DIR FOR COALITIONS,"32,000.00",FISCAL YEAR 2010,"","","","HACKER,MICHAEL E"
,OFFICE OF THE MAJORITY WHIP,2010Q1,PERSONNEL COMPENSATION,"","HARRISON, ANTONIO L",12/01/09,03/31/10,DIRECTOR OF OUTREACH,"26,999.99",FISCAL YEAR 2010,"","","","HARRISON, ANTONIO L"
,OFFICE OF THE MAJORITY WHIP,2010Q1,PERSONNEL COMPENSATION,"","HARTMAN, WENDY A",12/01/09,03/31/10,SHARED EMPLOYEE,"22,000.01",FISCAL YEAR 2010,"","","","HARTMAN, WENDY A"
,OFFICE OF THE MAJORITY WHIP,2010Q1,PERSONNEL COMPENSATION,"","MAUTE,ALYSSA N",01/15/10,03/31/10,INTERN,"2,427.77",FISCAL YEAR 2010,"","","","MAUTE,ALYSSA N"
,OFFICE OF THE MAJORITY WHIP,2010Q1,PERSONNEL COMPENSATION,"","METCALF, JOHN T",12/01/09,03/31/10,FLOOR DIRECTOR AND COUNSEL,"38,200.90",FISCAL YEAR 2010,"","","","METCALF, JOHN T"
,OFFICE OF THE MAJORITY WHIP,2010Q1,PERSONNEL COMPENSATION,"","MOORE, MIKAEL",01/01/10,03/31/10,FLOOR ASSISTANT,"9,999.99",FISCAL YEAR 2010,"","","","MOORE, MIKAEL"
,OFFICE OF THE MAJORITY WHIP,2010Q1,PERSONNEL COMPENSATION,"","NEILL, ALLIE",12/01/09,03/31/10,DEP FLOOR DIR AND SENIOR ADVIS,"33,250.01",FISCAL YEAR 2010,"","","","NEILL, ALLIE"
,OFFICE OF THE MAJORITY WHIP,2010Q1,PERSONNEL COMPENSATION,"","SHERIDAN,KELLY A",01/14/10,03/31/10,STAFF ASSISTANT,"6,416.67",FISCAL YEAR 2010,"","","","SHERIDAN,KELLY A"
,OFFICE OF THE MAJORITY WHIP,2010Q1,PERSONNEL COMPENSATION,"","SINGLETARY, BARVETTA",01/01/10,03/31/10,SHARED EMPLOYEE,"13,000.00",FISCAL YEAR 2010,"","","","SINGLETARY, BARVETTA"
,OFFICE OF THE MAJORITY WHIP,2010Q1,TRAVEL,"",01­08       P1 10MW0100068      ANTONIO HARRISON,12/16/09,12/21/09,"TAXI, PARKING, TOLLS",16.00,FISCAL YEAR 2010,"","","",01­08       P1 10MW0100068      ANTONIO HARRISON
,OFFICE OF THE MAJORITY WHIP,2010Q1,TRAVEL,"",01­08       P1 10MW0100069      MICHAEL E HACKER,10/28/09,12/15/09,"TAXI, PARKING, TOLLS",129.00,FISCAL YEAR 2010,"","","",01­08       P1 10MW0100069      MICHAEL E HACKER
,OFFICE OF THE MAJORITY WHIP,2010Q1,TRAVEL,"",02­12       P1 10MW0100085      ANTONIO HARRISON,01/05/10,01/22/10,"TAXI, PARKING, TOLLS",22.00,FISCAL YEAR 2010,"","","",02­12       P1 10MW0100085      ANTONIO HARRISON
,OFFICE OF THE MAJORITY WHIP,2010Q1,TRAVEL,"",02­12       P1 10MW0100084      SARAH LYNN BIRCH,01/04/10,01/04/10,"TAXI, PARKING, TOLLS",11.00,FISCAL YEAR 2010,"","","",02­12       P1 10MW0100084      SARAH LYNN BIRCH
,OFFICE OF THE MAJORITY WHIP,2010Q1,TRAVEL,"",02­26       P1 10MW0100095      ANTONIO HARRISON,01/19/10,01/28/10,"TAXI, PARKING, TOLLS",35.00,FISCAL YEAR 2010,"","","",02­26       P1 10MW0100095      ANTONIO HARRISON
,OFFICE OF THE MAJORITY WHIP,2010Q1,TRAVEL,"",02­26       P1 10MW0100094      SARAH LYNN BIRCH,01/21/10,01/21/10,"TAXI, PARKING, TOLLS",12.00,FISCAL YEAR 2010,"","","",02­26       P1 10MW0100094      SARAH LYNN BIRCH
,OFFICE OF THE MAJORITY WHIP,2010Q1,TRAVEL,"",03­11       P1 10MW0100110      ANTONIO HARRISON,02/19/10,02/19/10,"TAXI, PARKING, TOLLS",34.00,FISCAL YEAR 2010,"","","",03­11       P1 10MW0100110      ANTONIO HARRISON
,OFFICE OF THE MAJORITY WHIP,2010Q1,TRAVEL,"",03­19       P1 10MW0100116      KRISTINE GRECO,02/24/10,02/25/10,"TAXI, PARKING, TOLLS",30.00,FISCAL YEAR 2010,"","","",03­19       P1 10MW0100116      KRISTINE GRECO
,OFFICE OF THE MAJORITY WHIP,2010Q1,TRAVEL,"",03­19       P1 10MW0100114      SARAH LYNN BIRCH,02/12/10,02/12/10,"TAXI, PARKING, TOLLS",72.00,FISCAL YEAR 2010,"","","",03­19       P1 10MW0100114      SARAH LYNN BIRCH
,OFFICE OF THE MAJORITY WHIP,2010Q1,TRAVEL,"",03­30       P1 10MW0100130      ANTONIO HARRISON,03/12/10,03/12/10,"TAXI, PARKING, TOLLS",16.00,FISCAL YEAR 2010,"","","",03­30       P1 10MW0100130      ANTONIO HARRISON
,OFFICE OF THE MAJORITY WHIP,2010Q1,"RENT, COMMUNICATION, UTILITIES","",01­25       CB    FXF100122B      FEDERAL EXPRESS CORP,01/06/10,01/06/10,POSTAGE/COURIER/BOX RENTAL,10.54,FISCAL YEAR 2010,"","","",01­25       CB    FXF100122B      FEDERAL EXPRESS CORP
,OFFICE OF THE MAJORITY WHIP,2010Q1,"RENT, COMMUNICATION, UTILITIES","",02­01       CB    FXF100128B            DO,01/15/10,01/15/10,POSTAGE/COURIER/BOX RENTAL,14.92,FISCAL YEAR 2010,"","","",02­01       CB    FXF100128B            DO
,OFFICE OF THE MAJORITY WHIP,2010Q1,"RENT, COMMUNICATION, UTILITIES","",02­05       CB    FXF100204A            DO,01/22/10,01/22/10,POSTAGE/COURIER/BOX RENTAL,56.56,FISCAL YEAR 2010,"","","",02­05       CB    FXF100204A            DO
,OFFICE OF THE MAJORITY WHIP,2010Q1,"RENT, COMMUNICATION, UTILITIES","",02­16       CB    FXF100211A            DO,01/29/10,01/29/10,POSTAGE/COURIER/BOX RENTAL,13.66,FISCAL YEAR 2010,"","","",02­16       CB    FXF100211A            DO
,OFFICE OF THE MAJORITY WHIP,2010Q1,"RENT, COMMUNICATION, UTILITIES","",03­12       CB    FXF100311A            DO,02/24/10,02/24/10,POSTAGE/COURIER/BOX RENTAL,20.42,FISCAL YEAR 2010,"","","",03­12       CB    FXF100311A            DO
,OFFICE OF THE MAJORITY WHIP,2010Q1,"RENT, COMMUNICATION, UTILITIES","",03­18       CB    FXf100317a            DO,03/02/10,03/02/10,POSTAGE/COURIER/BOX RENTAL,10.14,FISCAL YEAR 2010,"","","",03­18       CB    FXf100317a            DO
,OFFICE OF THE MAJORITY WHIP,2010Q1,"RENT, COMMUNICATION, UTILITIES","",03­19       P1    10MW0100115     KRISTINE GRECO,11/30/09,11/30/09,"TELECOM SVC, EQUIP & TOLLS",134.29,FISCAL YEAR 2010,"","","",03­19       P1    10MW0100115     KRISTINE GRECO
,OFFICE OF THE MAJORITY WHIP,2010Q1,"RENT, COMMUNICATION, UTILITIES","",03­26       CB    FXF100325B      FEDERAL EXPRESS CORP,03/16/10,03/16/10,POSTAGE/COURIER/BOX RENTAL,5.15,FISCAL YEAR 2010,"","","",03­26       CB    FXF100325B      FEDERAL EXPRESS CORP
,OFFICE OF THE MAJORITY WHIP,2010Q1,PRINTING AND REPRODUCTION,"",01­22       S3    10022000059,01/01/10,01/31/10,PHOTOGRAPHIC (TRANSFER),6.40,FISCAL YEAR 2010,"","","",01­22       S3    10022000059
,OFFICE OF THE MAJORITY WHIP,2010Q1,PRINTING AND REPRODUCTION,"",02­23       S3    10054000103,02/01/10,02/28/10,PHOTOGRAPHIC (TRANSFER),12.90,FISCAL YEAR 2010,"","","",02­23       S3    10054000103
,OFFICE OF THE MAJORITY WHIP,2010Q1,PRINTING AND REPRODUCTION,"","03­23       P1    10MW0100120      DAVID L. ANDRUKITUS, INC",02/09/10,02/09/10,PRINTING AND REPRODUCTION,107.50,FISCAL YEAR 2010,"","","","03­23       P1    10MW0100120      DAVID L. ANDRUKITUS, INC"
,OFFICE OF THE MAJORITY WHIP,2010Q1,PRINTING AND REPRODUCTION,"",03­25       S3    10084000114,03/01/10,03/31/10,PHOTOGRAPHIC (TRANSFER),6.50,FISCAL YEAR 2010,"","","",03­25       S3    10084000114
,OFFICE OF THE MAJORITY WHIP,2010Q1,OTHER SERVICES,"",01­08       P1 10MW0100076                     SARAH LYNN BIRCH,12/16/09,12/18/09,LAUNDRY SERVICE,63.60,FISCAL YEAR 2010,"","","",01­08       P1 10MW0100076                     SARAH LYNN BIRCH
,OFFICE OF THE MAJORITY WHIP,2010Q1,OTHER SERVICES,"",01­19   P7   20100119                   FIRESIDE21,11/01/09,11/30/09,"WEB DEV,HOSTNG,EMAIL & REL SVC",585.00,FISCAL YEAR 2010,"","","",01­19   P7   20100119                   FIRESIDE21
,OFFICE OF THE MAJORITY WHIP,2010Q1,OTHER SERVICES,"",01­20   P7   20100120                        DO,12/01/09,12/31/09,"WEB DEV,HOSTNG,EMAIL & REL SVC",585.00,FISCAL YEAR 2010,"","","",01­20   P7   20100120                        DO
,OFFICE OF THE MAJORITY WHIP,2010Q1,OTHER SERVICES,"",02­12   P1   10MW0100087                SARAH LYNN BIRCH,01/22/10,01/22/10,LAUNDRY SERVICE,125.08,FISCAL YEAR 2010,"","","",02­12   P1   10MW0100087                SARAH LYNN BIRCH
,OFFICE OF THE MAJORITY WHIP,2010Q1,OTHER SERVICES,"",02­23   P7   20100212                   FIRESIDE21,01/01/10,01/31/10,"WEB DEV,HOSTNG,EMAIL & REL SVC",585.00,FISCAL YEAR 2010,"","","",02­23   P7   20100212                   FIRESIDE21
,OFFICE OF THE MAJORITY WHIP,2010Q1,OTHER SERVICES,"",03­10   P1   10MW0100111                SARAH LYNN BIRCH,02/26/10,02/26/10,LAUNDRY SERVICE,82.68,FISCAL YEAR 2010,"","","",03­10   P1   10MW0100111                SARAH LYNN BIRCH
,OFFICE OF THE MAJORITY WHIP,2010Q1,OTHER SERVICES,"",03­16   P7   20100316                   FIRESIDE21,02/01/10,02/28/10,"WEB DEV,HOSTNG,EMAIL & REL SVC",585.00,FISCAL YEAR 2010,"","","",03­16   P7   20100316                   FIRESIDE21
,OFFICE OF THE MAJORITY WHIP,2010Q1,OTHER SERVICES,"",03­19   P1   10MW0100113                SARAH LYNN BIRCH,03/05/10,03/05/10,LAUNDRY SERVICE,47.70,FISCAL YEAR 2010,"","","",03­19   P1   10MW0100113                SARAH LYNN BIRCH
,OFFICE OF THE MAJORITY WHIP,2010Q1,OTHER SERVICES,"",03­30   P1   10MW0100129                     DO,03/15/10,03/15/10,LAUNDRY SERVICE,41.34,FISCAL YEAR 2010,"","","",03­30   P1   10MW0100129                     DO
,OFFICE OF THE MAJORITY WHIP,2010Q1,SUPPLIES AND MATERIALS,"",01­04   P1   10MW0100066      SARAH LYNN BIRCH,12/14/09,12/14/09,FOOD & BEVERAGE,489.50,FISCAL YEAR 2010,"","","",01­04   P1   10MW0100066      SARAH LYNN BIRCH
,OFFICE OF THE MAJORITY WHIP,2010Q1,SUPPLIES AND MATERIALS,"",01­04   P1   10MW0100067           DO,12/10/09,12/10/09,FOOD & BEVERAGE,"2,516.03",FISCAL YEAR 2010,"","","",01­04   P1   10MW0100067           DO
,OFFICE OF THE MAJORITY WHIP,2010Q1,SUPPLIES AND MATERIALS,"",01­08   P1   10MW0100074      COCA-COLA ENTERPRISES,11/24/09,11/24/09,FOOD & BEVERAGE,367.80,FISCAL YEAR 2010,"","","",01­08   P1   10MW0100074      COCA-COLA ENTERPRISES
,OFFICE OF THE MAJORITY WHIP,2010Q1,SUPPLIES AND MATERIALS,"",01­08   P1   10MW0100075           DO,12/08/09,12/08/09,FOOD & BEVERAGE,179.40,FISCAL YEAR 2010,"","","",01­08   P1   10MW0100075           DO
,OFFICE OF THE MAJORITY WHIP,2010Q1,SUPPLIES AND MATERIALS,"",01­08   P1   10MW0100072      SARAH LYNN BIRCH,12/15/09,12/19/09,FOOD & BEVERAGE,244.38,FISCAL YEAR 2010,"","","",01­08   P1   10MW0100072      SARAH LYNN BIRCH
,OFFICE OF THE MAJORITY WHIP,2010Q1,SUPPLIES AND MATERIALS,"",01­08   P1   10MW0100077      WENDY ANNE HARTMAN,11/30/09,12/15/09,FOOD & BEVERAGE,461.86,FISCAL YEAR 2010,"","","",01­08   P1   10MW0100077      WENDY ANNE HARTMAN
,OFFICE OF THE MAJORITY WHIP,2010Q1,SUPPLIES AND MATERIALS,"","02­12   P1   10MW0100078      BETTY CRUDUP, CATERER",01/21/10,01/21/10,FOOD & BEVERAGE,900.00,FISCAL YEAR 2010,"","","","02­12   P1   10MW0100078      BETTY CRUDUP, CATERER"
,OFFICE OF THE MAJORITY WHIP,2010Q1,SUPPLIES AND MATERIALS,"",02­12   P1   10MW0100079      CHANTILLY DONUTS,01/21/10,01/21/10,FOOD & BEVERAGE,32.00,FISCAL YEAR 2010,"","","",02­12   P1   10MW0100079      CHANTILLY DONUTS
,OFFICE OF THE MAJORITY WHIP,2010Q1,SUPPLIES AND MATERIALS,"","02­12   P1   10MW0100080      DAVID L. ANDRUKITUS, INC",12/31/09,12/31/09,FOOD & BEVERAGE,"5,976.00",FISCAL YEAR 2010,"","","","02­12   P1   10MW0100080      DAVID L. ANDRUKITUS, INC"
,OFFICE OF THE MAJORITY WHIP,2010Q1,SUPPLIES AND MATERIALS,"",02­12   P1   10MW0100086      KRISTINE GRECO,01/03/10,02/02/10,PUBLICATION REF MATERIAL,230.00,FISCAL YEAR 2010,"","","",02­12   P1   10MW0100086      KRISTINE GRECO
,OFFICE OF THE MAJORITY WHIP,2010Q1,SUPPLIES AND MATERIALS,"",02­12   P1   10MW0100081      SARAH LYNN BIRCH,01/14/10,01/14/10,FOOD & BEVERAGE,59.36,FISCAL YEAR 2010,"","","",02­12   P1   10MW0100081      SARAH LYNN BIRCH
,OFFICE OF THE MAJORITY WHIP,2010Q1,SUPPLIES AND MATERIALS,"",02­12   P1   10MW0100088           DO,01/22/10,01/22/10,FOOD & BEVERAGE,48.11,FISCAL YEAR 2010,"","","",02­12   P1   10MW0100088           DO
,OFFICE OF THE MAJORITY WHIP,2010Q1,SUPPLIES AND MATERIALS,"","02­26   P1   10MW0100096      LEADERSHIP DIRECTORIES, INC",06/02/10,06/01/11,PUBLICATION REF MATERIAL,361.00,FISCAL YEAR 2010,"","","","02­26   P1   10MW0100096      LEADERSHIP DIRECTORIES, INC"
,OFFICE OF THE MAJORITY WHIP,2010Q1,SUPPLIES AND MATERIALS,"","03­01   P1   10MW0100093      BETTY CRUDUP, CATERER",02/04/10,02/04/10,FOOD & BEVERAGE,900.00,FISCAL YEAR 2010,"","","","03­01   P1   10MW0100093      BETTY CRUDUP, CATERER"
,OFFICE OF THE MAJORITY WHIP,2010Q1,SUPPLIES AND MATERIALS,"",03­01   P1   10MW0100100      CHANTILLY DONUTS,02/04/10,02/04/10,FOOD & BEVERAGE,32.00,FISCAL YEAR 2010,"","","",03­01   P1   10MW0100100      CHANTILLY DONUTS
,OFFICE OF THE MAJORITY WHIP,2010Q1,SUPPLIES AND MATERIALS,"",03­01   P1   10MW0100098      COCA-COLA ENTERPRISES,01/05/10,01/05/10,FOOD & BEVERAGE,181.32,FISCAL YEAR 2010,"","","",03­01   P1   10MW0100098      COCA-COLA ENTERPRISES
,OFFICE OF THE MAJORITY WHIP,2010Q1,SUPPLIES AND MATERIALS,"",03­03   P1   10MW0100099           DO,01/19/10,01/19/10,FOOD & BEVERAGE,320.95,FISCAL YEAR 2010,"","","",03­03   P1   10MW0100099           DO
,OFFICE OF THE MAJORITY WHIP,2010Q1,SUPPLIES AND MATERIALS,"",03­03   P1   10MW0100101      NEWS POWER ONLINE,02/06/10,02/28/10,PUBLICATION REF MATERIAL,230.00,FISCAL YEAR 2010,"","","",03­03   P1   10MW0100101      NEWS POWER ONLINE
,OFFICE OF THE MAJORITY WHIP,2010Q1,SUPPLIES AND MATERIALS,"",03­05   P1   10MW01RW086           DO,01/03/10,02/02/10,PUBLICATION REF MATERIAL,230.00,FISCAL YEAR 2010,"","","",03­05   P1   10MW01RW086           DO
,OFFICE OF THE MAJORITY WHIP,2010Q1,SUPPLIES AND MATERIALS,"",03­05   P1   10MW0100104      WENDY ANNE HARTMAN,01/18/10,01/18/10,FOOD & BEVERAGE,186.51,FISCAL YEAR 2010,"","","",03­05   P1   10MW0100104      WENDY ANNE HARTMAN
,OFFICE OF THE MAJORITY WHIP,2010Q1,SUPPLIES AND MATERIALS,"",03­05   P1   10MW0100105           DO,01/25/10,01/25/10,FOOD & BEVERAGE,122.73,FISCAL YEAR 2010,"","","",03­05   P1   10MW0100105           DO
,OFFICE OF THE MAJORITY WHIP,2010Q1,SUPPLIES AND MATERIALS,"",03­10   P1   10MW0100112      WENDY ANNE HARTMAN,11/22/09,02/15/10,FOOD & BEVERAGE,159.36,FISCAL YEAR 2010,"","","",03­10   P1   10MW0100112      WENDY ANNE HARTMAN
,OFFICE OF THE MAJORITY WHIP,2010Q1,SUPPLIES AND MATERIALS,"","03­11   P1   10MW0100107      BETTY CRUDUP, CATERER",02/25/10,02/25/10,FOOD & BEVERAGE,900.00,FISCAL YEAR 2010,"","","","03­11   P1   10MW0100107      BETTY CRUDUP, CATERER"
,OFFICE OF THE MAJORITY WHIP,2010Q1,SUPPLIES AND MATERIALS,"",03­11   P1   10MW0100108      CHANTILLY DONUTS,02/25/10,02/25/10,FOOD & BEVERAGE,37.00,FISCAL YEAR 2010,"","","",03­11   P1   10MW0100108      CHANTILLY DONUTS
,OFFICE OF THE MAJORITY WHIP,2010Q1,SUPPLIES AND MATERIALS,"",03­11   P1   10MW0100109      SARAH LYNN BIRCH,02/23/10,02/26/10,FOOD & BEVERAGE,103.58,FISCAL YEAR 2010,"","","",03­11   P1   10MW0100109      SARAH LYNN BIRCH
,OFFICE OF THE MAJORITY WHIP,2010Q1,SUPPLIES AND MATERIALS,"",03­16   P1   10MW0100106           DO,01/27/10,01/27/10,FOOD & BEVERAGE,105.46,FISCAL YEAR 2010,"","","",03­16   P1   10MW0100106           DO
,OFFICE OF THE MAJORITY WHIP,2010Q1,SUPPLIES AND MATERIALS,"",03­19   P1   10MW0100122      CHANTILLY DONUTS,03/04/10,03/04/10,FOOD & BEVERAGE,37.00,FISCAL YEAR 2010,"","","",03­19   P1   10MW0100122      CHANTILLY DONUTS
,OFFICE OF THE MAJORITY WHIP,2010Q1,SUPPLIES AND MATERIALS,"",03­19   P1   10MW0100126      NEWS POWER ONLINE,03/04/10,03/04/10,PUBLICATION REF MATERIAL,230.00,FISCAL YEAR 2010,"","","",03­19   P1   10MW0100126      NEWS POWER ONLINE
,OFFICE OF THE MAJORITY WHIP,2010Q1,SUPPLIES AND MATERIALS,"","03­23   P1   10MW0100117      BETTY CRUDUP, CATERER",03/04/10,03/04/10,PUBLICATION REF MATERIAL,900.00,FISCAL YEAR 2010,"","","","03­23   P1   10MW0100117      BETTY CRUDUP, CATERER"
,OFFICE OF THE MAJORITY WHIP,2010Q1,SUPPLIES AND MATERIALS,"",03­23   P1   10MW0100119      COCA-COLA ENTERPRISES,03/02/10,03/02/10,FOOD & BEVERAGE,459.69,FISCAL YEAR 2010,"","","",03­23   P1   10MW0100119      COCA-COLA ENTERPRISES
,OFFICE OF THE MAJORITY WHIP,2010Q1,SUPPLIES AND MATERIALS,"",03­23   P1   10MW0100121      MATTHEW GRINNEY,02/22/10,02/22/10,FOOD & BEVERAGE,40.03,FISCAL YEAR 2010,"","","",03­23   P1   10MW0100121      MATTHEW GRINNEY
,OFFICE OF THE MAJORITY WHIP,2010Q1,SUPPLIES AND MATERIALS,"","03­30   P1   10MW0100132      BETTY CRUDUP, CATERER",03/11/10,03/11/10,FOOD & BEVERAGE,900.00,FISCAL YEAR 2010,"","","","03­30   P1   10MW0100132      BETTY CRUDUP, CATERER"
,OFFICE OF THE MAJORITY WHIP,2010Q1,SUPPLIES AND MATERIALS,"",03­30   P1   10MW0100133      CHANTILLY DONUTS,03/11/10,03/11/10,FOOD & BEVERAGE,37.00,FISCAL YEAR 2010,"","","",03­30   P1   10MW0100133      CHANTILLY DONUTS
,OFFICE OF THE MAJORITY WHIP,2010Q1,SUPPLIES AND MATERIALS,"",03­30   P1   10MW0100134      COCA-COLA ENTERPRISES,02/04/10,02/04/10,FOOD & BEVERAGE,254.67,FISCAL YEAR 2010,"","","",03­30   P1   10MW0100134      COCA-COLA ENTERPRISES
,OFFICE OF THE MAJORITY WHIP,2010Q1,SUPPLIES AND MATERIALS,"","03­30   P1   10MW0100135      LEADERSHIP DIRECTORIES, INC",02/16/10,02/16/10,PUBLICATION REF MATERIAL,525.00,FISCAL YEAR 2010,"","","","03­30   P1   10MW0100135      LEADERSHIP DIRECTORIES, INC"
,OFFICE OF THE MAJORITY WHIP,2010Q1,SUPPLIES AND MATERIALS,"",03­30   P1   10MW0100128      RESTAURANT ASSOCIATES,03/11/10,03/11/10,FOOD & BEVERAGE,"1,725.50",FISCAL YEAR 2010,"","","",03­30   P1   10MW0100128      RESTAURANT ASSOCIATES
,OFFICE OF THE MAJORITY WHIP,2010Q1,SUPPLIES AND MATERIALS,"","03­30 P1 10MW0100137          ROLL CALL, INC",02/01/10,01/31/11,PUBLICATION REF MATERIAL,"9,870.00",FISCAL YEAR 2010,"","","","03­30 P1 10MW0100137          ROLL CALL, INC"
,OFFICE OF THE MAJORITY WHIP,2010Q1,SUPPLIES AND MATERIALS,"",03­30 P1 10MW0100131          SARAH LYNN BIRCH,03/10/10,03/10/10,FOOD & BEVERAGE,24.87,FISCAL YEAR 2010,"","","",03­30 P1 10MW0100131          SARAH LYNN BIRCH
,OFFICE OF THE MAJORITY WHIP,2010Q1,SUPPLIES AND MATERIALS,"",03­30 P1 10MW0100136          WENDY ANNE HARTMAN,03/03/10,03/09/10,FOOD & BEVERAGE,525.98,FISCAL YEAR 2010,"","","",03­30 P1 10MW0100136          WENDY ANNE HARTMAN
,OFFICE OF THE MAJORITY WHIP,2010Q1,TRAVEL,"",02­12 P1 10MW0100083          KRISTINE GRECO,09/23/09,10/06/09,"TAXI, PARKING, TOLLS",20.00,FISCAL YEAR 2009,"","","",02­12 P1 10MW0100083          KRISTINE GRECO
,OFFICE OF THE MAJORITY WHIP,2010Q1,SUPPLIES AND MATERIALS,"","02­26      P1 10MW0100097      LEADERSHIP DIRECTORIES, INC",09/02/09,09/01/10,PUBLICATION REF MATERIAL,489.00,FISCAL YEAR 2009,"","","","02­26      P1 10MW0100097      LEADERSHIP DIRECTORIES, INC"
,OFFICE OF THE MINORITY WHIP,2010Q1,PERSONNEL COMPENSATION,"","COLLINS, ROBERT W",01/01/10,02/28/10,DEPUTY CHIEF OF STAFF,"24,833.33",FISCAL YEAR 2010,"","","","COLLINS, ROBERT W"
,OFFICE OF THE MINORITY WHIP,2010Q1,PERSONNEL COMPENSATION,"","MURRAY,JOHN A",02/03/10,03/31/10,COMMUNICATIONS DIRECTOR,"27,651.36",FISCAL YEAR 2010,"","","","MURRAY,JOHN A"
,OFFICE OF THE MINORITY WHIP,2010Q1,PERSONNEL COMPENSATION,"","STOMBRES, STEVEN C",01/01/10,03/31/10,CHIEF OF STAFF,"42,824.34",FISCAL YEAR 2010,"","","","STOMBRES, STEVEN C"
,OFFICE OF THE MINORITY WHIP,2010Q1,PERSONNEL COMPENSATION,"","ANDRES,DOUGLAS R",01/01/10,03/31/10,DEPUTY COALITIONS DIRECTOR,"9,500.01",FISCAL YEAR 2010,"","","","ANDRES,DOUGLAS R"
,OFFICE OF THE MINORITY WHIP,2010Q1,PERSONNEL COMPENSATION,"","BARNES,FREDERIC W",01/01/10,03/31/10,SPECIAL ASSISTANT,"8,250.00",FISCAL YEAR 2010,"","","","BARNES,FREDERIC W"
,OFFICE OF THE MINORITY WHIP,2010Q1,PERSONNEL COMPENSATION,"","BAUER, RACHEL C",01/01/10,03/31/10,DEPUTY PRESS SECRETARY,"11,000.01",FISCAL YEAR 2010,"","","","BAUER, RACHEL C"
,OFFICE OF THE MINORITY WHIP,2010Q1,PERSONNEL COMPENSATION,"","BRAVO, MATTHEW",01/01/10,03/31/10,FLOOR ASSISTANT/SPECIAL ASSIST,"10,500.00",FISCAL YEAR 2010,"","","","BRAVO, MATTHEW"
,OFFICE OF THE MINORITY WHIP,2010Q1,PERSONNEL COMPENSATION,"","CULLEN,RICHARD T",01/01/10,03/31/10,STAFF ASSISTANT,"9,000.00",FISCAL YEAR 2010,"","","","CULLEN,RICHARD T"
,OFFICE OF THE MINORITY WHIP,2010Q1,PERSONNEL COMPENSATION,"","DAYSPRING, BRADFORD",01/01/10,03/31/10,PRESS SECRETARY,"11,666.66",FISCAL YEAR 2010,"","","","DAYSPRING, BRADFORD"
,OFFICE OF THE MINORITY WHIP,2010Q1,PERSONNEL COMPENSATION,"","DOLBOW, WILLIAM R",01/01/10,02/02/10,SENIOR ADVISOR,"13,935.47",FISCAL YEAR 2010,"","","","DOLBOW, WILLIAM R"
,OFFICE OF THE MINORITY WHIP,2010Q1,PERSONNEL COMPENSATION,"","FERENCE, MICHAEL J",01/01/10,03/31/10,POLICY ADVISOR,"7,500.00",FISCAL YEAR 2010,"","","","FERENCE, MICHAEL J"
,OFFICE OF THE MINORITY WHIP,2010Q1,PERSONNEL COMPENSATION,"","FREDERICKS, AUTUMN",01/01/10,03/31/10,SHARED EMPLOYEE,"3,000.00",FISCAL YEAR 2010,"","","","FREDERICKS, AUTUMN"
,OFFICE OF THE MINORITY WHIP,2010Q1,PERSONNEL COMPENSATION,"","GUSTAFSON,NICOLE M",01/01/10,03/31/10,POLICY ADVISOR & LEGIS. COUNS,"7,250.01",FISCAL YEAR 2010,"","","","GUSTAFSON,NICOLE M"
,OFFICE OF THE MINORITY WHIP,2010Q1,PERSONNEL COMPENSATION,"","HELM,KATHERINE D",02/01/10,03/31/10,STAFF ASSISTANT,"1,855.55",FISCAL YEAR 2010,"","","","HELM,KATHERINE D"
,OFFICE OF THE MINORITY WHIP,2010Q1,PERSONNEL COMPENSATION,"","HELM,KATHERINE D",01/01/10,02/28/10,TEMPORARY,"3,500.00",FISCAL YEAR 2010,"","","",DO
,OFFICE OF THE MINORITY WHIP,2010Q1,PERSONNEL COMPENSATION,"","JAEGER, CHERYL L",01/01/10,03/31/10,SR POLICY ADVISOR FOR DEFENSE,"7,500.00",FISCAL YEAR 2010,"","","","JAEGER, CHERYL L"
,OFFICE OF THE MINORITY WHIP,2010Q1,PERSONNEL COMPENSATION,"","JOHNSTON,STEVEN",01/01/10,03/31/10,ASSOCIATE DIR OF NEW MEDIA,"9,999.99",FISCAL YEAR 2010,"","","","JOHNSTON,STEVEN"
,OFFICE OF THE MINORITY WHIP,2010Q1,PERSONNEL COMPENSATION,"","LIRA,MATHEW L",01/01/10,03/31/10,DIRECTOR OF NEW MEDIA,"22,500.00",FISCAL YEAR 2010,"","","","LIRA,MATHEW L"
,OFFICE OF THE MINORITY WHIP,2010Q1,PERSONNEL COMPENSATION,"","LONG,MICHAEL P",03/01/10,03/31/10,INTERN,"1,500.00",FISCAL YEAR 2010,"","","","LONG,MICHAEL P"
,OFFICE OF THE MINORITY WHIP,2010Q1,PERSONNEL COMPENSATION,"","MIN, JAMES B",01/01/10,03/31/10,SHARED EMPLOYEE,"17,499.99",FISCAL YEAR 2010,"","","","MIN, JAMES B"
,OFFICE OF THE MINORITY WHIP,2010Q1,PERSONNEL COMPENSATION,"","NEVINS, KYLE W",01/01/10,03/31/10,SHARED EMPLOYEE,948.75,FISCAL YEAR 2010,"","","","NEVINS, KYLE W"
,OFFICE OF THE MINORITY WHIP,2010Q1,PERSONNEL COMPENSATION,"","O'CONNOR, KATHLEEN",01/01/10,03/31/10,DEPUTY SCHEDULER,"11,499.99",FISCAL YEAR 2010,"","","","O'CONNOR, KATHLEEN"
,OFFICE OF THE MINORITY WHIP,2010Q1,PERSONNEL COMPENSATION,"","PATRICK,BRIAN C",01/01/10,03/31/10,STRATEGIC COMMUNICATIONS,"15,000.00",FISCAL YEAR 2010,"","","","PATRICK,BRIAN C"
,OFFICE OF THE MINORITY WHIP,2010Q1,PERSONNEL COMPENSATION,"","ROBINSON,SARAH",01/01/10,03/31/10,DEPUTY DIRECTOR OF COALITIONS,"8,000.01",FISCAL YEAR 2010,"","","","ROBINSON,SARAH"
,OFFICE OF THE MINORITY WHIP,2010Q1,PERSONNEL COMPENSATION,"","SILVERMAN,DAVID J",01/01/10,03/31/10,SPEECHWRITER,"11,750.01",FISCAL YEAR 2010,"","","","SILVERMAN,DAVID J"
,OFFICE OF THE MINORITY WHIP,2010Q1,PERSONNEL COMPENSATION,"","STEIN, SHIMON",01/01/10,03/31/10,POLICY ADVISOR,"26,000.01",FISCAL YEAR 2010,"","","","STEIN, SHIMON"
,OFFICE OF THE MINORITY WHIP,2010Q1,PERSONNEL COMPENSATION,"","STEVENS,AMANDA D",01/01/10,01/31/10,INTERN,"1,750.00",FISCAL YEAR 2010,"","","","STEVENS,AMANDA D"
,OFFICE OF THE MINORITY WHIP,2010Q1,PERSONNEL COMPENSATION,"","STEVENS,AMANDA D",02/01/10,03/31/10,STAFF ASSISTANT,"3,605.55",FISCAL YEAR 2010,"","","",DO
,OFFICE OF THE MINORITY WHIP,2010Q1,PERSONNEL COMPENSATION,"","STIPICEVIC, JOHN A",01/01/10,03/31/10,FLOOR ASSISTANT,"12,166.66",FISCAL YEAR 2010,"","","","STIPICEVIC, JOHN A"
,OFFICE OF THE MINORITY WHIP,2010Q1,PERSONNEL COMPENSATION,"","TUELL,JAMES A",01/01/10,03/31/10,STAFF ASSISTANT,"7,250.01",FISCAL YEAR 2010,"","","","TUELL,JAMES A"
,OFFICE OF THE MINORITY WHIP,2010Q1,PERSONNEL COMPENSATION,"","VIESON, CHRISTOPHER W",01/01/10,03/31/10,FLOOR ASSISTANT,"13,833.33",FISCAL YEAR 2010,"","","","VIESON, CHRISTOPHER W"
,OFFICE OF THE MINORITY WHIP,2010Q1,PERSONNEL COMPENSATION,"","WILLIAMS, KELLY K",01/01/10,03/31/10,FINANCIAL ADMINISTRATOR,"3,500.01",FISCAL YEAR 2010,"","","","WILLIAMS, KELLY K"
,OFFICE OF THE MINORITY WHIP,2010Q1,TRAVEL,"",01­06   P1 10NW0100097      JAMES TUELL,12/02/09,12/16/09,PRIVATE OWNED VEHICLE MILEAGE,26.77,FISCAL YEAR 2010,"","","",01­06   P1 10NW0100097      JAMES TUELL
,OFFICE OF THE MINORITY WHIP,2010Q1,TRAVEL,"",01­06   P1 10NW0100098           DO,12/02/09,12/16/09,"TAXI, PARKING, TOLLS",7.00,FISCAL YEAR 2010,"","","",01­06   P1 10NW0100098           DO
,OFFICE OF THE MINORITY WHIP,2010Q1,TRAVEL,"",01­06   P1 10NW0100095      NICOLE M GUSTAFSON,12/03/09,12/03/09,"TAXI, PARKING, TOLLS",22.00,FISCAL YEAR 2010,"","","",01­06   P1 10NW0100095      NICOLE M GUSTAFSON
,OFFICE OF THE MINORITY WHIP,2010Q1,TRAVEL,"",01­06   P1 10NW0100096           DO,11/04/09,11/04/09,"TAXI, PARKING, TOLLS",33.00,FISCAL YEAR 2010,"","","",01­06   P1 10NW0100096           DO
,OFFICE OF THE MINORITY WHIP,2010Q1,TRAVEL,"",01­06   P1 10NW0100099      RACHEL C. BAUER TAYLOR,12/02/09,12/02/09,"TAXI, PARKING, TOLLS",16.00,FISCAL YEAR 2010,"","","",01­06   P1 10NW0100099      RACHEL C. BAUER TAYLOR
,OFFICE OF THE MINORITY WHIP,2010Q1,TRAVEL,"",01­29   P1 10NW0100127      BRADFORD DAYSPRING,01/07/10,01/08/10,LODGING,247.89,FISCAL YEAR 2010,"","","",01­29   P1 10NW0100127      BRADFORD DAYSPRING
,OFFICE OF THE MINORITY WHIP,2010Q1,TRAVEL,"",01­29   P1 10NW0100128           DO,01/10/10,01/10/10,"TAXI, PARKING, TOLLS",7.50,FISCAL YEAR 2010,"","","",01­29   P1 10NW0100128           DO
,OFFICE OF THE MINORITY WHIP,2010Q1,TRAVEL,"",01­29   P1 10NW0100129           DO,01/08/10,01/08/10,MEALS,11.63,FISCAL YEAR 2010,"","","",01­29   P1 10NW0100129           DO
,OFFICE OF THE MINORITY WHIP,2010Q1,TRAVEL,"",01­29   P1 10NW0100118      JEFF BURTON,10/01/09,12/08/09,"TAXI, PARKING, TOLLS",174.00,FISCAL YEAR 2010,"","","",01­29   P1 10NW0100118      JEFF BURTON
,OFFICE OF THE MINORITY WHIP,2010Q1,TRAVEL,"",02­03   P1 10NW0100132      RACHEL C. BAUER TAYLOR,11/01/09,11/30/09,PRIVATE OWNED VEHICLE MILEAGE,186.85,FISCAL YEAR 2010,"","","",02­03   P1 10NW0100132      RACHEL C. BAUER TAYLOR
,OFFICE OF THE MINORITY WHIP,2010Q1,TRAVEL,"",02­05   P1 10NW0100133      BRADFORD DAYSPRING,01/07/10,01/08/10,COMMERCIAL TRANSPORTATION,258.00,FISCAL YEAR 2010,"","","",02­05   P1 10NW0100133      BRADFORD DAYSPRING
,OFFICE OF THE MINORITY WHIP,2010Q1,TRAVEL,"",03­02   P1 10NW0100159           DO,01/26/10,01/26/10,"TAXI, PARKING, TOLLS",25.00,FISCAL YEAR 2010,"","","",03­02   P1 10NW0100159           DO
,OFFICE OF THE MINORITY WHIP,2010Q1,TRAVEL,"",03­02   P1 10NW0100152      KATHLEEN O'CONNOR,01/30/10,01/30/10,"TAXI, PARKING, TOLLS",15.00,FISCAL YEAR 2010,"","","",03­02   P1 10NW0100152      KATHLEEN O'CONNOR
,OFFICE OF THE MINORITY WHIP,2010Q1,TRAVEL,"",03­02   P1 10NW0100155      MICHAEL J. FERENCE,01/28/10,02/08/10,"TAXI, PARKING, TOLLS",153.56,FISCAL YEAR 2010,"","","",03­02   P1 10NW0100155      MICHAEL J. FERENCE
,OFFICE OF THE MINORITY WHIP,2010Q1,TRAVEL,"",03­02   P1 10NW0100156           DO,01/28/10,02/08/10,COMMERCIAL TRANSPORTATION,648.00,FISCAL YEAR 2010,"","","",03­02   P1 10NW0100156           DO
,OFFICE OF THE MINORITY WHIP,2010Q1,TRAVEL,"",03­11   P1 10NW0100169      JAMES TUELL,01/14/10,02/23/10,PRIVATE OWNED VEHICLE MILEAGE,24.00,FISCAL YEAR 2010,"","","",03­11   P1 10NW0100169      JAMES TUELL
,OFFICE OF THE MINORITY WHIP,2010Q1,TRAVEL,"",03­11   P1 10NW0100167      RICHARD T CULLEN,10/18/09,10/18/09,"TAXI, PARKING, TOLLS",44.00,FISCAL YEAR 2010,"","","",03­11   P1 10NW0100167      RICHARD T CULLEN
,OFFICE OF THE MINORITY WHIP,2010Q1,TRAVEL,"",03­19 P1 10NW0100172          JAMES TUELL,03/08/10,03/08/10,"TAXI, PARKING, TOLLS",13.00,FISCAL YEAR 2010,"","","",03­19 P1 10NW0100172          JAMES TUELL
,OFFICE OF THE MINORITY WHIP,2010Q1,TRAVEL,"",03­19 P1 10NW0100174          RACHEL C. BAUER TAYLOR,02/17/10,02/17/10,"TAXI, PARKING, TOLLS",6.00,FISCAL YEAR 2010,"","","",03­19 P1 10NW0100174          RACHEL C. BAUER TAYLOR
,OFFICE OF THE MINORITY WHIP,2010Q1,TRAVEL,"",03­19 P1 10NW0100180          RICHARD T CULLEN,03/03/10,03/03/10,"TAXI, PARKING, TOLLS",12.00,FISCAL YEAR 2010,"","","",03­19 P1 10NW0100180          RICHARD T CULLEN
,OFFICE OF THE MINORITY WHIP,2010Q1,TRAVEL,"",03­19 P1 10NW0100175          SARAH ROBINSON,10/06/09,11/24/09,"TAXI, PARKING, TOLLS",68.00,FISCAL YEAR 2010,"","","",03­19 P1 10NW0100175          SARAH ROBINSON
,OFFICE OF THE MINORITY WHIP,2010Q1,TRAVEL,"",03­21 P1 10NW0100181          DAVID SILVERMAN,02/25/10,02/25/10,"TAXI, PARKING, TOLLS",19.00,FISCAL YEAR 2010,"","","",03­21 P1 10NW0100181          DAVID SILVERMAN
,OFFICE OF THE MINORITY WHIP,2010Q1,"RENT, COMMUNICATION, UTILITIES","",01­08      CB FXF100107A      FEDERAL EXPRESS CORP,12/23/09,12/23/09,POSTAGE/COURIER/BOX RENTAL,6.69,FISCAL YEAR 2010,"","","",01­08      CB FXF100107A      FEDERAL EXPRESS CORP
,OFFICE OF THE MINORITY WHIP,2010Q1,"RENT, COMMUNICATION, UTILITIES","",02­05      CB FXF100204A            DO,01/25/10,01/25/10,POSTAGE/COURIER/BOX RENTAL,4.13,FISCAL YEAR 2010,"","","",02­05      CB FXF100204A            DO
,OFFICE OF THE MINORITY WHIP,2010Q1,"RENT, COMMUNICATION, UTILITIES","",03­05      CB FXF100304A            DO,02/17/10,02/17/10,POSTAGE/COURIER/BOX RENTAL,5.39,FISCAL YEAR 2010,"","","",03­05      CB FXF100304A            DO
,OFFICE OF THE MINORITY WHIP,2010Q1,PRINTING AND REPRODUCTION,"",01­22      P1    10NW0100114      CITIBANK GOV CARD SERVICE,12/15/09,12/16/09,PRINTING AND REPRODUCTION,155.24,FISCAL YEAR 2010,"","","",01­22      P1    10NW0100114      CITIBANK GOV CARD SERVICE
,OFFICE OF THE MINORITY WHIP,2010Q1,PRINTING AND REPRODUCTION,"","01­29      P1    10NW0100122      DAVID L. ANDRUKITUS, INC",10/26/09,10/26/09,PRINTING AND REPRODUCTION,57.50,FISCAL YEAR 2010,"","","","01­29      P1    10NW0100122      DAVID L. ANDRUKITUS, INC"
,OFFICE OF THE MINORITY WHIP,2010Q1,PRINTING AND REPRODUCTION,"",02­18      P1    10NW0100141               DO,12/23/09,12/23/09,PRINTING AND REPRODUCTION,"1,790.30",FISCAL YEAR 2010,"","","",02­18      P1    10NW0100141               DO
,OFFICE OF THE MINORITY WHIP,2010Q1,PRINTING AND REPRODUCTION,"",02­23      S3    10054000118,02/01/10,02/28/10,PHOTOGRAPHIC (TRANSFER),4.80,FISCAL YEAR 2010,"","","",02­23      S3    10054000118
,OFFICE OF THE MINORITY WHIP,2010Q1,PRINTING AND REPRODUCTION,"","03­21      P1    10NW0100185      DAVID L. ANDRUKITUS, INC",12/31/09,12/31/09,PRINTING AND REPRODUCTION,127.50,FISCAL YEAR 2010,"","","","03­21      P1    10NW0100185      DAVID L. ANDRUKITUS, INC"
,OFFICE OF THE MINORITY WHIP,2010Q1,PRINTING AND REPRODUCTION,"",03­25      S3    10084000137,03/01/10,03/31/10,PHOTOGRAPHIC (TRANSFER),42.90,FISCAL YEAR 2010,"","","",03­25      S3    10084000137
,OFFICE OF THE MINORITY WHIP,2010Q1,SUPPLIES AND MATERIALS,"",01­06      P1    10NW0100094      DEER PARK WATER,10/27/09,11/26/09,BOTTLED WATER,221.97,FISCAL YEAR 2010,"","","",01­06      P1    10NW0100094      DEER PARK WATER
,OFFICE OF THE MINORITY WHIP,2010Q1,SUPPLIES AND MATERIALS,"",01­06      P1    10NW0100100      RACHEL C. BAUER TAYLOR,10/08/09,12/02/09,FOOD & BEVERAGE,27.16,FISCAL YEAR 2010,"","","",01­06      P1    10NW0100100      RACHEL C. BAUER TAYLOR
,OFFICE OF THE MINORITY WHIP,2010Q1,SUPPLIES AND MATERIALS,"",01­15      P1    10NW0100105      CITIBANK GOV CARD SERVICE,10/28/09,11/24/09,FOOD & BEVERAGE,"7,954.17",FISCAL YEAR 2010,"","","",01­15      P1    10NW0100105      CITIBANK GOV CARD SERVICE
,OFFICE OF THE MINORITY WHIP,2010Q1,SUPPLIES AND MATERIALS,"",01­15      P1    10NW0100107           DO,10/28/09,11/23/09,PUBLICATION REF MATERIAL,271.08,FISCAL YEAR 2010,"","","",01­15      P1    10NW0100107           DO
,OFFICE OF THE MINORITY WHIP,2010Q1,SUPPLIES AND MATERIALS,"",01­22      P1    10NW0100110           DO,11/30/09,12/22/09,FOOD & BEVERAGE,"7,018.32",FISCAL YEAR 2010,"","","",01­22      P1    10NW0100110           DO
,OFFICE OF THE MINORITY WHIP,2010Q1,SUPPLIES AND MATERIALS,"",01­22      P1    10NW0100112           DO,12/08/09,12/27/09,FOOD & BEVERAGE,483.10,FISCAL YEAR 2010,"","","",01­22      P1    10NW0100112           DO
,OFFICE OF THE MINORITY WHIP,2010Q1,SUPPLIES AND MATERIALS,"",01­29      P1    10NW0100126      HIGHLAND ESTATES COFFEE,01/08/10,01/08/10,FOOD & BEVERAGE,77.78,FISCAL YEAR 2010,"","","",01­29      P1    10NW0100126      HIGHLAND ESTATES COFFEE
,OFFICE OF THE MINORITY WHIP,2010Q1,SUPPLIES AND MATERIALS,"",01­29      P1    10NW0100119      JEFF BURTON,11/16/09,12/08/09,FOOD & BEVERAGE,491.49,FISCAL YEAR 2010,"","","",01­29      P1    10NW0100119      JEFF BURTON
,OFFICE OF THE MINORITY WHIP,2010Q1,SUPPLIES AND MATERIALS,"",01­29      P1    10NW0100124      LLESIANT,02/01/10,02/28/10,PUBLICATION REF MATERIAL,500.00,FISCAL YEAR 2010,"","","",01­29      P1    10NW0100124      LLESIANT
,OFFICE OF THE MINORITY WHIP,2010Q1,SUPPLIES AND MATERIALS,"","01­29      P1    10NW0100123      SHADOW TV, INC",01/01/10,01/31/10,PUBLICATION REF MATERIAL,"3,300.00",FISCAL YEAR 2010,"","","","01­29      P1    10NW0100123      SHADOW TV, INC"
,OFFICE OF THE MINORITY WHIP,2010Q1,SUPPLIES AND MATERIALS,"",02­18      P1    10NW0100140      HIGHLAND ESTATES COFFEE,01/14/10,01/14/10,FOOD & BEVERAGE,77.78,FISCAL YEAR 2010,"","","",02­18      P1    10NW0100140      HIGHLAND ESTATES COFFEE
,OFFICE OF THE MINORITY WHIP,2010Q1,SUPPLIES AND MATERIALS,"",02­18      P1    10NW0100139      LEXIS-NEXIS,12/01/09,12/31/09,PUBLICATION REF MATERIAL,572.08,FISCAL YEAR 2010,"","","",02­18      P1    10NW0100139      LEXIS-NEXIS
,OFFICE OF THE MINORITY WHIP,2010Q1,SUPPLIES AND MATERIALS,"",03­02      P1    10NW0100143      CITIBANK GOV CARD SERVICE,12/29/09,01/28/10,FOOD & BEVERAGE,"5,368.97",FISCAL YEAR 2010,"","","",03­02      P1    10NW0100143      CITIBANK GOV CARD SERVICE
,OFFICE OF THE MINORITY WHIP,2010Q1,SUPPLIES AND MATERIALS,"",03­02      P1    10NW0100145           DO,12/28/09,01/27/10,PUBLICATION REF MATERIAL,378.10,FISCAL YEAR 2010,"","","",03­02      P1    10NW0100145           DO
,OFFICE OF THE MINORITY WHIP,2010Q1,SUPPLIES AND MATERIALS,"",03­02      P1    10NW0100146           DO,12/30/09,12/30/09,BOTTLED WATER,344.91,FISCAL YEAR 2010,"","","",03­02      P1    10NW0100146           DO
,OFFICE OF THE MINORITY WHIP,2010Q1,SUPPLIES AND MATERIALS,"",03­02      P1    10NW0100157      HIGHLAND ESTATES COFFEE,01/25/10,01/25/10,FOOD & BEVERAGE,211.34,FISCAL YEAR 2010,"","","",03­02      P1    10NW0100157      HIGHLAND ESTATES COFFEE
,OFFICE OF THE MINORITY WHIP,2010Q1,SUPPLIES AND MATERIALS,"",03­02      P1    10NW0100158           DO,02/02/10,02/02/10,FOOD & BEVERAGE,144.56,FISCAL YEAR 2010,"","","",03­02      P1    10NW0100158           DO
,OFFICE OF THE MINORITY WHIP,2010Q1,SUPPLIES AND MATERIALS,"",03­02      P1    10NW0100153      JAMES TUELL,01/22/10,01/22/10,FOOD & BEVERAGE,20.00,FISCAL YEAR 2010,"","","",03­02      P1    10NW0100153      JAMES TUELL
,OFFICE OF THE MINORITY WHIP,2010Q1,SUPPLIES AND MATERIALS,"",03­02      P1    10NW0100154           DO,02/03/10,02/03/10,FOOD & BEVERAGE,8.16,FISCAL YEAR 2010,"","","",03­02      P1    10NW0100154           DO
,OFFICE OF THE MINORITY WHIP,2010Q1,SUPPLIES AND MATERIALS,"",03­02      P1    10NW0100149      LLESIANT,03/01/10,03/31/10,PUBLICATION REF MATERIAL,500.00,FISCAL YEAR 2010,"","","",03­02      P1    10NW0100149      LLESIANT
,OFFICE OF THE MINORITY WHIP,2010Q1,SUPPLIES AND MATERIALS,"","03­02      P1    10NW0100147      NATIONAL JOURNAL GROUP, INC",01/01/10,12/31/10,PUBLICATION REF MATERIAL,"2,097.00",FISCAL YEAR 2010,"","","","03­02      P1    10NW0100147      NATIONAL JOURNAL GROUP, INC"
,OFFICE OF THE MINORITY WHIP,2010Q1,SUPPLIES AND MATERIALS,"","03­02      P1    10NW0100148      SHADOW TV, INC",01/01/10,02/28/10,PUBLICATION REF MATERIAL,"3,600.00",FISCAL YEAR 2010,"","","","03­02      P1    10NW0100148      SHADOW TV, INC"
,OFFICE OF THE MINORITY WHIP,2010Q1,SUPPLIES AND MATERIALS,"",03­11      P1    10NW0100166      HIGHLAND ESTATES COFFEE,02/23/10,02/23/10,FOOD & BEVERAGE,244.73,FISCAL YEAR 2010,"","","",03­11      P1    10NW0100166      HIGHLAND ESTATES COFFEE
,OFFICE OF THE MINORITY WHIP,2010Q1,SUPPLIES AND MATERIALS,"",03­17      P1    10NW0100170               SARAH ROBINSON,02/24/10,02/24/10,FOOD & BEVERAGE,231.67,FISCAL YEAR 2010,"","","",03­17      P1    10NW0100170               SARAH ROBINSON
,OFFICE OF THE MINORITY WHIP,2010Q1,SUPPLIES AND MATERIALS,"",03­19      P1    10NW0100176               HIGHLAND ESTATES COFFEE,03/03/10,03/03/10,FOOD & BEVERAGE,233.60,FISCAL YEAR 2010,"","","",03­19      P1    10NW0100176               HIGHLAND ESTATES COFFEE
,OFFICE OF THE MINORITY WHIP,2010Q1,SUPPLIES AND MATERIALS,"",03­19      P1    10NW0100179               JAMES TUELL,03/04/10,03/04/10,FOOD & BEVERAGE,40.98,FISCAL YEAR 2010,"","","",03­19      P1    10NW0100179               JAMES TUELL
,OFFICE OF THE MINORITY WHIP,2010Q1,SUPPLIES AND MATERIALS,"",03­19      P1    10NW0100178               MATTHEW BRAVO,03/03/10,03/03/10,OFFICE SUPPLIES OUTSIDE,30.45,FISCAL YEAR 2010,"","","",03­19      P1    10NW0100178               MATTHEW BRAVO
,OFFICE OF THE MINORITY WHIP,2010Q1,SUPPLIES AND MATERIALS,"",03­19      P1    10NW0100173               RACHEL C. BAUER TAYLOR,03/09/10,03/10/10,FOOD & BEVERAGE,72.06,FISCAL YEAR 2010,"","","",03­19      P1    10NW0100173               RACHEL C. BAUER TAYLOR
,OFFICE OF THE MINORITY WHIP,2010Q1,SUPPLIES AND MATERIALS,"",03­21      P1    10NW0100183               LLESIANT,04/01/10,04/30/10,PUBLICATION REF MATERIAL,500.00,FISCAL YEAR 2010,"","","",03­21      P1    10NW0100183               LLESIANT
,OFFICE OF THE MINORITY WHIP,2010Q1,SUPPLIES AND MATERIALS,"","03­21      P1    10NW0100182               SHADOW TV, INC",03/01/10,03/31/10,PUBLICATION REF MATERIAL,"5,300.00",FISCAL YEAR 2010,"","","","03­21      P1    10NW0100182               SHADOW TV, INC"
,OFFICE OF THE MINORITY WHIP,2010Q1,SUPPLIES AND MATERIALS,"",03­30      P1    10NW0100194               CITIBANK GOV CARD SERVICE,12/30/09,01/27/10,FOOD & BEVERAGE,"5,713.88",FISCAL YEAR 2010,"","","",03­30      P1    10NW0100194               CITIBANK GOV CARD SERVICE
,OFFICE OF THE MINORITY WHIP,2010Q1,SUPPLIES AND MATERIALS,"",03­30      P1    10NW0100196                    DO,12/28/09,01/27/10,PUBLICATION REF MATERIAL,378.10,FISCAL YEAR 2010,"","","",03­30      P1    10NW0100196                    DO
,OFFICE OF THE MINORITY WHIP,2010Q1,SUPPLIES AND MATERIALS,"",03­30      P1    10NW0100198                    DO,01/28/10,02/23/10,FOOD & BEVERAGE,"9,424.15",FISCAL YEAR 2010,"","","",03­30      P1    10NW0100198                    DO
,OFFICE OF THE MINORITY WHIP,2010Q1,SUPPLIES AND MATERIALS,"",03­30      P1    10NW0100199                    DO,01/28/10,02/25/10,PUBLICATION REF MATERIAL,837.85,FISCAL YEAR 2010,"","","",03­30      P1    10NW0100199                    DO
,OFFICE OF THE MINORITY WHIP,2010Q1,TRAVEL,"",01­29 P1 10NW0100115          JEFF BURTON,09/03/09,09/23/09,"TAXI, PARKING, TOLLS",109.00,FISCAL YEAR 2009,"","","",01­29 P1 10NW0100115          JEFF BURTON
,OFFICE OF THE MINORITY WHIP,2010Q1,SUPPLIES AND MATERIALS,"",01­29      P1 10NW0100116      JEFF BURTON,09/01/09,09/01/09,FOOD & BEVERAGE,189.93,FISCAL YEAR 2009,"","","",01­29      P1 10NW0100116      JEFF BURTON
,OFFICE OF THE MINORITY WHIP,2010Q1,SUPPLIES AND MATERIALS,"",01­29      P1 10NW0100117      THE LIBRARY OF VIRGINIA,09/23/09,09/23/09,HABITATION EXPENSES,417.63,FISCAL YEAR 2009,"","","",01­29      P1 10NW0100117      THE LIBRARY OF VIRGINIA
,OFFICE OF THE MINORITY WHIP,2010Q1,SUPPLIES AND MATERIALS,"",03­11      P1 10NW0100164      WASHINGTON POST,09/08/09,09/06/10,PUBLICATION REF MATERIAL,357.56,FISCAL YEAR 2009,"","","",03­11      P1 10NW0100164      WASHINGTON POST
,DEMOCRATIC STEERING AND POLICY,2010Q1,PERSONNEL COMPENSATION,"","ROSENBAUM, AMY",01/01/10,03/31/10,POLICY COORDINATOR,"43,125.00",FISCAL YEAR 2010,"","","","ROSENBAUM, AMY"
,DEMOCRATIC STEERING AND POLICY,2010Q1,PERSONNEL COMPENSATION,"","SIDDIQUI, ARSHI",01/01/10,03/31/10,POLICY ADVISOR,"43,125.00",FISCAL YEAR 2010,"","","","SIDDIQUI, ARSHI"
,DEMOCRATIC STEERING AND POLICY,2010Q1,PERSONNEL COMPENSATION,"","BLOOM, MICHAEL T",01/01/10,03/31/10,POLICY ASSISTANT,"19,340.76",FISCAL YEAR 2010,"","","","BLOOM, MICHAEL T"
,DEMOCRATIC STEERING AND POLICY,2010Q1,PERSONNEL COMPENSATION,"","BOULE, SCOTT",01/01/10,03/31/10,POLICY ADVISOR,"16,665.00",FISCAL YEAR 2010,"","","","BOULE, SCOTT"
,DEMOCRATIC STEERING AND POLICY,2010Q1,PERSONNEL COMPENSATION,"","CANNON, ANNE C",01/01/10,03/31/10,POLICY ADVISOR,"21,764.25",FISCAL YEAR 2010,"","","","CANNON, ANNE C"
,DEMOCRATIC STEERING AND POLICY,2010Q1,PERSONNEL COMPENSATION,"","CAPRON, MARGARET W",01/01/10,03/31/10,POLICY ADVISOR,"31,924.26",FISCAL YEAR 2010,"","","","CAPRON, MARGARET W"
,DEMOCRATIC STEERING AND POLICY,2010Q1,PERSONNEL COMPENSATION,"","JUDGE, KRISTINE A",01/01/10,03/31/10,POLICY ADVISOR,"31,924.26",FISCAL YEAR 2010,"","","","JUDGE, KRISTINE A"
,DEMOCRATIC STEERING AND POLICY,2010Q1,PERSONNEL COMPENSATION,"","LEVISON, LARA K",12/01/09,12/01/09,POLICY ADVISOR (OTHER COMPENSATION),"5,502.75",FISCAL YEAR 2010,"","","","LEVISON, LARA K"
,DEMOCRATIC STEERING AND POLICY,2010Q1,PERSONNEL COMPENSATION,"","PRICE, REVA B",01/01/10,03/31/10,POLICY ADVISOR,"31,924.26",FISCAL YEAR 2010,"","","","PRICE, REVA B"
,DEMOCRATIC STEERING AND POLICY,2010Q1,PERSONNEL COMPENSATION,"","TECKLENBURG, MICHAEL H",01/01/10,03/31/10,POLICY ADVISOR,"30,062.01",FISCAL YEAR 2010,"","","","TECKLENBURG, MICHAEL H"
,DEMOCRATIC STEERING AND POLICY,2010Q1,PERSONNEL COMPENSATION,"","WAYLAND,KAREN G",01/01/10,03/31/10,POLICY ADVISOR,"34,566.75",FISCAL YEAR 2010,"","","","WAYLAND,KAREN G"
,DEMOCRATIC CAUCUS,2010Q1,PERSONNEL COMPENSATION,"","SHEVLIN IV, GEORGE F",01/01/10,03/31/10,EXECUTIVE DIRECTOR,"43,125.00",FISCAL YEAR 2010,"","","","SHEVLIN IV, GEORGE F"
,DEMOCRATIC CAUCUS,2010Q1,PERSONNEL COMPENSATION,"","TRAN,CATHERINE LE",01/01/10,03/31/10,POLICY DIRECTOR,"34,250.01",FISCAL YEAR 2010,"","","","TRAN,CATHERINE LE"
,DEMOCRATIC CAUCUS,2010Q1,PERSONNEL COMPENSATION,"","BANJAC,SRDAN",01/01/10,03/31/10,ASSISTANT TO THE CHAIRMAN,"13,500.00",FISCAL YEAR 2010,"","","","BANJAC,SRDAN"
,DEMOCRATIC CAUCUS,2010Q1,PERSONNEL COMPENSATION,"","BARNES,CHRISTOPHER E",01/01/10,03/31/10,ADVISOR TO THE CHAIRMAN,"41,250.00",FISCAL YEAR 2010,"","","","BARNES,CHRISTOPHER E"
,DEMOCRATIC CAUCUS,2010Q1,PERSONNEL COMPENSATION,"","BAROCAS,EMILY",12/01/09,03/31/10,PRESS SECRETARY,"21,499.99",FISCAL YEAR 2010,"","","","BAROCAS,EMILY"
,DEMOCRATIC CAUCUS,2010Q1,PERSONNEL COMPENSATION,"","BRAGIN,GIDEON",12/01/09,03/31/10,CAUCUS FELLOW,"11,666.68",FISCAL YEAR 2010,"","","","BRAGIN,GIDEON"
,DEMOCRATIC CAUCUS,2010Q1,PERSONNEL COMPENSATION,"","BUI, TONIA",01/01/10,03/31/10,MEMBER OUTREACH ASST-VICE CHR,"10,148.34",FISCAL YEAR 2010,"","","","BUI, TONIA"
,DEMOCRATIC CAUCUS,2010Q1,PERSONNEL COMPENSATION,"","DAGADAKIS,STAMATIOS",01/01/10,03/31/10,TECHNOLOGY & RESEARCH ASSISTAN,"9,250.00",FISCAL YEAR 2010,"","","","DAGADAKIS,STAMATIOS"
,DEMOCRATIC CAUCUS,2010Q1,PERSONNEL COMPENSATION,"","DELANEY, ERIC L",01/01/10,03/31/10,MEMBER OUTREACH ASST-VICE CHR,"10,148.34",FISCAL YEAR 2010,"","","","DELANEY, ERIC L"
,DEMOCRATIC CAUCUS,2010Q1,PERSONNEL COMPENSATION,"","GLEESON,JAMES M",01/01/10,03/31/10,RESEARCH ANALYST FOR VICE CHR,"10,481.66",FISCAL YEAR 2010,"","","","GLEESON,JAMES M"
,DEMOCRATIC CAUCUS,2010Q1,PERSONNEL COMPENSATION,"","GONZALES, MELONDY S",01/01/10,03/31/10,DIR OF MBR OUTREACH-VICE CHAIR,"14,750.01",FISCAL YEAR 2010,"","","","GONZALES, MELONDY S"
,DEMOCRATIC CAUCUS,2010Q1,PERSONNEL COMPENSATION,"","HUDSON,JEHMAL T",01/01/10,03/31/10,POLICY ASSISTANT,"16,250.01",FISCAL YEAR 2010,"","","","HUDSON,JEHMAL T"
,DEMOCRATIC CAUCUS,2010Q1,PERSONNEL COMPENSATION,"","JAWORSKI, KIMBERLY H",01/01/10,03/31/10,EVENTS AND PROJECTS COORDINATO,"12,999.99",FISCAL YEAR 2010,"","","","JAWORSKI, KIMBERLY H"
,DEMOCRATIC CAUCUS,2010Q1,PERSONNEL COMPENSATION,"","KISSINGER,JUSTIN A",01/01/10,02/08/10,LEGAL FELLOW,"5,277.78",FISCAL YEAR 2010,"","","","KISSINGER,JUSTIN A"
,DEMOCRATIC CAUCUS,2010Q1,PERSONNEL COMPENSATION,"","KRASOV,ALEXANDRA",01/01/10,03/31/10,DEPUTY COMMUNICATIONS DIRECTOR,"13,500.00",FISCAL YEAR 2010,"","","","KRASOV,ALEXANDRA"
,DEMOCRATIC CAUCUS,2010Q1,PERSONNEL COMPENSATION,"","MALERBA,LIZ",01/01/10,03/31/10,OUTREACH ASSISTANT,"9,999.99",FISCAL YEAR 2010,"","","","MALERBA,LIZ"
,DEMOCRATIC CAUCUS,2010Q1,PERSONNEL COMPENSATION,"","MCCLUSKIE,SEAN E",01/01/10,03/31/10,STAFF DIR FOR THE VICE CHAIR,"30,999.99",FISCAL YEAR 2010,"","","","MCCLUSKIE,SEAN E"
,DEMOCRATIC CAUCUS,2010Q1,PERSONNEL COMPENSATION,"","MERZ, JULIE E",01/01/10,03/31/10,SHARED EMPLOYEE,"17,499.99",FISCAL YEAR 2010,"","","","MERZ, JULIE E"
,DEMOCRATIC CAUCUS,2010Q1,PERSONNEL COMPENSATION,"","PEREZ-GOMEZ,SALVADOR E",01/01/10,03/31/10,STAFF ASSISTANT,"9,999.99",FISCAL YEAR 2010,"","","","PEREZ-GOMEZ,SALVADOR E"
,DEMOCRATIC CAUCUS,2010Q1,PERSONNEL COMPENSATION,"","PERONACE,ANTONIO",01/01/10,03/31/10,DIR OF MULTIMEDIA COMM AND TEC,"14,250.00",FISCAL YEAR 2010,"","","","PERONACE,ANTONIO"
,DEMOCRATIC CAUCUS,2010Q1,PERSONNEL COMPENSATION,"","PIERSON, ROBERT M",01/01/10,03/31/10,DIRECTOR OF NEW MEDIA,"16,250.01",FISCAL YEAR 2010,"","","","PIERSON, ROBERT M"
,DEMOCRATIC CAUCUS,2010Q1,PERSONNEL COMPENSATION,"","ROBB, KAREN A",12/01/09,03/31/10,SHARED EMPLOYEE,"30,499.99",FISCAL YEAR 2010,"","","","ROBB, KAREN A"
,DEMOCRATIC CAUCUS,2010Q1,PERSONNEL COMPENSATION,"","RODRIGUEZ-OLVERA,LORENZO A",01/01/10,03/31/10,MEMBER OUTREACH ASST-VICE CHR,"9,481.66",FISCAL YEAR 2010,"","","","RODRIGUEZ-OLVERA,LORENZO A"
,DEMOCRATIC CAUCUS,2010Q1,PERSONNEL COMPENSATION,"","RUBINO,SHELLEY M",01/01/10,03/31/10,ADVISOR TO THE CHAIRMAN,"34,250.01",FISCAL YEAR 2010,"","","","RUBINO,SHELLEY M"
,DEMOCRATIC CAUCUS,2010Q1,TRAVEL,"",01­20   P1 10DA0100092      GEORGE F SHEVLIN,01/13/10,01/13/10,"TAXI, PARKING, TOLLS",11.00,FISCAL YEAR 2010,"","","",01­20   P1 10DA0100092      GEORGE F SHEVLIN
,DEMOCRATIC CAUCUS,2010Q1,TRAVEL,"",01­20   P1 10DA0100093      SRDAN BANJAC,01/13/10,01/13/10,GASOLINE,35.00,FISCAL YEAR 2010,"","","",01­20   P1 10DA0100093      SRDAN BANJAC
,DEMOCRATIC CAUCUS,2010Q1,TRAVEL,"","01­27   P1 10DA0100094      TRANS PRO SERVICES, INC",01/13/10,01/14/10,"TAXI, PARKING, TOLLS","3,744.00",FISCAL YEAR 2010,"","","","01­27   P1 10DA0100094      TRANS PRO SERVICES, INC"
,DEMOCRATIC CAUCUS,2010Q1,TRAVEL,"",01­28   P1 10DA0100105      GEORGE F SHEVLIN,01/12/10,01/12/10,"TAXI, PARKING, TOLLS",10.00,FISCAL YEAR 2010,"","","",01­28   P1 10DA0100105      GEORGE F SHEVLIN
,DEMOCRATIC CAUCUS,2010Q1,TRAVEL,"",02­01   P1 10DA0100107      SHELEY M RUBINO,01/09/10,01/09/10,"TAXI, PARKING, TOLLS",10.00,FISCAL YEAR 2010,"","","",02­01   P1 10DA0100107      SHELEY M RUBINO
,DEMOCRATIC CAUCUS,2010Q1,TRAVEL,"",02­04   P1 10DA0100110      SRDAN BANJAC,01/12/10,01/15/10,GASOLINE,498.23,FISCAL YEAR 2010,"","","",02­04   P1 10DA0100110      SRDAN BANJAC
,DEMOCRATIC CAUCUS,2010Q1,TRAVEL,"",02­13   P1 10DA0100124      ELIZABETH MALERBA,12/14/09,12/14/09,"TAXI, PARKING, TOLLS",68.50,FISCAL YEAR 2010,"","","",02­13   P1 10DA0100124      ELIZABETH MALERBA
,DEMOCRATIC CAUCUS,2010Q1,TRAVEL,"",02­13   P1 10DA0100123      SHELEY M RUBINO,01/11/10,01/11/10,"TAXI, PARKING, TOLLS",9.00,FISCAL YEAR 2010,"","","",02­13   P1 10DA0100123      SHELEY M RUBINO
,DEMOCRATIC CAUCUS,2010Q1,TRAVEL,"",02­16   P1 10DA0100126      STAMATIOS DAGADAKIS,01/08/10,01/08/10,"TAXI, PARKING, TOLLS",17.75,FISCAL YEAR 2010,"","","",02­16   P1 10DA0100126      STAMATIOS DAGADAKIS
,DEMOCRATIC CAUCUS,2010Q1,TRAVEL,"",02­16   P1 10DA0100127           DO,01/12/10,01/12/10,"TAXI, PARKING, TOLLS",13.25,FISCAL YEAR 2010,"","","",02­16   P1 10DA0100127           DO
,DEMOCRATIC CAUCUS,2010Q1,TRAVEL,"",02­18   P1 10DA0100135      SERGIO A. ESPINOSA,01/13/10,01/15/10,CAR RENTAL,261.76,FISCAL YEAR 2010,"","","",02­18   P1 10DA0100135      SERGIO A. ESPINOSA
,DEMOCRATIC CAUCUS,2010Q1,TRAVEL,"",02­18   P1 10DA0100136           DO,01/15/10,01/15/10,GASOLINE,4.10,FISCAL YEAR 2010,"","","",02­18   P1 10DA0100136           DO
,DEMOCRATIC CAUCUS,2010Q1,TRAVEL,"",02­18   P1 10DA0100137           DO,01/15/10,01/15/10,GASOLINE,8.19,FISCAL YEAR 2010,"","","",02­18   P1 10DA0100137           DO
,DEMOCRATIC CAUCUS,2010Q1,TRAVEL,"",02­20   P1 10DA0100114      STAMATIOS DAGADAKIS,01/08/10,01/08/10,"TAXI, PARKING, TOLLS",20.00,FISCAL YEAR 2010,"","","",02­20   P1 10DA0100114      STAMATIOS DAGADAKIS
,DEMOCRATIC CAUCUS,2010Q1,TRAVEL,"",02­28   HV 10A90300303      SRDAN BANJAC,01/12/10,01/15/10,CAR RENTAL,498.23,FISCAL YEAR 2010,"","","",02­28   HV 10A90300303      SRDAN BANJAC
,DEMOCRATIC CAUCUS,2010Q1,TRAVEL,"",03­23   P1 10DA0100160      CATHERINE LE TRAN,01/13/10,01/13/10,"TAXI, PARKING, TOLLS",13.00,FISCAL YEAR 2010,"","","",03­23   P1 10DA0100160      CATHERINE LE TRAN
,DEMOCRATIC CAUCUS,2010Q1,TRAVEL,"",03­23   P1 10DA0100161           DO,01/14/10,01/14/10,"TAXI, PARKING, TOLLS",9.00,FISCAL YEAR 2010,"","","",03­23   P1 10DA0100161           DO
,DEMOCRATIC CAUCUS,2010Q1,TRAVEL,"",03­23   P1 10DA0100162           DO,01/12/10,01/12/10,"TAXI, PARKING, TOLLS",13.00,FISCAL YEAR 2010,"","","",03­23   P1 10DA0100162           DO
,DEMOCRATIC CAUCUS,2010Q1,TRAVEL,"",03­23   P1 10DA0100163           DO,01/27/10,01/27/10,"TAXI, PARKING, TOLLS",5.00,FISCAL YEAR 2010,"","","",03­23   P1 10DA0100163           DO
,DEMOCRATIC CAUCUS,2010Q1,TRAVEL,"",03­23   P1 10DA0100164           DO,12/09/09,12/09/09,"TAXI, PARKING, TOLLS",13.00,FISCAL YEAR 2010,"","","",03­23   P1 10DA0100164           DO
,DEMOCRATIC CAUCUS,2010Q1,TRAVEL,"",03­23   P1 10DA0100167      GEORGE F SHEVLIN,03/12/10,03/12/10,"TAXI, PARKING, TOLLS",10.00,FISCAL YEAR 2010,"","","",03­23   P1 10DA0100167      GEORGE F SHEVLIN
,DEMOCRATIC CAUCUS,2010Q1,TRAVEL,"",03­29   P1 10DA0100171      CATHERINE LE TRAN,12/10/09,12/10/09,"TAXI, PARKING, TOLLS",13.00,FISCAL YEAR 2010,"","","",03­29   P1 10DA0100171      CATHERINE LE TRAN
,DEMOCRATIC CAUCUS,2010Q1,TRAVEL,"",03­29   P1 10DA0100172           DO,11/25/09,11/25/09,"TAXI, PARKING, TOLLS",13.00,FISCAL YEAR 2010,"","","",03­29   P1 10DA0100172           DO
,DEMOCRATIC CAUCUS,2010Q1,TRAVEL,"",03­29   P1 10DA0100173           DO,03/15/10,03/15/10,"TAXI, PARKING, TOLLS",13.00,FISCAL YEAR 2010,"","","",03­29   P1 10DA0100173           DO
,DEMOCRATIC CAUCUS,2010Q1,TRAVEL,"",03­29   P1 10DA0100174           DO,12/18/09,12/18/09,"TAXI, PARKING, TOLLS",15.00,FISCAL YEAR 2010,"","","",03­29   P1 10DA0100174           DO
,DEMOCRATIC CAUCUS,2010Q1,TRAVEL,"",03­29   P1 10DA0100176      GEORGE F SHEVLIN,03/15/10,03/15/10,"TAXI, PARKING, TOLLS",12.00,FISCAL YEAR 2010,"","","",03­29   P1 10DA0100176      GEORGE F SHEVLIN
,DEMOCRATIC CAUCUS,2010Q1,"RENT, COMMUNICATION, UTILITIES","",01­20   P1 10DA0100090     GEORGE F SHEVLIN,01/14/10,01/14/10,TEMPORARY SPACE RENTAL,"12,560.00",FISCAL YEAR 2010,"","","",01­20   P1 10DA0100090     GEORGE F SHEVLIN
,DEMOCRATIC CAUCUS,2010Q1,PRINTING AND REPRODUCTION,"",01­22   S3 10022000022,01/01/10,01/31/10,PHOTOGRAPHIC (TRANSFER),157.60,FISCAL YEAR 2010,"","","",01­22   S3 10022000022
,DEMOCRATIC CAUCUS,2010Q1,PRINTING AND REPRODUCTION,"",03­16 P1 10DA0100152        SULLY FRAMING AND ART,01/04/10,01/04/10,PRINTING AND REPRODUCTION,120.00,FISCAL YEAR 2010,"","","",03­16 P1 10DA0100152        SULLY FRAMING AND ART
,DEMOCRATIC CAUCUS,2010Q1,PRINTING AND REPRODUCTION,"",03­23 P1 10DA0100169        ERIKA ANDERSON,01/13/10,01/15/10,PRINTING AND REPRODUCTION,465.00,FISCAL YEAR 2010,"","","",03­23 P1 10DA0100169        ERIKA ANDERSON
,DEMOCRATIC CAUCUS,2010Q1,PRINTING AND REPRODUCTION,"",03­25 S3 10084000039,03/01/10,03/31/10,PHOTOGRAPHIC (TRANSFER),976.10,FISCAL YEAR 2010,"","","",03­25 S3 10084000039
,DEMOCRATIC CAUCUS,2010Q1,OTHER SERVICES,"",01­28       P1    10DA0100097                SRDAN BANJAC,01/06/10,01/06/10,LAUNDRY SERVICE,95.49,FISCAL YEAR 2010,"","","",01­28       P1    10DA0100097                SRDAN BANJAC
,DEMOCRATIC CAUCUS,2010Q1,OTHER SERVICES,"",02­04       P1    10DA0100117                     DO,02/03/10,02/03/10,LAUNDRY SERVICE,53.05,FISCAL YEAR 2010,"","","",02­04       P1    10DA0100117                     DO
,DEMOCRATIC CAUCUS,2010Q1,OTHER SERVICES,"",02­13       P1    10DA0100125                SHELEY M RUBINO,01/26/10,01/26/10,LAUNDRY SERVICE,63.66,FISCAL YEAR 2010,"","","",02­13       P1    10DA0100125                SHELEY M RUBINO
,DEMOCRATIC CAUCUS,2010Q1,OTHER SERVICES,"",03­13       P1    10DA0100143                SRDAN BANJAC,02/22/10,02/22/10,LAUNDRY SERVICE,78.51,FISCAL YEAR 2010,"","","",03­13       P1    10DA0100143                SRDAN BANJAC
,DEMOCRATIC CAUCUS,2010Q1,SUPPLIES AND MATERIALS,"",01­04       P1    10DA0100087      ROBERT PIERSON,11/19/09,12/19/09,PUBLICATION REF MATERIAL,19.00,FISCAL YEAR 2010,"","","",01­04       P1    10DA0100087      ROBERT PIERSON
,DEMOCRATIC CAUCUS,2010Q1,SUPPLIES AND MATERIALS,"",01­27       P1    10DA0100095      GEORGE F SHEVLIN,12/14/09,12/14/09,FOOD & BEVERAGE,"1,740.00",FISCAL YEAR 2010,"","","",01­27       P1    10DA0100095      GEORGE F SHEVLIN
,DEMOCRATIC CAUCUS,2010Q1,SUPPLIES AND MATERIALS,"",01­28       C1    NW201002601      DEER PARK,12/31/09,12/31/09,BOTTLED WATER,16.00,FISCAL YEAR 2010,"","","",01­28       C1    NW201002601      DEER PARK
,DEMOCRATIC CAUCUS,2010Q1,SUPPLIES AND MATERIALS,"",01­28       C1    NW201002601           DO,12/31/09,12/31/09,BOTTLED WATER,40.00,FISCAL YEAR 2010,"","","",01­28       C1    NW201002601           DO
,DEMOCRATIC CAUCUS,2010Q1,SUPPLIES AND MATERIALS,"",01­28       C1    NW201002601           DO,12/08/09,12/08/09,BOTTLED WATER,115.85,FISCAL YEAR 2010,"","","",01­28       C1    NW201002601           DO
,DEMOCRATIC CAUCUS,2010Q1,SUPPLIES AND MATERIALS,"",01­28       C1    NW201002601           DO,12/07/09,12/07/09,BOTTLED WATER,31.96,FISCAL YEAR 2010,"","","",01­28       C1    NW201002601           DO
,DEMOCRATIC CAUCUS,2010Q1,SUPPLIES AND MATERIALS,"",01­28       C1    NW201002601           DO,12/31/09,12/31/09,BOTTLED WATER,2.00,FISCAL YEAR 2010,"","","",01­28       C1    NW201002601           DO
,DEMOCRATIC CAUCUS,2010Q1,SUPPLIES AND MATERIALS,"",01­28       C1    NW201002601           DO,12/31/09,12/31/09,BOTTLED WATER,2.00,FISCAL YEAR 2010,"","","",01­28       C1    NW201002601           DO
,DEMOCRATIC CAUCUS,2010Q1,SUPPLIES AND MATERIALS,"",01­28       P1    10DA0100101      GEORGE F SHEVLIN,12/11/09,12/11/09,FOOD & BEVERAGE,"1,422.00",FISCAL YEAR 2010,"","","",01­28       P1    10DA0100101      GEORGE F SHEVLIN
,DEMOCRATIC CAUCUS,2010Q1,SUPPLIES AND MATERIALS,"",01­28       P1    10DA0100102           DO,11/30/09,11/30/09,FOOD & BEVERAGE,"1,188.00",FISCAL YEAR 2010,"","","",01­28       P1    10DA0100102           DO
,DEMOCRATIC CAUCUS,2010Q1,SUPPLIES AND MATERIALS,"",01­28       P1    10DA0100103           DO,12/10/09,12/10/09,FOOD & BEVERAGE,"1,188.00",FISCAL YEAR 2010,"","","",01­28       P1    10DA0100103           DO
,DEMOCRATIC CAUCUS,2010Q1,SUPPLIES AND MATERIALS,"",01­28       P1    10DA0100104           DO,01/01/10,01/01/10,FOOD & BEVERAGE,134.19,FISCAL YEAR 2010,"","","",01­28       P1    10DA0100104           DO
,DEMOCRATIC CAUCUS,2010Q1,SUPPLIES AND MATERIALS,"",02­01       P1    10DA0100106      SHELEY M RUBINO,01/12/10,01/12/10,FOOD & BEVERAGE,77.65,FISCAL YEAR 2010,"","","",02­01       P1    10DA0100106      SHELEY M RUBINO
,DEMOCRATIC CAUCUS,2010Q1,SUPPLIES AND MATERIALS,"",02­01       P1    10DA0100109           DO,01/13/10,01/13/10,FOOD & BEVERAGE,478.53,FISCAL YEAR 2010,"","","",02­01       P1    10DA0100109           DO
,DEMOCRATIC CAUCUS,2010Q1,SUPPLIES AND MATERIALS,"",02­01       P1    10DA0100108      SRDAN BANJAC,01/12/10,01/12/10,FOOD & BEVERAGE,240.20,FISCAL YEAR 2010,"","","",02­01       P1    10DA0100108      SRDAN BANJAC
,DEMOCRATIC CAUCUS,2010Q1,SUPPLIES AND MATERIALS,"",02­04       P1    10DA0100116      GEORGE F SHEVLIN,01/11/10,01/11/10,FOOD & BEVERAGE,"1,336.50",FISCAL YEAR 2010,"","","",02­04       P1    10DA0100116      GEORGE F SHEVLIN
,DEMOCRATIC CAUCUS,2010Q1,SUPPLIES AND MATERIALS,"",02­04       P1    10DA0100111      SHELEY M RUBINO,01/06/10,01/06/10,FOOD & BEVERAGE,411.20,FISCAL YEAR 2010,"","","",02­04       P1    10DA0100111      SHELEY M RUBINO
,DEMOCRATIC CAUCUS,2010Q1,SUPPLIES AND MATERIALS,"",02­04       P1    10DA0100112           DO,01/07/10,01/07/10,FOOD & BEVERAGE,81.19,FISCAL YEAR 2010,"","","",02­04       P1    10DA0100112           DO
,DEMOCRATIC CAUCUS,2010Q1,SUPPLIES AND MATERIALS,"",02­04       P1    10DA0100115           DO,01/29/10,01/29/10,FOOD & BEVERAGE,"1,530.00",FISCAL YEAR 2010,"","","",02­04       P1    10DA0100115           DO
,DEMOCRATIC CAUCUS,2010Q1,SUPPLIES AND MATERIALS,"",02­13       P1    10DA0100130      CONGRESSIONAL QUARTERLY INC,04/15/10,04/15/11,PUBLICATION REF MATERIAL,"11,175.00",FISCAL YEAR 2010,"","","",02­13       P1    10DA0100130      CONGRESSIONAL QUARTERLY INC
,DEMOCRATIC CAUCUS,2010Q1,SUPPLIES AND MATERIALS,"",02­13       P1    10DA0100131           DO,01/29/10,01/29/10,PUBLICATION REF MATERIAL,450.00,FISCAL YEAR 2010,"","","",02­13       P1    10DA0100131           DO
,DEMOCRATIC CAUCUS,2010Q1,SUPPLIES AND MATERIALS,"","02­13       P1    10DA0100128      DOW JONES & COMPANY, INC",02/17/10,02/16/11,PUBLICATION REF MATERIAL,192.37,FISCAL YEAR 2010,"","","","02­13       P1    10DA0100128      DOW JONES & COMPANY, INC"
,DEMOCRATIC CAUCUS,2010Q1,SUPPLIES AND MATERIALS,"",02­13       P1    10DA0100118      ELIZABETH MALERBA,01/26/10,01/26/10,FOOD & BEVERAGE,164.39,FISCAL YEAR 2010,"","","",02­13       P1    10DA0100118      ELIZABETH MALERBA
,DEMOCRATIC CAUCUS,2010Q1,SUPPLIES AND MATERIALS,"",02­13       P1    10DA0100119           DO,01/20/10,01/20/10,FOOD & BEVERAGE,70.02,FISCAL YEAR 2010,"","","",02­13       P1    10DA0100119           DO
,DEMOCRATIC CAUCUS,2010Q1,SUPPLIES AND MATERIALS,"",02­13       P1    10DA0100120           DO,11/20/09,11/20/09,FOOD & BEVERAGE,46.47,FISCAL YEAR 2010,"","","",02­13       P1    10DA0100120           DO
,DEMOCRATIC CAUCUS,2010Q1,SUPPLIES AND MATERIALS,"","02­13       P1    10DA0100129      LEADERSHIP DIRECTORIES, INC",02/01/10,01/31/11,PUBLICATION REF MATERIAL,"6,862.00",FISCAL YEAR 2010,"","","","02­13       P1    10DA0100129      LEADERSHIP DIRECTORIES, INC"
,DEMOCRATIC CAUCUS,2010Q1,SUPPLIES AND MATERIALS,"",02­18       P1    10DA0100133      GEORGE F SHEVLIN,10/24/09,10/23/10,PUBLICATION REF MATERIAL,403.69,FISCAL YEAR 2010,"","","",02­18       P1    10DA0100133      GEORGE F SHEVLIN
,DEMOCRATIC CAUCUS,2010Q1,SUPPLIES AND MATERIALS,"",02­18       P1    10DA0100134           DO,02/01/10,02/01/10,FOOD & BEVERAGE,412.10,FISCAL YEAR 2010,"","","",02­18       P1    10DA0100134           DO
,DEMOCRATIC CAUCUS,2010Q1,SUPPLIES AND MATERIALS,"",02­23       C1    NW201005301      DEER PARK,01/31/10,01/31/10,BOTTLED WATER,16.00,FISCAL YEAR 2010,"","","",02­23       C1    NW201005301      DEER PARK
,DEMOCRATIC CAUCUS,2010Q1,SUPPLIES AND MATERIALS,"",02­23       C1    NW201005301           DO,01/31/10,01/31/10,BOTTLED WATER,40.00,FISCAL YEAR 2010,"","","",02­23       C1    NW201005301           DO
,DEMOCRATIC CAUCUS,2010Q1,SUPPLIES AND MATERIALS,"",02­23       C1    NW201005301           DO,01/07/10,01/07/10,BOTTLED WATER,90.93,FISCAL YEAR 2010,"","","",02­23       C1    NW201005301           DO
,DEMOCRATIC CAUCUS,2010Q1,SUPPLIES AND MATERIALS,"",02­23       C1    NW201005301           DO,01/08/10,01/08/10,BOTTLED WATER,35.00,FISCAL YEAR 2010,"","","",02­23       C1    NW201005301           DO
,DEMOCRATIC CAUCUS,2010Q1,SUPPLIES AND MATERIALS,"",02­23   C1   NW201005301         DO,01/26/10,01/26/10,BOTTLED WATER,98.88,FISCAL YEAR 2010,"","","",02­23   C1   NW201005301         DO
,DEMOCRATIC CAUCUS,2010Q1,SUPPLIES AND MATERIALS,"",02­23   C1   NW201005301         DO,01/28/10,01/28/10,BOTTLED WATER,20.00,FISCAL YEAR 2010,"","","",02­23   C1   NW201005301         DO
,DEMOCRATIC CAUCUS,2010Q1,SUPPLIES AND MATERIALS,"",02­23   C1   NW201005301         DO,01/31/10,01/31/10,BOTTLED WATER,2.20,FISCAL YEAR 2010,"","","",02­23   C1   NW201005301         DO
,DEMOCRATIC CAUCUS,2010Q1,SUPPLIES AND MATERIALS,"",02­23   C1   NW201005301         DO,01/31/10,01/31/10,BOTTLED WATER,2.00,FISCAL YEAR 2010,"","","",02­23   C1   NW201005301         DO
,DEMOCRATIC CAUCUS,2010Q1,SUPPLIES AND MATERIALS,"",03­01   P1   10DA0100138    GEORGE F SHEVLIN,02/22/10,02/22/10,FOOD & BEVERAGE,140.88,FISCAL YEAR 2010,"","","",03­01   P1   10DA0100138    GEORGE F SHEVLIN
,DEMOCRATIC CAUCUS,2010Q1,SUPPLIES AND MATERIALS,"",03­02   P1   10DA0100141         DO,01/14/10,01/14/10,FOOD & BEVERAGE,"6,704.53",FISCAL YEAR 2010,"","","",03­02   P1   10DA0100141         DO
,DEMOCRATIC CAUCUS,2010Q1,SUPPLIES AND MATERIALS,"",03­02   P1   10DA0100142         DO,01/14/10,01/14/10,FOOD & BEVERAGE,"1,607.22",FISCAL YEAR 2010,"","","",03­02   P1   10DA0100142         DO
,DEMOCRATIC CAUCUS,2010Q1,SUPPLIES AND MATERIALS,"",03­13   P1   10DA0100145         DO,03/01/10,03/01/10,FOOD & BEVERAGE,403.40,FISCAL YEAR 2010,"","","",03­13   P1   10DA0100145         DO
,DEMOCRATIC CAUCUS,2010Q1,SUPPLIES AND MATERIALS,"",03­16   P1   10DA0100148    SHELEY M RUBINO,01/15/10,01/15/10,FOOD & BEVERAGE,"4,827.00",FISCAL YEAR 2010,"","","",03­16   P1   10DA0100148    SHELEY M RUBINO
,DEMOCRATIC CAUCUS,2010Q1,SUPPLIES AND MATERIALS,"",03­16   P1   10DA0100149         DO,01/14/10,01/14/10,FOOD & BEVERAGE,"6,537.50",FISCAL YEAR 2010,"","","",03­16   P1   10DA0100149         DO
,DEMOCRATIC CAUCUS,2010Q1,SUPPLIES AND MATERIALS,"",03­16   P1   10DA0100151    SULLY FRAMING AND ART,02/24/10,02/24/10,HABITATION EXPENSES,373.48,FISCAL YEAR 2010,"","","",03­16   P1   10DA0100151    SULLY FRAMING AND ART
,DEMOCRATIC CAUCUS,2010Q1,SUPPLIES AND MATERIALS,"",03­16   P1   10DA0100153         DO,02/04/10,02/04/10,HABITATION EXPENSES,490.94,FISCAL YEAR 2010,"","","",03­16   P1   10DA0100153         DO
,DEMOCRATIC CAUCUS,2010Q1,SUPPLIES AND MATERIALS,"",03­16   P1   10DA0100154         DO,02/04/10,02/04/10,HABITATION EXPENSES,490.94,FISCAL YEAR 2010,"","","",03­16   P1   10DA0100154         DO
,DEMOCRATIC CAUCUS,2010Q1,SUPPLIES AND MATERIALS,"",03­19   P1   10DA0100157    GEORGE F SHEVLIN,03/15/10,03/15/10,FOOD & BEVERAGE,"1,600.00",FISCAL YEAR 2010,"","","",03­19   P1   10DA0100157    GEORGE F SHEVLIN
,DEMOCRATIC CAUCUS,2010Q1,SUPPLIES AND MATERIALS,"",03­19   P1   10DA0100155    SHELEY M RUBINO,02/23/10,02/23/10,FOOD & BEVERAGE,"1,673.00",FISCAL YEAR 2010,"","","",03­19   P1   10DA0100155    SHELEY M RUBINO
,DEMOCRATIC CAUCUS,2010Q1,SUPPLIES AND MATERIALS,"",03­19   P1   10DA0100156         DO,02/03/10,02/03/10,FOOD & BEVERAGE,"1,673.00",FISCAL YEAR 2010,"","","",03­19   P1   10DA0100156         DO
,DEMOCRATIC CAUCUS,2010Q1,SUPPLIES AND MATERIALS,"",03­19   P1   10DA0100158         DO,03/17/10,03/17/10,FOOD & BEVERAGE,"1,794.00",FISCAL YEAR 2010,"","","",03­19   P1   10DA0100158         DO
,DEMOCRATIC CAUCUS,2010Q1,SUPPLIES AND MATERIALS,"",03­19   P1   10DA0100159    THE NEW YORK TIMES,03/09/10,03/03/11,PUBLICATION REF MATERIAL,621.19,FISCAL YEAR 2010,"","","",03­19   P1   10DA0100159    THE NEW YORK TIMES
,DEMOCRATIC CAUCUS,2010Q1,SUPPLIES AND MATERIALS,"",03­23   P1   10DA0100168    SHELEY M RUBINO,03/03/10,03/03/10,FOOD & BEVERAGE,"1,292.60",FISCAL YEAR 2010,"","","",03­23   P1   10DA0100168    SHELEY M RUBINO
,DEMOCRATIC CAUCUS,2010Q1,SUPPLIES AND MATERIALS,"",03­23   P1   10DA0100170         DO,03/10/10,03/10/10,FOOD & BEVERAGE,"1,794.00",FISCAL YEAR 2010,"","","",03­23   P1   10DA0100170         DO
,DEMOCRATIC CAUCUS,2010Q1,SUPPLIES AND MATERIALS,"",03­24   C1   NW201008101    DEER PARK,02/28/10,02/28/10,BOTTLED WATER,16.00,FISCAL YEAR 2010,"","","",03­24   C1   NW201008101    DEER PARK
,DEMOCRATIC CAUCUS,2010Q1,SUPPLIES AND MATERIALS,"",03­24   C1   NW201008101         DO,02/28/10,02/28/10,BOTTLED WATER,40.00,FISCAL YEAR 2010,"","","",03­24   C1   NW201008101         DO
,DEMOCRATIC CAUCUS,2010Q1,SUPPLIES AND MATERIALS,"",03­24   C1   NW201008101         DO,02/01/10,02/01/10,BOTTLED WATER,50.98,FISCAL YEAR 2010,"","","",03­24   C1   NW201008101         DO
,DEMOCRATIC CAUCUS,2010Q1,SUPPLIES AND MATERIALS,"",03­24   C1   NW201008101         DO,02/26/10,02/26/10,BOTTLED WATER,242.85,FISCAL YEAR 2010,"","","",03­24   C1   NW201008101         DO
,DEMOCRATIC CAUCUS,2010Q1,SUPPLIES AND MATERIALS,"",03­24   C1   NW201008101         DO,02/28/10,02/28/10,BOTTLED WATER,2.20,FISCAL YEAR 2010,"","","",03­24   C1   NW201008101         DO
,DEMOCRATIC CAUCUS,2010Q1,SUPPLIES AND MATERIALS,"",03­24   C1   NW201008101         DO,02/28/10,02/28/10,BOTTLED WATER,2.00,FISCAL YEAR 2010,"","","",03­24   C1   NW201008101         DO
,DEMOCRATIC CAUCUS,2010Q1,SUPPLIES AND MATERIALS,"",03­29   P1   10DA0100177    GEORGE F SHEVLIN,03/15/10,03/15/10,FOOD & BEVERAGE,382.09,FISCAL YEAR 2010,"","","",03­29   P1   10DA0100177    GEORGE F SHEVLIN
,DEMOCRATIC CAUCUS,2010Q1,SUPPLIES AND MATERIALS,"",03­29   P1   10DA0100175    SHELEY M RUBINO,02/24/10,02/24/10,FOOD & BEVERAGE,313.24,FISCAL YEAR 2010,"","","",03­29   P1   10DA0100175    SHELEY M RUBINO
,DEMOCRATIC CAUCUS,2010Q1,SUPPLIES AND MATERIALS,"",03­29   P1   10DA0100179         DO,03/18/10,03/18/10,FOOD & BEVERAGE,39.27,FISCAL YEAR 2010,"","","",03­29   P1   10DA0100179         DO
,REPUBLICAN CONFERENCE,2010Q1,PERSONNEL COMPENSATION,"","PITCOCK, JOSH",01/01/10,03/31/10,DEPUTY CHIEF OF STAFF-STATUTOR,"36,249.99",FISCAL YEAR 2010,"","","","PITCOCK, JOSH"
,REPUBLICAN CONFERENCE,2010Q1,PERSONNEL COMPENSATION,"","SHORT,MARC T",01/01/10,03/31/10,CHIEF OF STAFF (STATUTORY),"42,102.75",FISCAL YEAR 2010,"","","","SHORT,MARC T"
,REPUBLICAN CONFERENCE,2010Q1,PERSONNEL COMPENSATION,"","CASTILLO, ANDELIZ N",01/01/10,03/31/10,DEP PRESS SEC & DIR SPEC MEDIA,"15,249.99",FISCAL YEAR 2010,"","","","CASTILLO, ANDELIZ N"
,REPUBLICAN CONFERENCE,2010Q1,PERSONNEL COMPENSATION,"","DEUTSCH,JEREMY",03/01/10,03/31/10,SHARED EMPLOYEE,"5,247.92",FISCAL YEAR 2010,"","","","DEUTSCH,JEREMY"
,REPUBLICAN CONFERENCE,2010Q1,PERSONNEL COMPENSATION,"","HEPBURN, ADAM J",01/01/10,03/31/10,POLICY ADVISOR,"12,000.00",FISCAL YEAR 2010,"","","","HEPBURN, ADAM J"
,REPUBLICAN CONFERENCE,2010Q1,PERSONNEL COMPENSATION,"","HOWARD,BENJAMIN R",01/01/10,03/31/10,STAFF ASSISTANT,"7,749.99",FISCAL YEAR 2010,"","","","HOWARD,BENJAMIN R"
,REPUBLICAN CONFERENCE,2010Q1,PERSONNEL COMPENSATION,"","JACOBS,CHRISTOPHER S",01/01/10,01/31/10,POLICY ANALYST,"1,805.56",FISCAL YEAR 2010,"","","","JACOBS,CHRISTOPHER S"
,REPUBLICAN CONFERENCE,2010Q1,PERSONNEL COMPENSATION,"","KOENIG,ANDREW D",01/01/10,03/31/10,POLICY ADVISOR,"13,749.99",FISCAL YEAR 2010,"","","","KOENIG,ANDREW D"
,REPUBLICAN CONFERENCE,2010Q1,PERSONNEL COMPENSATION,"","KOLB,COURTNEY L",01/01/10,03/31/10,MEDIA COORDINATOR,"11,000.01",FISCAL YEAR 2010,"","","","KOLB,COURTNEY L"
,REPUBLICAN CONFERENCE,2010Q1,PERSONNEL COMPENSATION,"","LLOYD, MATTHEW H",01/01/10,02/28/10,COMMUNICATIONS DIRECTOR,"18,333.34",FISCAL YEAR 2010,"","","","LLOYD, MATTHEW H"
,REPUBLICAN CONFERENCE,2010Q1,PERSONNEL COMPENSATION,"","LUNDH,MATTHEW B",01/01/10,02/28/10,SHARED EMPLOYEE,"12,766.66",FISCAL YEAR 2010,"","","","LUNDH,MATTHEW B"
,REPUBLICAN CONFERENCE,2010Q1,PERSONNEL COMPENSATION,"","MACLEAN, MARY G",01/01/10,03/31/10,DEPUTY COMMUNICATIONS DIRECTOR,"16,500.00",FISCAL YEAR 2010,"","","","MACLEAN, MARY G"
,REPUBLICAN CONFERENCE,2010Q1,PERSONNEL COMPENSATION,"","MAKIN, SARAH E",03/01/10,03/31/10,POLICY ADV & COALITIONS LIAISO,"4,750.00",FISCAL YEAR 2010,"","","","MAKIN, SARAH E"
,REPUBLICAN CONFERENCE,2010Q1,PERSONNEL COMPENSATION,"","MAKIN, SARAH E",01/01/10,02/28/10,POLICY ADVISOR,"8,666.66",FISCAL YEAR 2010,"","","",DO
,REPUBLICAN CONFERENCE,2010Q1,PERSONNEL COMPENSATION,"","MEEKS,DARIS",01/01/10,03/31/10,POLICY ADVISOR & LEGIS. COUNS,"23,499.99",FISCAL YEAR 2010,"","","","MEEKS,DARIS"
,REPUBLICAN CONFERENCE,2010Q1,PERSONNEL COMPENSATION,"","NEALE,SCOTT R",01/01/10,03/31/10,STAFF ASSISTANT,"7,749.99",FISCAL YEAR 2010,"","","","NEALE,SCOTT R"
,REPUBLICAN CONFERENCE,2010Q1,PERSONNEL COMPENSATION,"","NEWELL,BRIAN A",01/01/10,03/19/10,DEPUTY PRESS SECRETARY/WRITER,"10,313.90",FISCAL YEAR 2010,"","","","NEWELL,BRIAN A"
,REPUBLICAN CONFERENCE,2010Q1,PERSONNEL COMPENSATION,"","SEIDEL, EMILY R",01/01/10,03/31/10,OPS DIR & ASST TO CHF OF STAFF,"23,499.99",FISCAL YEAR 2010,"","","","SEIDEL, EMILY R"
,REPUBLICAN CONFERENCE,2010Q1,PERSONNEL COMPENSATION,"","SEMMEL,RACHEL K",01/01/10,03/31/10,PRESS ASSISTANT,"9,999.99",FISCAL YEAR 2010,"","","","SEMMEL,RACHEL K"
,REPUBLICAN CONFERENCE,2010Q1,PERSONNEL COMPENSATION,"","SMITH JR, WILLIAM A",01/01/10,03/31/10,SHARED EMPLOYEE,"5,000.01",FISCAL YEAR 2010,"","","","SMITH JR, WILLIAM A"
,REPUBLICAN CONFERENCE,2010Q1,PERSONNEL COMPENSATION,"","SMITH,JA'RON K",01/01/10,03/31/10,STAFF ASSISTANT,"7,749.99",FISCAL YEAR 2010,"","","","SMITH,JA'RON K"
,REPUBLICAN CONFERENCE,2010Q1,PERSONNEL COMPENSATION,"","STONE, JOHN E",01/01/10,03/31/10,SHARED EMPLOYEE,"13,749.99",FISCAL YEAR 2010,"","","","STONE, JOHN E"
,REPUBLICAN CONFERENCE,2010Q1,PERSONNEL COMPENSATION,"","STRAND, KATHRYN M",01/01/10,03/31/10,DIR OF MEMBER SERVICES,"22,500.00",FISCAL YEAR 2010,"","","","STRAND, KATHRYN M"
,REPUBLICAN CONFERENCE,2010Q1,PERSONNEL COMPENSATION,"","THOMPSON,WHITNEY",01/01/10,03/31/10,SHARED EMPLOYEE,"9,999.99",FISCAL YEAR 2010,"","","","THOMPSON,WHITNEY"
,REPUBLICAN CONFERENCE,2010Q1,TRAVEL,"",02­01       P1 10RC0100111      MELANIE LOONEY,12/16/09,12/16/09,"TAXI, PARKING, TOLLS",14.00,FISCAL YEAR 2010,"","","",02­01       P1 10RC0100111      MELANIE LOONEY
,REPUBLICAN CONFERENCE,2010Q1,TRAVEL,"",02­01       P1 10RC0100112      RUSSELL VOUGHT,01/08/10,01/08/10,"TAXI, PARKING, TOLLS",17.00,FISCAL YEAR 2010,"","","",02­01       P1 10RC0100112      RUSSELL VOUGHT
,REPUBLICAN CONFERENCE,2010Q1,TRAVEL,"",02­18       P1 10RC0100117      COURTNEY L. KOLB,01/29/10,01/29/10,"TAXI, PARKING, TOLLS",6.48,FISCAL YEAR 2010,"","","",02­18       P1 10RC0100117      COURTNEY L. KOLB
,REPUBLICAN CONFERENCE,2010Q1,TRAVEL,"",02­18       P1 10RC0100119           DO,01/29/10,01/29/10,MEALS,55.84,FISCAL YEAR 2010,"","","",02­18       P1 10RC0100119           DO
,REPUBLICAN CONFERENCE,2010Q1,TRAVEL,"",02­18       P1 10RC0100122      JOSHUA PITCOCK,01/22/10,01/22/10,"TAXI, PARKING, TOLLS",7.00,FISCAL YEAR 2010,"","","",02­18       P1 10RC0100122      JOSHUA PITCOCK
,REPUBLICAN CONFERENCE,2010Q1,TRAVEL,"",02­18       P1 10RC0100121      KATHRYN MAE STRAND,01/22/10,01/22/10,"TAXI, PARKING, TOLLS",9.00,FISCAL YEAR 2010,"","","",02­18       P1 10RC0100121      KATHRYN MAE STRAND
,REPUBLICAN CONFERENCE,2010Q1,TRAVEL,"",02­18       P1 10RC0100118      RACHEL SEMMEL,01/29/10,01/29/10,"TAXI, PARKING, TOLLS",17.30,FISCAL YEAR 2010,"","","",02­18       P1 10RC0100118      RACHEL SEMMEL
,REPUBLICAN CONFERENCE,2010Q1,TRAVEL,"",03­01       P1 10RC0100129      MELANIE LOONEY,01/20/10,02/03/10,"TAXI, PARKING, TOLLS",43.50,FISCAL YEAR 2010,"","","",03­01       P1 10RC0100129      MELANIE LOONEY
,REPUBLICAN CONFERENCE,2010Q1,TRAVEL,"",03­03       P1 10RC0100137           DO,02/17/10,02/24/10,"TAXI, PARKING, TOLLS",77.00,FISCAL YEAR 2010,"","","",03­03       P1 10RC0100137           DO
,REPUBLICAN CONFERENCE,2010Q1,TRAVEL,"",03­18   P1   10RC0100146                CITIBANK GOV CARD SERVICE,01/29/10,01/29/10,COMMERCIAL TRANSPORTATION,412.00,FISCAL YEAR 2010,"","","",03­18   P1   10RC0100146                CITIBANK GOV CARD SERVICE
,REPUBLICAN CONFERENCE,2010Q1,TRAVEL,"",03­19   P1   10RC0100156                MARC T SHORT,03/10/10,03/10/10,"TAXI, PARKING, TOLLS",20.00,FISCAL YEAR 2010,"","","",03­19   P1   10RC0100156                MARC T SHORT
,REPUBLICAN CONFERENCE,2010Q1,TRAVEL,"",03­19   P1   10RC0100151                MARY G. VOUGHT,02/19/10,02/19/10,"TAXI, PARKING, TOLLS",40.00,FISCAL YEAR 2010,"","","",03­19   P1   10RC0100151                MARY G. VOUGHT
,REPUBLICAN CONFERENCE,2010Q1,TRAVEL,"",03­19   P1   10RC0100157                RUSSELL VOUGHT,03/10/10,03/10/10,"TAXI, PARKING, TOLLS",17.00,FISCAL YEAR 2010,"","","",03­19   P1   10RC0100157                RUSSELL VOUGHT
,REPUBLICAN CONFERENCE,2010Q1,"RENT, COMMUNICATION, UTILITIES","",03­11   P1 10RC0100141     CMU PUBLIC BROADCASTING,02/18/10,02/18/10,RECORDING (OUTSIDE),300.00,FISCAL YEAR 2010,"","","",03­11   P1 10RC0100141     CMU PUBLIC BROADCASTING
,REPUBLICAN CONFERENCE,2010Q1,OTHER SERVICES,"",02­01   P1   10RC0100113                EMILY R. SEIDEL,02/04/10,02/05/10,TRAINING EXPENSES,60.00,FISCAL YEAR 2010,"","","",02­01   P1   10RC0100113                EMILY R. SEIDEL
,REPUBLICAN CONFERENCE,2010Q1,OTHER SERVICES,"","02­18   P1   10RC0100125                KEYNOTES, INC",01/21/10,01/27/10,TRANSLATION & INTERPRETATION,526.18,FISCAL YEAR 2010,"","","","02­18   P1   10RC0100125                KEYNOTES, INC"
,REPUBLICAN CONFERENCE,2010Q1,OTHER SERVICES,"",03­01   P1   10RC0100128                     DO,02/09/10,02/09/10,STENOGRAPHIC REPORTING,150.66,FISCAL YEAR 2010,"","","",03­01   P1   10RC0100128                     DO
,REPUBLICAN CONFERENCE,2010Q1,OTHER SERVICES,"",03­16   P1   10RC0100143                     DO,01/21/10,01/27/10,TRANSLATION & INTERPRETATION,500.38,FISCAL YEAR 2010,"","","",03­16   P1   10RC0100143                     DO
,REPUBLICAN CONFERENCE,2010Q1,OTHER SERVICES,"",03­19   P1   10RC0100152                     DO,03/04/10,03/04/10,TRANSLATION & INTERPRETATION,145.80,FISCAL YEAR 2010,"","","",03­19   P1   10RC0100152                     DO
,REPUBLICAN CONFERENCE,2010Q1,SUPPLIES AND MATERIALS,"",01­05   P1   10RC0100095      CAPITOLHOST,12/02/09,12/02/09,FOOD & BEVERAGE,210.00,FISCAL YEAR 2010,"","","",01­05   P1   10RC0100095      CAPITOLHOST
,REPUBLICAN CONFERENCE,2010Q1,SUPPLIES AND MATERIALS,"",01­05   P1   10RC0100096      CHANTILLY DONUTS,12/15/09,12/15/09,FOOD & BEVERAGE,82.00,FISCAL YEAR 2010,"","","",01­05   P1   10RC0100096      CHANTILLY DONUTS
,REPUBLICAN CONFERENCE,2010Q1,SUPPLIES AND MATERIALS,"",01­05   P1   10RC0100097           DO,12/16/09,12/16/09,FOOD & BEVERAGE,82.00,FISCAL YEAR 2010,"","","",01­05   P1   10RC0100097           DO
,REPUBLICAN CONFERENCE,2010Q1,SUPPLIES AND MATERIALS,"",01­05   P1   10RC0100094      CHRISTOPHER KELLY CRAWFORD,12/09/09,12/09/09,FOOD & BEVERAGE,56.36,FISCAL YEAR 2010,"","","",01­05   P1   10RC0100094      CHRISTOPHER KELLY CRAWFORD
,REPUBLICAN CONFERENCE,2010Q1,SUPPLIES AND MATERIALS,"",01­05   P1   10RC0100093      WHITNEY THOMPSON,12/10/09,12/10/09,FOOD & BEVERAGE,41.58,FISCAL YEAR 2010,"","","",01­05   P1   10RC0100093      WHITNEY THOMPSON
,REPUBLICAN CONFERENCE,2010Q1,SUPPLIES AND MATERIALS,"",01­27   P1   10RC0100098      CITIBANK GOV CARD SERVICE,11/30/09,12/17/09,FOOD & BEVERAGE,"1,832.86",FISCAL YEAR 2010,"","","",01­27   P1   10RC0100098      CITIBANK GOV CARD SERVICE
,REPUBLICAN CONFERENCE,2010Q1,SUPPLIES AND MATERIALS,"",01­27   P1   10RC0100099           DO,01/01/10,12/31/10,PUBLICATION REF MATERIAL,280.54,FISCAL YEAR 2010,"","","",01­27   P1   10RC0100099           DO
,REPUBLICAN CONFERENCE,2010Q1,SUPPLIES AND MATERIALS,"",01­28   P1   10RC0100102      CAPITOLHOST,12/08/09,12/08/09,FOOD & BEVERAGE,210.00,FISCAL YEAR 2010,"","","",01­28   P1   10RC0100102      CAPITOLHOST
,REPUBLICAN CONFERENCE,2010Q1,SUPPLIES AND MATERIALS,"",01­28   P1   10RC0100101      CITIBANK GOV CARD SERVICE,12/01/09,12/31/09,PUBLICATION REF MATERIAL,5.95,FISCAL YEAR 2010,"","","",01­28   P1   10RC0100101      CITIBANK GOV CARD SERVICE
,REPUBLICAN CONFERENCE,2010Q1,SUPPLIES AND MATERIALS,"",01­28   C1   NW201002603      DEER PARK,12/09/09,12/09/09,BOTTLED WATER,111.89,FISCAL YEAR 2010,"","","",01­28   C1   NW201002603      DEER PARK
,REPUBLICAN CONFERENCE,2010Q1,SUPPLIES AND MATERIALS,"",01­28   C1   NW201002603           DO,12/28/09,12/28/09,BOTTLED WATER,101.92,FISCAL YEAR 2010,"","","",01­28   C1   NW201002603           DO
,REPUBLICAN CONFERENCE,2010Q1,SUPPLIES AND MATERIALS,"",01­28   C1   NW201002603           DO,12/31/09,12/31/09,BOTTLED WATER,2.00,FISCAL YEAR 2010,"","","",01­28   C1   NW201002603           DO
,REPUBLICAN CONFERENCE,2010Q1,SUPPLIES AND MATERIALS,"","01­28   P1   10RC0100103      KEYNOTES, INC",12/02/09,12/18/09,FOOD & BEVERAGE,559.31,FISCAL YEAR 2010,"","","","01­28   P1   10RC0100103      KEYNOTES, INC"
,REPUBLICAN CONFERENCE,2010Q1,SUPPLIES AND MATERIALS,"","01­28   P1   10RC0100106      SHADOW TV, INC",01/01/10,03/31/10,PUBLICATION REF MATERIAL,"1,500.00",FISCAL YEAR 2010,"","","","01­28   P1   10RC0100106      SHADOW TV, INC"
,REPUBLICAN CONFERENCE,2010Q1,SUPPLIES AND MATERIALS,"",01­28   P1   10RC0100105      WALKER COMMUNICATIONS,01/01/10,01/31/10,PUBLICATION REF MATERIAL,150.00,FISCAL YEAR 2010,"","","",01­28   P1   10RC0100105      WALKER COMMUNICATIONS
,REPUBLICAN CONFERENCE,2010Q1,SUPPLIES AND MATERIALS,"",01­29   P1   10RC0100107      CHANTILLY DONUTS,11/04/09,11/04/09,FOOD & BEVERAGE,42.00,FISCAL YEAR 2010,"","","",01­29   P1   10RC0100107      CHANTILLY DONUTS
,REPUBLICAN CONFERENCE,2010Q1,SUPPLIES AND MATERIALS,"",01­29   P1   10RC0100108           DO,01/13/10,01/13/10,FOOD & BEVERAGE,82.00,FISCAL YEAR 2010,"","","",01­29   P1   10RC0100108           DO
,REPUBLICAN CONFERENCE,2010Q1,SUPPLIES AND MATERIALS,"",01­30   P1   10RC0100114      CAPITOLHOST,12/15/09,12/15/09,FOOD & BEVERAGE,150.00,FISCAL YEAR 2010,"","","",01­30   P1   10RC0100114      CAPITOLHOST
,REPUBLICAN CONFERENCE,2010Q1,SUPPLIES AND MATERIALS,"",02­04   P1   10RC0100109      CHANTILLY DONUTS,01/20/10,01/20/10,FOOD & BEVERAGE,82.00,FISCAL YEAR 2010,"","","",02­04   P1   10RC0100109      CHANTILLY DONUTS
,REPUBLICAN CONFERENCE,2010Q1,SUPPLIES AND MATERIALS,"",02­18   P1   10RC0100123      CAPITOLHOST,01/13/10,01/13/10,FOOD & BEVERAGE,210.00,FISCAL YEAR 2010,"","","",02­18   P1   10RC0100123      CAPITOLHOST
,REPUBLICAN CONFERENCE,2010Q1,SUPPLIES AND MATERIALS,"",02­18   P1   10RC0100124           DO,01/20/10,01/20/10,FOOD & BEVERAGE,210.00,FISCAL YEAR 2010,"","","",02­18   P1   10RC0100124           DO
,REPUBLICAN CONFERENCE,2010Q1,SUPPLIES AND MATERIALS,"",02­18   P1   10RC0100126      CHANTILLY DONUTS,01/27/10,01/27/10,FOOD & BEVERAGE,82.00,FISCAL YEAR 2010,"","","",02­18   P1   10RC0100126      CHANTILLY DONUTS
,REPUBLICAN CONFERENCE,2010Q1,SUPPLIES AND MATERIALS,"",02­18   P1   10RC0100116      RACHEL SEMMEL,01/27/10,01/27/10,FOOD & BEVERAGE,9.99,FISCAL YEAR 2010,"","","",02­18   P1   10RC0100116      RACHEL SEMMEL
,REPUBLICAN CONFERENCE,2010Q1,SUPPLIES AND MATERIALS,"",02­18   P1   10RC0100120      WHITNEY THOMPSON,01/20/10,01/21/10,FOOD & BEVERAGE,140.30,FISCAL YEAR 2010,"","","",02­18   P1   10RC0100120      WHITNEY THOMPSON
,REPUBLICAN CONFERENCE,2010Q1,SUPPLIES AND MATERIALS,"",02­23   C1   NW201005304      DEER PARK,01/11/10,01/11/10,BOTTLED WATER,115.87,FISCAL YEAR 2010,"","","",02­23   C1   NW201005304      DEER PARK
,REPUBLICAN CONFERENCE,2010Q1,SUPPLIES AND MATERIALS,"",02­23   C1   NW201005304           DO,01/27/10,01/27/10,BOTTLED WATER,118.91,FISCAL YEAR 2010,"","","",02­23   C1   NW201005304           DO
,REPUBLICAN CONFERENCE,2010Q1,SUPPLIES AND MATERIALS,"",02­23   C1   NW201005304           DO,01/31/10,01/31/10,BOTTLED WATER,2.20,FISCAL YEAR 2010,"","","",02­23   C1   NW201005304           DO
,REPUBLICAN CONFERENCE,2010Q1,SUPPLIES AND MATERIALS,"",02­26   P1   10RC0100133      CITIBANK GOV CARD SERVICE,01/12/10,01/28/10,FOOD & BEVERAGE,"1,946.18",FISCAL YEAR 2010,"","","",02­26   P1   10RC0100133      CITIBANK GOV CARD SERVICE
,REPUBLICAN CONFERENCE,2010Q1,SUPPLIES AND MATERIALS,"",02­26   P1   10RC0100134           DO,01/01/10,01/31/10,PUBLICATION REF MATERIAL,5.95,FISCAL YEAR 2010,"","","",02­26   P1   10RC0100134           DO
,REPUBLICAN CONFERENCE,2010Q1,SUPPLIES AND MATERIALS,"",02­26   P1   10RC0100135           DO,01/25/10,01/25/10,PUBLICATION REF MATERIAL,390.00,FISCAL YEAR 2010,"","","",02­26   P1   10RC0100135           DO
,REPUBLICAN CONFERENCE,2010Q1,SUPPLIES AND MATERIALS,"",03­01   P1   10RC0100132      WHITNEY THOMPSON,02/03/10,02/04/10,FOOD & BEVERAGE,84.18,FISCAL YEAR 2010,"","","",03­01   P1   10RC0100132      WHITNEY THOMPSON
,REPUBLICAN CONFERENCE,2010Q1,SUPPLIES AND MATERIALS,"",03­02   P1   10RC0100131      CAPITOLHOST,01/21/10,01/21/10,FOOD & BEVERAGE,"1,121.38",FISCAL YEAR 2010,"","","",03­02   P1   10RC0100131      CAPITOLHOST
,REPUBLICAN CONFERENCE,2010Q1,SUPPLIES AND MATERIALS,"",03­02   P1   10RC0100130      WALKER COMMUNICATIONS,02/01/10,02/28/10,PUBLICATION REF MATERIAL,150.00,FISCAL YEAR 2010,"","","",03­02   P1   10RC0100130      WALKER COMMUNICATIONS
,REPUBLICAN CONFERENCE,2010Q1,SUPPLIES AND MATERIALS,"",03­03 P1 10RC0100138         CAPITOLHOST,01/27/10,01/27/10,FOOD & BEVERAGE,210.00,FISCAL YEAR 2010,"","","",03­03 P1 10RC0100138         CAPITOLHOST
,REPUBLICAN CONFERENCE,2010Q1,SUPPLIES AND MATERIALS,"",03­03 P1 10RC0100139         CHANTILLY DONUTS,02/23/10,02/23/10,FOOD & BEVERAGE,82.00,FISCAL YEAR 2010,"","","",03­03 P1 10RC0100139         CHANTILLY DONUTS
,REPUBLICAN CONFERENCE,2010Q1,SUPPLIES AND MATERIALS,"",03­03 P1 10RC0100140         RACHEL SEMMEL,02/19/10,02/19/10,FOOD & BEVERAGE,44.51,FISCAL YEAR 2010,"","","",03­03 P1 10RC0100140         RACHEL SEMMEL
,REPUBLICAN CONFERENCE,2010Q1,SUPPLIES AND MATERIALS,"",03­16 P1 10RC0100144         EMILY R. SEIDEL,02/25/10,02/25/10,FOOD & BEVERAGE,38.13,FISCAL YEAR 2010,"","","",03­16 P1 10RC0100144         EMILY R. SEIDEL
,REPUBLICAN CONFERENCE,2010Q1,SUPPLIES AND MATERIALS,"",03­16 P1 10RC0100142         WALKER COMMUNICATIONS,03/01/10,03/31/10,PUBLICATION REF MATERIAL,150.00,FISCAL YEAR 2010,"","","",03­16 P1 10RC0100142         WALKER COMMUNICATIONS
,REPUBLICAN CONFERENCE,2010Q1,SUPPLIES AND MATERIALS,"",03­16 P1 10RC0100145         WHITNEY THOMPSON,02/24/10,02/25/10,FOOD & BEVERAGE,100.25,FISCAL YEAR 2010,"","","",03­16 P1 10RC0100145         WHITNEY THOMPSON
,REPUBLICAN CONFERENCE,2010Q1,SUPPLIES AND MATERIALS,"",03­18 P1 10RC0100147         CITIBANK GOV CARD SERVICE,02/01/10,02/22/10,FOOD & BEVERAGE,"1,156.81",FISCAL YEAR 2010,"","","",03­18 P1 10RC0100147         CITIBANK GOV CARD SERVICE
,REPUBLICAN CONFERENCE,2010Q1,SUPPLIES AND MATERIALS,"",03­18 P1 10RC0100150              DO,02/15/10,02/15/10,PUBLICATION REF MATERIAL,5.95,FISCAL YEAR 2010,"","","",03­18 P1 10RC0100150              DO
,REPUBLICAN CONFERENCE,2010Q1,SUPPLIES AND MATERIALS,"",03­19 P1 10RC0100155         CAPITOLHOST,02/23/10,02/23/10,FOOD & BEVERAGE,210.00,FISCAL YEAR 2010,"","","",03­19 P1 10RC0100155         CAPITOLHOST
,REPUBLICAN CONFERENCE,2010Q1,SUPPLIES AND MATERIALS,"",03­19 P1 10RC0100158         CHANTILLY DONUTS,03/10/10,03/10/10,FOOD & BEVERAGE,82.00,FISCAL YEAR 2010,"","","",03­19 P1 10RC0100158         CHANTILLY DONUTS
,REPUBLICAN CONFERENCE,2010Q1,SUPPLIES AND MATERIALS,"",03­19 P1 10RC0100159              DO,03/11/10,03/11/10,FOOD & BEVERAGE,82.00,FISCAL YEAR 2010,"","","",03­19 P1 10RC0100159              DO
,REPUBLICAN CONFERENCE,2010Q1,SUPPLIES AND MATERIALS,"",03­19 P1 10RC0100153         WHITNEY THOMPSON,03/03/10,03/03/10,OFFICE SUPPLIES OUTSIDE,61.38,FISCAL YEAR 2010,"","","",03­19 P1 10RC0100153         WHITNEY THOMPSON
,REPUBLICAN CONFERENCE,2010Q1,SUPPLIES AND MATERIALS,"",03­19 P1 10RC0100154              DO,03/03/10,03/04/10,FOOD & BEVERAGE,113.44,FISCAL YEAR 2010,"","","",03­19 P1 10RC0100154              DO
,REPUBLICAN CONFERENCE,2010Q1,SUPPLIES AND MATERIALS,"",03­24 C1 NW201008103         DEER PARK,02/26/10,02/26/10,BOTTLED WATER,128.91,FISCAL YEAR 2010,"","","",03­24 C1 NW201008103         DEER PARK
,REPUBLICAN CONFERENCE,2010Q1,SUPPLIES AND MATERIALS,"",03­24 C1 NW201008103              DO,02/28/10,02/28/10,BOTTLED WATER,2.20,FISCAL YEAR 2010,"","","",03­24 C1 NW201008103              DO
,REPUBLICAN POLICY COMMITTEE,2010Q1,PERSONNEL COMPENSATION,"","ANUZIS,ANDRIUS A",01/01/10,03/31/10,SHARED EMPLOYEE,500.01,FISCAL YEAR 2010,"","","","ANUZIS,ANDRIUS A"
,REPUBLICAN POLICY COMMITTEE,2010Q1,PERSONNEL COMPENSATION,"","BLOCHER, PAUL C",01/01/10,03/01/10,POLICY DIRECTOR,"2,541.67",FISCAL YEAR 2010,"","","","BLOCHER, PAUL C"
,REPUBLICAN POLICY COMMITTEE,2010Q1,PERSONNEL COMPENSATION,"","CELLA,JOSEPH J",01/01/10,01/31/10,SENIOR ADVISOR,977.39,FISCAL YEAR 2010,"","","","CELLA,JOSEPH J"
,REPUBLICAN POLICY COMMITTEE,2010Q1,PERSONNEL COMPENSATION,"","DAVIS,THADDEUS",12/22/09,12/31/09,STAFF,500.00,FISCAL YEAR 2010,"","","","DAVIS,THADDEUS"
,REPUBLICAN POLICY COMMITTEE,2010Q1,PERSONNEL COMPENSATION,"","LAMBERTI,THOMAS",01/01/10,03/21/10,STAFF ASSISTANT,"5,400.00",FISCAL YEAR 2010,"","","","LAMBERTI,THOMAS"
,REPUBLICAN POLICY COMMITTEE,2010Q1,PERSONNEL COMPENSATION,"","QUARKER,KRISTAL C",01/01/10,03/31/10,DIRECTOR OF OUTREACH,"8,375.01",FISCAL YEAR 2010,"","","","QUARKER,KRISTAL C"
,REPUBLICAN POLICY COMMITTEE,2010Q1,PERSONNEL COMPENSATION,"","ROTHWELL,PATRICK J",01/01/10,03/31/10,CHIEF OF STAFF,"21,816.66",FISCAL YEAR 2010,"","","","ROTHWELL,PATRICK J"
,REPUBLICAN POLICY COMMITTEE,2010Q1,PERSONNEL COMPENSATION,"","THOMPSON,RANDALL H",01/01/10,03/31/10,CHIEF OF STAFF,"28,200.92",FISCAL YEAR 2010,"","","","THOMPSON,RANDALL H"
,REPUBLICAN POLICY COMMITTEE,2010Q1,PERSONNEL COMPENSATION,"","TYRRELL,ANNE E",01/01/10,03/31/10,STAFF,"2,499.99",FISCAL YEAR 2010,"","","","TYRRELL,ANNE E"
,REPUBLICAN POLICY COMMITTEE,2010Q1,TRAVEL,"",03­26      P1 10RC0200030      THOMAS LAMBERTI,01/19/10,01/19/10,"TAXI, PARKING, TOLLS",10.00,FISCAL YEAR 2010,"","","",03­26      P1 10RC0200030      THOMAS LAMBERTI
,REPUBLICAN POLICY COMMITTEE,2010Q1,OTHER SERVICES,"",01­06      P1    10RC0200025                COAST TO COAST STRATEGIES LLC,11/15/09,12/15/09,NON-TECHNOLOGY SERVICE CONTRCT,"5,000.00",FISCAL YEAR 2010,"","","",01­06      P1    10RC0200025                COAST TO COAST STRATEGIES LLC
,REPUBLICAN POLICY COMMITTEE,2010Q1,OTHER SERVICES,"",01­07      P1    10RC0200027                EGOVMALL TECHNOLOGIES LLC,12/01/09,12/31/09,NON-TECHNOLOGY SERVICE CONTRCT,300.00,FISCAL YEAR 2010,"","","",01­07      P1    10RC0200027                EGOVMALL TECHNOLOGIES LLC
,REPUBLICAN POLICY COMMITTEE,2010Q1,OTHER SERVICES,"",03­03      P1    10RC0200028                COAST TO COAST STRATEGIES LLC,12/15/09,01/15/10,NON-TECHNOLOGY SERVICE CONTRCT,"5,000.00",FISCAL YEAR 2010,"","","",03­03      P1    10RC0200028                COAST TO COAST STRATEGIES LLC
,REPUBLICAN POLICY COMMITTEE,2010Q1,OTHER SERVICES,"",03­26      P1    10RC0200031                    DO,02/15/10,03/15/10,NON-TECHNOLOGY SERVICE CONTRCT,"5,000.00",FISCAL YEAR 2010,"","","",03­26      P1    10RC0200031                    DO
,REPUBLICAN POLICY COMMITTEE,2010Q1,SUPPLIES AND MATERIALS,"",03­05      P1 10RC0200029      CITIBANK GOV CARD SERVICE,11/17/09,11/17/09,FOOD & BEVERAGE,721.02,FISCAL YEAR 2010,"","","",03­05      P1 10RC0200029      CITIBANK GOV CARD SERVICE
,REPUBLICAN POLICY COMMITTEE,2010Q1,"RENT, COMMUNICATION, UTILITIES","",03­29 P1 10RC0200032         FEDERAL EXPRESS,09/03/09,09/03/09,POSTAGE/COURIER/BOX RENTAL,11.40,FISCAL YEAR 2009,"","","",03­29 P1 10RC0200032         FEDERAL EXPRESS
,REPUBLICAN POLICY COMMITTEE,2010Q1,OTHER SERVICES,"",01­07      P1 10RC0200026                   EGOVMALL TECHNOLOGIES LLC,07/28/09,09/27/09,NON-TECHNOLOGY SERVICE CONTRCT,"18,000.00",FISCAL YEAR 2009,"","","",01­07      P1 10RC0200026                   EGOVMALL TECHNOLOGIES LLC
,REPUBLICAN STEERING COMMITTEE,2010Q1,PERSONNEL COMPENSATION,"","BURTON, JEFF",01/01/10,03/31/10,DIRECTOR OF COALITIONS,"40,948.74",FISCAL YEAR 2010,"","","","BURTON, JEFF"
,REPUBLICAN STEERING COMMITTEE,2010Q1,PERSONNEL COMPENSATION,"","DOLBOW, WILLIAM R",02/03/10,03/31/10,SENIOR ADVISOR,"26,389.19",FISCAL YEAR 2010,"","","","DOLBOW, WILLIAM R"
,REPUBLICAN STEERING COMMITTEE,2010Q1,PERSONNEL COMPENSATION,"","FERRIER,ANTONIA H",01/01/10,01/31/10,PRESS SECRETARY,"5,950.00",FISCAL YEAR 2010,"","","","FERRIER,ANTONIA H"
,REPUBLICAN STEERING COMMITTEE,2010Q1,PERSONNEL COMPENSATION,"","MURRAY,JOHN A",01/01/10,02/02/10,COMMUNICATION DIRECTOR/COUNSEL,"14,559.55",FISCAL YEAR 2010,"","","","MURRAY,JOHN A"
,REPUBLICAN STEERING COMMITTEE,2010Q1,PERSONNEL COMPENSATION,"","ROGERS, GEORGE R",01/01/10,03/31/10,POLICY ADVISOR/COUNSEL-STATUTO,"37,500.00",FISCAL YEAR 2010,"","","","ROGERS, GEORGE R"
,REPUBLICAN STEERING COMMITTEE,2010Q1,PERSONNEL COMPENSATION,"","STEEL, MICHAEL",01/01/10,03/31/10,POLICY ADVISOR/COUNSEL-STATUTO,"33,125.01",FISCAL YEAR 2010,"","","","STEEL, MICHAEL"
,REPUBLICAN STEERING COMMITTEE,2010Q1,PERSONNEL COMPENSATION,"","TOYE,WILLIAM A",01/01/10,02/28/10,PROJECT MANAGER,"6,000.00",FISCAL YEAR 2010,"","","","TOYE,WILLIAM A"
,MINORITY EMPLOYEES,2010Q1,PERSONNEL COMPENSATION,"","BOLAND,KEVIN P",01/01/10,03/31/10,COMMUNICATIONS STAFF ASSISTANT,"8,124.99",FISCAL YEAR 2010,"","","","BOLAND,KEVIN P"
,MINORITY EMPLOYEES,2010Q1,PERSONNEL COMPENSATION,"","BRADLEY, NEIL L",01/01/10,03/31/10,LEGISLATIVE DIRECTOR,"41,949.99",FISCAL YEAR 2010,"","","","BRADLEY, NEIL L"
,MINORITY EMPLOYEES,2010Q1,PERSONNEL COMPENSATION,"","DIFFELL, BRIAN",03/15/10,03/31/10,LEGISLATIVE DIRECTOR,"4,666.67",FISCAL YEAR 2010,"","","","DIFFELL, BRIAN"
,MINORITY EMPLOYEES,2010Q1,PERSONNEL COMPENSATION,"","GASTON, BRIAN S",01/01/10,03/14/10,SPECIAL PROJECTS COORDINATOR,"34,492.22",FISCAL YEAR 2010,"","","","GASTON, BRIAN S"
,MINORITY EMPLOYEES,2010Q1,PERSONNEL COMPENSATION,"","LLOYD, MATTHEW H",03/01/10,03/31/10,COMMUNICATIONS DIRECTOR,"10,000.00",FISCAL YEAR 2010,"","","","LLOYD, MATTHEW H"
,MINORITY EMPLOYEES,2010Q1,PERSONNEL COMPENSATION,"","LOONEY,MELANIE L",01/01/10,02/28/10,DIR OF COALITIONS/GENERAL COUN,"19,000.00",FISCAL YEAR 2010,"","","","LOONEY,MELANIE L"
,MINORITY EMPLOYEES,2010Q1,PERSONNEL COMPENSATION,"","MAURER,DANIELLE M",01/01/10,03/31/10,DIR OF MEMBER SERVICES,"36,924.99",FISCAL YEAR 2010,"","","","MAURER,DANIELLE M"
,MINORITY EMPLOYEES,2010Q1,PERSONNEL COMPENSATION,"","NELSON, VALERIE S",01/01/10,03/31/10,MEMBER SERVICE/STATUTORY,"27,500.01",FISCAL YEAR 2010,"","","","NELSON, VALERIE S"
,MINORITY EMPLOYEES,2010Q1,PERSONNEL COMPENSATION,"","SCHAPER, NICHOLAS",01/01/10,03/31/10,DIRECTOR OF NEW MEDIA,"21,837.51",FISCAL YEAR 2010,"","","","SCHAPER, NICHOLAS"
,MINORITY EMPLOYEES,2010Q1,PERSONNEL COMPENSATION,"","VOUGHT, RUSSELL",01/01/10,03/31/10,POLICY DIRECTOR,"33,750.00",FISCAL YEAR 2010,"","","","VOUGHT, RUSSELL"
,LEGISLATIVE FLOOR ACTIVITIES,2010Q1,PERSONNEL COMPENSATION,"","KUNDANIS, GEORGE",01/01/10,03/31/10,DEPUTY CHIEF OF STAFF,"43,125.00",FISCAL YEAR 2010,"","","","KUNDANIS, GEORGE"
,LEGISLATIVE FLOOR ACTIVITIES,2010Q1,PERSONNEL COMPENSATION,"","LAWRENCE, JOHN A",01/01/10,03/31/10,CHIEF OF STAFF,"43,125.00",FISCAL YEAR 2010,"","","","LAWRENCE, JOHN A"
,LEGISLATIVE FLOOR ACTIVITIES,2010Q1,PERSONNEL COMPENSATION,"","MELTZER,RICHARD",01/01/10,03/31/10,POLICY DIRECTOR,"43,125.00",FISCAL YEAR 2010,"","","","MELTZER,RICHARD"
,RC-TRAINING & PROGRAM DEVEL.,2010Q1,PERSONNEL COMPENSATION,"","EMBLER, GEOFFREY J",01/01/10,02/28/10,LEGISLATIVE RESEARCH DIRECTOR,"15,716.66",FISCAL YEAR 2010,"","","","EMBLER, GEOFFREY J"
,RC-TRAINING & PROGRAM DEVEL.,2010Q1,PERSONNEL COMPENSATION,"","EMBLER, GEOFFREY J",02/01/10,02/28/10,LEGISLATIVE RESEARCH DIRECTOR (OTHER COMPENSATION),"4,783.33",FISCAL YEAR 2010,"","","",DO
,RC-TRAINING & PROGRAM DEVEL.,2010Q1,PERSONNEL COMPENSATION,"","FINNEGAN,PATRICK",01/01/10,03/31/10,STAFF ASSISTANT,"7,500.00",FISCAL YEAR 2010,"","","","FINNEGAN,PATRICK"
,RC-TRAINING & PROGRAM DEVEL.,2010Q1,PERSONNEL COMPENSATION,"","FINNEGAN,PATRICK",12/01/09,02/28/10,STAFF ASSISTANT (OVERTIME),768.02,FISCAL YEAR 2010,"","","",DO
,RC-TRAINING & PROGRAM DEVEL.,2010Q1,PERSONNEL COMPENSATION,"","KOLEGO, TREVOR W",01/01/10,03/31/10,MEMBER SERVICES MANAGER,"27,999.99",FISCAL YEAR 2010,"","","","KOLEGO, TREVOR W"
,DS-TRAINING & PROGRAM DEVEL.,2010Q1,PERSONNEL COMPENSATION,"","BRENNAN,JOHN K",01/01/10,03/31/10,SPECIAL ASSISTANT,"31,385.01",FISCAL YEAR 2010,"","","","BRENNAN,JOHN K"
,DS-TRAINING & PROGRAM DEVEL.,2010Q1,PERSONNEL COMPENSATION,"","GREENER, APRIL L",01/01/10,03/31/10,RESEARCHER,"17,505.00",FISCAL YEAR 2010,"","","","GREENER, APRIL L"
,DS-TRAINING & PROGRAM DEVEL.,2010Q1,PERSONNEL COMPENSATION,"","KEITA,KAMILAH Z",01/01/10,03/31/10,DEPUTY INFOMATION TECH. DIRECT,"21,282.99",FISCAL YEAR 2010,"","","","KEITA,KAMILAH Z"
,CLOAKROOM PERSONNEL - MAJ,2010Q1,PERSONNEL COMPENSATION,"","FISCHER JR, ROBERT V",01/01/10,03/31/10,ASST FLOOR CHIEF,"33,289.50",FISCAL YEAR 2010,"","","","FISCHER JR, ROBERT V"
,CLOAKROOM PERSONNEL - MAJ,2010Q1,PERSONNEL COMPENSATION,"","IVESTER, WREN",01/01/10,03/31/10,ASST FLOOR CHIEF,"29,974.50",FISCAL YEAR 2010,"","","","IVESTER, WREN"
,CLOAKROOM PERSONNEL - MAJ,2010Q1,PERSONNEL COMPENSATION,"","SHANKS, HERBERT A",01/01/10,03/31/10,CLOAKROOM ATTENDANT,"14,975.76",FISCAL YEAR 2010,"","","","SHANKS, HERBERT A"
,CLOAKROOM PERSONNEL - MAJ,2010Q1,PERSONNEL COMPENSATION,"","SULLIVAN, BARRY K",01/01/10,03/31/10,CHIEF FLOOR SERVICE (MAJ),"43,125.00",FISCAL YEAR 2010,"","","","SULLIVAN, BARRY K"
,CLOAKROOM PERSONNEL - MIN,2010Q1,PERSONNEL COMPENSATION,"","CALIO,LYDIA E",01/01/10,03/31/10,FLOOR ASSISTANT,"9,699.99",FISCAL YEAR 2010,"","","","CALIO,LYDIA E"
,CLOAKROOM PERSONNEL - MIN,2010Q1,PERSONNEL COMPENSATION,"","EICHHORN, JARED D",01/01/10,03/31/10,FLOOR ASSISTANT,"11,075.01",FISCAL YEAR 2010,"","","","EICHHORN, JARED D"
,CLOAKROOM PERSONNEL - MIN,2010Q1,PERSONNEL COMPENSATION,"","HARROUN, TIMOTHY J",01/01/10,03/31/10,"MGR,REPUB FLOOR INFO SERVICE","33,287.49",FISCAL YEAR 2010,"","","","HARROUN, TIMOTHY J"
,CLOAKROOM PERSONNEL - MIN,2010Q1,PERSONNEL COMPENSATION,"","NEVINS, KYLE W",01/01/10,03/31/10,DIRECTOR OF FLOOR OPS,"39,999.99",FISCAL YEAR 2010,"","","","NEVINS, KYLE W"
,PORTFOLIO REVIEW BOARD,2010Q1,OTHER SERVICES,"",02­19 P2 OPR0900713F         CHESAPEAKE NETCRAFTSMEN,11/01/09,12/31/09,TECHNOLOGY SERVICE CONTRACTS,"6,122.50",FISCAL YEAR 2009,"","","",02­19 P2 OPR0900713F         CHESAPEAKE NETCRAFTSMEN
,PORTFOLIO REVIEW BOARD,2010Q1,OTHER SERVICES,"",02­19 P2 OPR0900713F              DO,11/01/09,12/31/09,TECHNOLOGY SERVICE CONTRACTS,"10,566.25",FISCAL YEAR 2009,"","","",02­19 P2 OPR0900713F              DO
,PORTFOLIO REVIEW BOARD,2010Q1,OTHER SERVICES,"",01­20       P2 OFP0900978                    DLT SOLUTIONS INC,10/29/09,12/18/09,TECHNOLOGY SERVICE CONTRACTS,"43,110.50",FISCAL YEAR 2009,"","","",01­20       P2 OFP0900978                    DLT SOLUTIONS INC
,PORTFOLIO REVIEW BOARD,2010Q1,OTHER SERVICES,"",01­21       P2 OFP0900941B                        DO,07/30/09,08/04/09,TECHNOLOGY SERVICE CONTRACTS,"1,162.68",FISCAL YEAR 2009,"","","",01­21       P2 OFP0900941B                        DO
,PORTFOLIO REVIEW BOARD,2010Q1,OTHER SERVICES,"",03­09       P2 OFP0900978A                        DO,11/02/09,11/20/09,TECHNOLOGY SERVICE CONTRACTS,"29,335.13",FISCAL YEAR 2009,"","","",03­09       P2 OFP0900978A                        DO
,PORTFOLIO REVIEW BOARD,2010Q1,OTHER SERVICES,"",03­30       P2 OFP0900772                    CDW GOVERNMENT INC,01/04/10,01/04/10,NON-TECHNOLOGY SERVICE CONTRCT,"107,145.00",FISCAL YEAR 2009,"","","",03­30       P2 OFP0900772                    CDW GOVERNMENT INC
,PORTFOLIO REVIEW BOARD,2010Q1,OTHER SERVICES,"",03­30       P2 OFP0900772                         DO,01/04/10,01/04/10,NON-TECHNOLOGY SERVICE CONTRCT,"17,676.75",FISCAL YEAR 2009,"","","",03­30       P2 OFP0900772                         DO
,PORTFOLIO REVIEW BOARD,2010Q1,OTHER SERVICES,"",03­30       P2 OFP0900772                         DO,01/04/10,01/04/10,NON-TECHNOLOGY SERVICE CONTRCT,"53,572.50",FISCAL YEAR 2009,"","","",03­30       P2 OFP0900772                         DO
,PORTFOLIO REVIEW BOARD,2010Q1,OTHER SERVICES,"","01­12       P2 OFP0901019A      EDGE PROFESSIONAL SERVICES,LLC",11/30/09,11/30/09,TECHNOLOGY SERVICE CONTRACTS,"5,391.75",FISCAL YEAR 2009,"","","","01­12       P2 OFP0901019A      EDGE PROFESSIONAL SERVICES,LLC"
,PORTFOLIO REVIEW BOARD,2010Q1,OTHER SERVICES,"","01­19       P2 OFP0900764D      SYSTEMS PLUS, INC",12/01/09,12/31/09,TECHNOLOGY SERVICE CONTRACTS,"18,957.57",FISCAL YEAR 2009,"","","","01­19       P2 OFP0900764D      SYSTEMS PLUS, INC"
,PORTFOLIO REVIEW BOARD,2010Q1,OTHER SERVICES,"",01­20       P2 OFP0900764E           DO,10/01/09,10/31/09,TECHNOLOGY SERVICE CONTRACTS,"20,030.64",FISCAL YEAR 2009,"","","",01­20       P2 OFP0900764E           DO
,PORTFOLIO REVIEW BOARD,2010Q1,OTHER SERVICES,"","01­22       P2 OFP0901019B      EDGE PROFESSIONAL SERVICES,LLC",12/31/09,12/31/09,TECHNOLOGY SERVICE CONTRACTS,"2,115.75",FISCAL YEAR 2009,"","","","01­22       P2 OFP0901019B      EDGE PROFESSIONAL SERVICES,LLC"
,PORTFOLIO REVIEW BOARD,2010Q1,OTHER SERVICES,"",02­19       P2 OFP0901019C           DO,01/31/10,01/31/10,TECHNOLOGY SERVICE CONTRACTS,"9,486.75",FISCAL YEAR 2009,"","","",02­19       P2 OFP0901019C           DO
,PORTFOLIO REVIEW BOARD,2010Q1,OTHER SERVICES,"",03­22   P2 OFP0901019D               DO,02/28/10,02/28/10,TECHNOLOGY SERVICE CONTRACTS,"8,367.45",FISCAL YEAR 2009,"","","",03­22   P2 OFP0901019D               DO
,CAO ADVANCED BUSINESS SOLUTION,2010Q1,TRAVEL,"",01­05   P1 10A00100086        CITIBANK GOV CARD SERVICE,12/01/09,12/01/09,COMMERCIAL TRANSPORTATION,143.60,FISCAL YEAR 2010,"","","",01­05   P1 10A00100086        CITIBANK GOV CARD SERVICE
,CAO ADVANCED BUSINESS SOLUTION,2010Q1,TRAVEL,"",01­05 P1 10A00100087               DO,12/03/09,12/03/09,COMMERCIAL TRANSPORTATION,143.60,FISCAL YEAR 2010,"","","",01­05 P1 10A00100087               DO
,CAO ADVANCED BUSINESS SOLUTION,2010Q1,TRAVEL,"",01­05 P1 10A00100088               DO,12/07/09,12/07/09,COMMERCIAL TRANSPORTATION,143.60,FISCAL YEAR 2010,"","","",01­05 P1 10A00100088               DO
,CAO ADVANCED BUSINESS SOLUTION,2010Q1,TRAVEL,"",01­05 P1 10A00100089               DO,12/11/09,12/11/09,COMMERCIAL TRANSPORTATION,143.60,FISCAL YEAR 2010,"","","",01­05 P1 10A00100089               DO
,CAO ADVANCED BUSINESS SOLUTION,2010Q1,TRAVEL,"",01­12 P1 10A00100091               DO,12/15/09,12/15/09,COMMERCIAL TRANSPORTATION,143.60,FISCAL YEAR 2010,"","","",01­12 P1 10A00100091               DO
,CAO ADVANCED BUSINESS SOLUTION,2010Q1,TRAVEL,"",01­12 P1 10A00100092               DO,12/17/09,12/17/09,COMMERCIAL TRANSPORTATION,143.60,FISCAL YEAR 2010,"","","",01­12 P1 10A00100092               DO
,CAO ADVANCED BUSINESS SOLUTION,2010Q1,TRAVEL,"",01­28 P1 10A00100153         ALI E. QURESHI,01/05/10,01/08/10,TRAVEL REIMBURSEMENT,"1,930.43",FISCAL YEAR 2010,"","","",01­28 P1 10A00100153         ALI E. QURESHI
,CAO ADVANCED BUSINESS SOLUTION,2010Q1,TRAVEL,"",01­28 P1 10A00100142         CITIBANK GOV CARD SERVICE,01/12/10,01/12/10,COMMERCIAL TRANSPORTATION,143.70,FISCAL YEAR 2010,"","","",01­28 P1 10A00100142         CITIBANK GOV CARD SERVICE
,CAO ADVANCED BUSINESS SOLUTION,2010Q1,TRAVEL,"",01­28 P1 10A00100143               DO,01/14/10,01/14/10,COMMERCIAL TRANSPORTATION,142.70,FISCAL YEAR 2010,"","","",01­28 P1 10A00100143               DO
,CAO ADVANCED BUSINESS SOLUTION,2010Q1,TRAVEL,"",01­29 P1 10A00100149               DO,01/19/10,01/19/10,COMMERCIAL TRANSPORTATION,143.70,FISCAL YEAR 2010,"","","",01­29 P1 10A00100149               DO
,CAO ADVANCED BUSINESS SOLUTION,2010Q1,TRAVEL,"",01­29 P1 10A00100150               DO,01/21/10,01/21/10,COMMERCIAL TRANSPORTATION,440.70,FISCAL YEAR 2010,"","","",01­29 P1 10A00100150               DO
,CAO ADVANCED BUSINESS SOLUTION,2010Q1,TRAVEL,"",01­29 P1 10A00100156         DANIEL P BEARD,01/21/10,01/23/10,TRAVEL REIMBURSEMENT,159.06,FISCAL YEAR 2010,"","","",01­29 P1 10A00100156         DANIEL P BEARD
,CAO ADVANCED BUSINESS SOLUTION,2010Q1,TRAVEL,"",01­30 HV 10A90300161         ALI E. QURESHI,01/05/10,01/08/10,TRAVEL REIMBURSEMENT,"1,930.43",FISCAL YEAR 2010,"","","",01­30 HV 10A90300161         ALI E. QURESHI
,CAO ADVANCED BUSINESS SOLUTION,2010Q1,TRAVEL,"",02­04 P1 10A00500012         TAMI L PERRIELLO,01/05/10,01/08/10,COMMERCIAL TRANSPORTATION,929.80,FISCAL YEAR 2010,"","","",02­04 P1 10A00500012         TAMI L PERRIELLO
,CAO ADVANCED BUSINESS SOLUTION,2010Q1,TRAVEL,"",02­04 P1 10A00500013               DO,01/05/10,01/08/10,TRAVEL REIMBURSEMENT,869.84,FISCAL YEAR 2010,"","","",02­04 P1 10A00500013               DO
,CAO ADVANCED BUSINESS SOLUTION,2010Q1,TRAVEL,"",02­16 P1 10A00100176         CAROL BLACK,11/25/09,12/16/09,"TAXI, PARKING, TOLLS",7.00,FISCAL YEAR 2010,"","","",02­16 P1 10A00100176         CAROL BLACK
,CAO ADVANCED BUSINESS SOLUTION,2010Q1,TRAVEL,"",02­26 P1 10A00100184         CITIBANK GOV CARD SERVICE,01/15/10,01/15/10,COMMERCIAL TRANSPORTATION,40.00,FISCAL YEAR 2010,"","","",02­26 P1 10A00100184         CITIBANK GOV CARD SERVICE
,CAO ADVANCED BUSINESS SOLUTION,2010Q1,TRAVEL,"",02­26 P1 10A00100185               DO,01/15/10,01/15/10,LODGING,292.10,FISCAL YEAR 2010,"","","",02­26 P1 10A00100185               DO
,CAO ADVANCED BUSINESS SOLUTION,2010Q1,TRAVEL,"",02­26 P1 10A00100186               DO,01/18/10,01/18/10,COMMERCIAL TRANSPORTATION,975.50,FISCAL YEAR 2010,"","","",02­26 P1 10A00100186               DO
,CAO ADVANCED BUSINESS SOLUTION,2010Q1,TRAVEL,"",02­26 P1 10A00100187               DO,01/18/10,01/18/10,COMMERCIAL TRANSPORTATION,30.00,FISCAL YEAR 2010,"","","",02­26 P1 10A00100187               DO
,CAO ADVANCED BUSINESS SOLUTION,2010Q1,TRAVEL,"",02­26 P1 10A00100188               DO,01/18/10,01/18/10,COMMERCIAL TRANSPORTATION,30.00,FISCAL YEAR 2010,"","","",02­26 P1 10A00100188               DO
,CAO ADVANCED BUSINESS SOLUTION,2010Q1,TRAVEL,"",02­26 P1 10A00100189               DO,01/08/10,01/08/10,COMMERCIAL TRANSPORTATION,30.00,FISCAL YEAR 2010,"","","",02­26 P1 10A00100189               DO
,CAO ADVANCED BUSINESS SOLUTION,2010Q1,TRAVEL,"",02­26 P1 10A00100190               DO,01/09/10,01/09/10,COMMERCIAL TRANSPORTATION,50.00,FISCAL YEAR 2010,"","","",02­26 P1 10A00100190               DO
,CAO ADVANCED BUSINESS SOLUTION,2010Q1,TRAVEL,"",02­26 P1 10A00100191               DO,01/14/10,01/14/10,GASOLINE,30.92,FISCAL YEAR 2010,"","","",02­26 P1 10A00100191               DO
,CAO ADVANCED BUSINESS SOLUTION,2010Q1,TRAVEL,"",02­26 P1 10A00100192               DO,01/15/10,01/15/10,CAR RENTAL,267.80,FISCAL YEAR 2010,"","","",02­26 P1 10A00100192               DO
,CAO ADVANCED BUSINESS SOLUTION,2010Q1,TRAVEL,"",02­26 P1 10A00100193               DO,01/15/10,01/15/10,CAR RENTAL,80.00,FISCAL YEAR 2010,"","","",02­26 P1 10A00100193               DO
,CAO ADVANCED BUSINESS SOLUTION,2010Q1,TRAVEL,"",02­26 P1 10A00100194               DO,01/05/10,01/05/10,LODGING,711.06,FISCAL YEAR 2010,"","","",02­26 P1 10A00100194               DO
,CAO ADVANCED BUSINESS SOLUTION,2010Q1,TRAVEL,"",02­26 P1 10A00100195               DO,01/05/10,01/05/10,LODGING,711.06,FISCAL YEAR 2010,"","","",02­26 P1 10A00100195               DO
,CAO ADVANCED BUSINESS SOLUTION,2010Q1,TRAVEL,"",02­26 P1 10A00100196               DO,01/05/10,01/05/10,LODGING,711.68,FISCAL YEAR 2010,"","","",02­26 P1 10A00100196               DO
,CAO ADVANCED BUSINESS SOLUTION,2010Q1,TRAVEL,"",02­26 P1 10A00100197               DO,01/05/10,01/05/10,LODGING,474.04,FISCAL YEAR 2010,"","","",02­26 P1 10A00100197               DO
,CAO ADVANCED BUSINESS SOLUTION,2010Q1,TRAVEL,"",02­26 P1 10A00100198               DO,01/09/10,01/09/10,COMMERCIAL TRANSPORTATION,367.10,FISCAL YEAR 2010,"","","",02­26 P1 10A00100198               DO
,CAO ADVANCED BUSINESS SOLUTION,2010Q1,TRAVEL,"",02­26 P1 10A00100199               DO,01/18/10,01/18/10,COMMERCIAL TRANSPORTATION,548.80,FISCAL YEAR 2010,"","","",02­26 P1 10A00100199               DO
,CAO ADVANCED BUSINESS SOLUTION,2010Q1,TRAVEL,"",02­26 P1 10A00100200               DO,01/19/10,01/22/10,LODGING,711.06,FISCAL YEAR 2010,"","","",02­26 P1 10A00100200               DO
,CAO ADVANCED BUSINESS SOLUTION,2010Q1,TRAVEL,"",02­26 P1 10A00100201               DO,01/19/10,01/22/10,LODGING,711.06,FISCAL YEAR 2010,"","","",02­26 P1 10A00100201               DO
,CAO ADVANCED BUSINESS SOLUTION,2010Q1,TRAVEL,"",03­09 P1 10A00100204               DO,01/26/10,01/28/10,COMMERCIAL TRANSPORTATION,287.40,FISCAL YEAR 2010,"","","",03­09 P1 10A00100204               DO
,CAO ADVANCED BUSINESS SOLUTION,2010Q1,TRAVEL,"",03­09 P1 10A00100205               DO,02/01/10,02/01/10,COMMERCIAL TRANSPORTATION,143.70,FISCAL YEAR 2010,"","","",03­09 P1 10A00100205               DO
,CAO ADVANCED BUSINESS SOLUTION,2010Q1,TRAVEL,"",03­09 P1 10A00100206               DO,02/05/10,02/05/10,COMMERCIAL TRANSPORTATION,119.70,FISCAL YEAR 2010,"","","",03­09 P1 10A00100206               DO
